{"text_format":"1","workbook":"xlsx","n_sheets":3,"sheets":["アスベスト用","保1","依2"],"not_rendered":{"charts":0,"images":0,"macros":1,"external_links":1,"defined_names":3,"comments":0,"pivot_tables":0},"unopened":[],"bounds":{"document_bytes":16777216,"sheet_cells":100000,"rows_first":2000,"rows_last":500,"rows_between":2000,"halvings":0,"cell_chars":16384,"cell_head_chars":4096},"cells_cut":0,"cells_raw":0,"read":"whole","date_system":"1900"}

{"sheet":"アスベスト用","index":0,"n_rows":134,"n_cols":34,"rows_kept":134,"cut":false,"hidden":false,"merged":[[117,23,118,33],[119,23,120,33],[121,23,122,33],[123,23,124,33],[125,23,126,33],[125,8,126,22],[13,21,13,25],[113,8,114,22],[115,8,116,22],[117,8,118,22],[119,8,120,22],[121,8,122,22],[123,8,124,22],[89,8,90,22],[91,8,92,22],[93,8,94,22],[95,8,96,22],[97,8,98,22],[99,8,100,22],[101,8,102,22],[103,8,104,22],[105,8,106,22],[83,8,84,22],[85,8,86,22],[87,8,88,22],[74,23,74,33],[75,23,76,33],[77,23,78,33],[79,23,80,33],[81,23,82,33],[83,23,84,33],[85,23,86,33],[87,23,88,33],[75,8,76,22],[60,5,61,7],[66,5,67,7],[62,5,63,7],[62,8,63,22],[66,8,67,22],[51,2,51,4],[52,2,53,4],[54,2,55,4],[56,2,57,4],[58,2,59,4],[60,2,61,4],[62,2,63,4],[66,2,67,4],[58,5,59,7],[51,5,51,7],[52,5,53,7],[54,5,55,7],[56,5,57,7],[54,8,55,22],[56,8,57,22],[58,8,59,22],[60,8,61,22],[16,26,16,33],[17,26,17,33],[10,2,10,10],[10,27,10,33],[11,2,11,16],[11,19,11,25],[12,2,12,16],[12,19,12,25],[13,2,13,16],[13,27,13,33],[21,2,21,4],[21,5,21,25],[21,27,23,33],[22,2,22,4],[22,5,22,25],[23,2,23,4],[23,5,23,25],[20,2,20,6],[20,7,20,21],[24,2,24,4],[24,5,24,9],[24,10,24,11],[24,12,24,18],[24,19,24,20],[24,21,24,25],[24,27,24,33],[25,2,25,4],[25,5,25,15],[25,16,25,18],[25,27,25,33],[25,19,25,25],[29,2,29,4],[29,5,29,33],[30,2,30,4],[32,2,34,4],[27,2,27,4],[27,5,27,9],[27,10,27,11],[27,12,27,33],[31,2,31,4],[30,5,30,33],[31,5,31,33],[36,30,36,32],[38,2,38,4],[39,2,39,4],[37,30,38,33],[38,5,38,28],[39,5,39,28],[40,5,40,28],[42,5,42,28],[43,5,43,28],[42,2,42,4],[43,2,43,4],[40,2,41,4],[41,5,41,28],[36,10,36,16],[36,18,36,19],[36,20,36,26],[36,28,36,29],[74,2,74,4],[74,5,74,7],[72,2,73,2],[72,3,73,33],[69,24,70,26],[71,3,71,33],[62,23,63,33],[66,23,67,33],[64,23,65,33],[64,8,65,22],[64,5,65,7],[64,2,65,4],[74,8,74,22],[79,2,80,4],[79,5,80,7],[81,2,82,4],[81,5,82,7],[79,8,80,22],[81,8,82,22],[77,2,78,4],[77,5,78,7],[77,8,78,22],[83,2,84,4],[83,5,84,7],[87,2,88,4],[87,5,88,7],[85,2,86,4],[85,5,86,7],[89,2,90,4],[89,5,90,7],[91,2,92,4],[91,5,92,7],[89,23,90,33],[91,23,92,33],[93,2,94,4],[93,5,94,7],[95,2,96,4],[95,5,96,7],[93,23,94,33],[95,23,96,33],[97,2,98,4],[97,5,98,7],[109,23,110,33],[111,23,112,33],[99,2,100,4],[99,5,100,7],[107,8,108,22],[109,8,110,22],[111,8,112,22],[97,23,98,33],[99,23,100,33],[101,2,102,4],[101,5,102,7],[103,2,104,4],[103,5,104,7],[101,23,102,33],[103,23,104,33],[123,2,124,4],[123,5,124,7],[133,23,133,33],[127,2,128,4],[127,5,128,7],[129,2,130,4],[129,5,130,7],[125,2,126,4],[125,5,126,7],[127,8,128,22],[129,8,130,22],[127,23,128,33],[129,23,130,33],[132,23,132,33],[75,2,76,4],[75,5,76,7],[121,2,122,4],[121,5,122,7],[113,2,114,4],[113,5,114,7],[115,2,116,4],[115,5,116,7],[113,23,114,33],[115,23,116,33],[117,2,118,4],[117,5,118,7],[119,2,120,4],[119,5,120,7],[105,2,106,4],[105,5,106,7],[107,2,108,4],[107,5,108,7],[105,23,106,33],[107,23,108,33],[109,2,110,4],[109,5,110,7],[111,2,112,4],[111,5,112,7],[48,9,48,26],[48,29,48,33],[46,2,48,4],[52,23,53,33],[54,23,55,33],[49,2,50,4],[51,8,51,22],[51,23,51,33],[52,8,53,22],[50,24,50,32],[44,5,44,28],[45,2,45,4],[44,2,44,4],[45,5,45,28],[69,27,70,33],[32,5,34,16],[32,17,34,19],[32,20,34,33],[49,5,49,8],[49,27,49,28],[49,29,49,33],[47,9,47,33],[50,5,50,8],[50,9,50,18],[50,19,50,23],[46,5,47,8],[49,9,49,26],[56,23,57,33],[58,23,59,33],[60,23,61,33],[36,2,36,7],[36,8,36,9],[48,27,48,28],[48,5,48,8]]}
[]
[]
[]
[]
[]
[]
[]
[]
[]
[]
[null,null,"検査依頼書"]
[null,null,"一般財団法人　茨城県薬剤師会検査センター",null,null,null,null,null,null,null,null,null,null,null,null,null,null,null,null,"依頼書番号",null,null,null,null,null,null,null,"SN"]
[null,null,"〒310-0852　茨城県水戸市笠原町978-47"]
[null,null,"TEL：029-306-9086　FAX：029-306-9076",null,null,null,null,null,null,null,null,null,null,null,null,null,null,null,null,null,null,"アスベスト用",null,null,null,null,null,"ラベル"]
[]
[null,null,"採取・回収",null,null,"番号記入",null,null,null,"依頼入力",null,null,"成績発送",null,null,null,"請求作成",null,null,"請求発送",null,null,null,"確認"]
[]
[]
[]
[]
[null,null,"ご依頼者",null,null,null,null,"太枠内へのご記入をお願いいたします。"]
[null,null,"ふりがな"]
[null,null,"氏名"]
[null,null,"住所"]
[null,null,"郵便番号",null,null,null,null,null,null,null,"TEL",null,null,null,null,null,null,null,null,"FAX",null,null,null,null,null,null,null," 受付日 　　    　　　年　　　月　　　日"]
[null,null,"ご担当者",null,null,null,null,null,null,null,null,null,null,null,null,null,"携帯",null,null,null,null,null,null,null,null,null,null,"  同時発送"]
[]
[null,null,"試料名称",null,null,"下記参照",null,null,null,null,"採取\n容器",null,"顧客袋　　×　(          )　"]
[]
[null,null,"施設名",null,null,"施設名：同上"]
[null,null,"1400148",null,null,"3120003 茨城県ひたちなか市足崎1177 "]
[null,null,"採取場所",null,null,"下記参照"]
[null,null,"検査項目",null,null,"アスベスト定性分析",null,null,null,null,null,null,null,null,null,null,null,"備考"]
[]
[]
[]
[null,null,"検査手数料合計",null,null,null,null,null,"税抜",null,null,null,null,null,null,null,null,"円","税込",null,null,null,null,null,null,null,null,"円","支払",null,"□現金",null,null,"□後納"]
[]
["",null,null,null,null,"成績書送付先："]
[null,null,"",null,null," □依頼者に同じ　"]
[null,null,null,null,null,"成績書標題："]
[null,null,null,null,null," □依頼者に同じ　"]
[null,null,null,null,null,"請求書送付先："]
[null,null,"",null,null," □依頼者に同じ　"]
[null,null,null,null,null,"請求書宛名："]
[null,null,"",null,null," □依頼者に同じ　"]
[null,null,"採取情報",null,null,"工事名"]
[]
[null,null,null,null,null,"建物名",null,null,null,null,null,null,null,null,null,null,null,null,null,null,null,null,null,null,null,null,null,"採取年月日"]
[null,null,"採取者\n情報",null,null,"所属  　　       　　　　　　　　　　 　　　　　　　  　　   　　　　  　　　",null,null,null,null,null,null,null,null,null,null,null,null,null,null,null,null,null,null,null,null,null,"氏名"]
[null,null,null,null,null,"資格",null,null,null," 1. 一般建築物石綿含有建材調査者",null,null,null,null,null,null,null,null,null,"2. 石綿作業主任者",null,null,null,null,"3. その他：",null,null,null,null,null,null,null,null,"4.無し"]
[null,null,"受付番号",null,null,"NO．",null,null,"採取場所及び採取箇所",null,null,null,null,null,null,null,null,null,null,null,null,null,null,"試料名称"]
[null,null,"SN-"]
[]
[null,null,"SN-"]
[]
[null,null,"SN-"]
[]
[null,null,"SN-"]
[]
[null,null,"SN-",null,null,"",null,null,"",null,null,null,null,null,null,null,null,null,null,null,null,null,null,""]
[]
[null,null,"SN-",null,null,"",null,null,"",null,null,null,null,null,null,null,null,null,null,null,null,null,null,""]
[]
[null,null,"SN-",null,null,"",null,null,"",null,null,null,null,null,null,null,null,null,null,null,null,null,null,""]
[]
[null,null,"SN-",null,null,"",null,null,""]
[]
[]
[null,null,"※","ご依頼の際には、検査手数料を添えてお申し込み下さい（つり銭のないようご用意下さい）。",null,null,null,null,null,null,null,null,null,null,null,null,null,null,null,null,null,null,null,null,"サイン"]
[null,null,"※","検査成績書は結果が出次第、順次発送いたします。"]
[null,null,"※","当検査センターは検査結果に限り責任を負うものであり、検査結果によって生じるトラブルまたは損害等に関して一切の責任を負いかねます。"]
[null,null,"※","依頼書に記載された内容は検査の目的以外には使用しません。また、検査結果について、無断で他に提供することはありません。なお、検査結果をもとに、個々を特定できないデータとして、集計に使用させていただくことがあります。"]
[]
[null,null,"受付番号",null,null,"NO．",null,null,"採取場所及び採取箇所",null,null,null,null,null,null,null,null,null,null,null,null,null,null,"試料名称"]
[null,null,"SN-",null,null,""]
[]
[null,null,"SN-",null,null,"",null,null,"",null,null,null,null,null,null,null,null,null,null,null,null,null,null,""]
[]
[null,null,"SN-",null,null,"",null,null,"",null,null,null,null,null,null,null,null,null,null,null,null,null,null,""]
[]
[null,null,"SN-",null,null,"",null,null,"",null,null,null,null,null,null,null,null,null,null,null,null,null,null,""]
[]
[null,null,"SN-",null,null,"",null,null,"",null,null,null,null,null,null,null,null,null,null,null,null,null,null,""]
[]
[null,null,"SN-",null,null,"",null,null,"",null,null,null,null,null,null,null,null,null,null,null,null,null,null,""]
[]
[null,null,"SN-",null,null,"",null,null,"",null,null,null,null,null,null,null,null,null,null,null,null,null,null,""]
[]
[null,null,"SN-",null,null,"",null,null,"",null,null,null,null,null,null,null,null,null,null,null,null,null,null,""]
[]
[null,null,"SN-",null,null,"",null,null,"",null,null,null,null,null,null,null,null,null,null,null,null,null,null,""]
[]
[null,null,"SN-",null,null,"",null,null,"",null,null,null,null,null,null,null,null,null,null,null,null,null,null,""]
[]
[null,null,"SN-",null,null,"",null,null,"",null,null,null,null,null,null,null,null,null,null,null,null,null,null,""]
[]
[null,null,"SN-",null,null,"",null,null,"",null,null,null,null,null,null,null,null,null,null,null,null,null,null,""]
[]
[null,null,"SN-",null,null,"",null,null,"",null,null,null,null,null,null,null,null,null,null,null,null,null,null,""]
[]
[null,null,"SN-",null,null,"",null,null,"",null,null,null,null,null,null,null,null,null,null,null,null,null,null,""]
[]
[null,null,"SN-",null,null,"",null,null,"",null,null,null,null,null,null,null,null,null,null,null,null,null,null,""]
[]
[null,null,"SN-",null,null,"",null,null,"",null,null,null,null,null,null,null,null,null,null,null,null,null,null,""]
[]
[null,null,"SN-",null,null,"",null,null,"",null,null,null,null,null,null,null,null,null,null,null,null,null,null,""]
[]
[null,null,"SN-",null,null,"",null,null,"",null,null,null,null,null,null,null,null,null,null,null,null,null,null,""]
[]
[null,null,"SN-",null,null,"",null,null,"",null,null,null,null,null,null,null,null,null,null,null,null,null,null,""]
[]
[null,null,"SN-",null,null,"",null,null,"",null,null,null,null,null,null,null,null,null,null,null,null,null,null,""]
[]
[null,null,"SN-",null,null,"",null,null,"",null,null,null,null,null,null,null,null,null,null,null,null,null,null,""]
[]
[null,null,"SN-",null,null,"",null,null,"",null,null,null,null,null,null,null,null,null,null,null,null,null,null,""]
[]
[null,null,"SN-",null,null,"",null,null,"",null,null,null,null,null,null,null,null,null,null,null,null,null,null,""]
[]
[null,null,"SN-",null,null,"",null,null,"",null,null,null,null,null,null,null,null,null,null,null,null,null,null,""]
[]
[null,null,"SN-",null,null,"",null,null,"",null,null,null,null,null,null,null,null,null,null,null,null,null,null,""]
[]
[null,null,"SN-",null,null,"",null,null,""]
[]
[null,null,"SN-",null,null,"",null,null,"",null,null,null,null,null,null,null,null,null,null,null,null,null,null,""]
[]
[null,null,"SN-",null,null,"",null,null,"",null,null,null,null,null,null,null,null,null,null,null,null,null,null,""]
[]
[null,null,null,""]
[null,null,null,"",null,null,null,null,null,null,null,null,null,null,null,null,null,null,null,null,null,null,null,"一般財団法人　茨城県薬剤師会検査センター"]
[null,null,null,""]

{"sheet":"保1","index":1,"n_rows":36,"n_cols":36,"rows_kept":36,"cut":false,"hidden":true,"merged":[[28,1,28,3],[30,1,30,3],[28,6,31,9],[32,1,32,5],[33,1,33,5],[35,1,35,5],[34,1,34,5],[2,5,2,8],[6,6,6,9],[7,8,7,9],[14,6,15,6],[14,7,15,7],[14,8,14,9],[16,7,17,7],[16,8,16,9],[26,7,27,7],[22,6,23,6],[22,7,23,7],[22,8,22,9],[8,0,9,0],[8,1,9,1],[8,2,9,2],[8,3,9,3],[8,4,9,4],[8,5,9,5],[8,6,9,6],[8,7,9,7],[8,8,8,9],[10,0,11,0],[10,1,11,1],[10,2,11,2],[10,3,11,3],[10,4,11,4],[10,5,11,5],[10,6,11,6],[10,7,11,7],[10,8,10,9],[12,0,13,0],[12,1,13,1],[12,2,13,2],[12,3,13,3],[12,4,13,4],[12,5,13,5],[12,6,13,6],[12,7,13,7],[12,8,12,9],[16,0,17,0],[16,1,17,1],[16,2,17,2],[16,3,17,3],[16,4,17,4],[16,5,17,5],[16,6,17,6],[14,0,15,0],[14,1,15,1],[14,2,15,2],[14,3,15,3],[14,4,15,4],[14,5,15,5],[18,0,19,0],[18,1,19,1],[18,2,19,2],[18,3,19,3],[18,4,19,4],[18,5,19,5],[18,6,19,6],[18,7,19,7],[18,8,18,9],[20,0,21,0],[20,1,21,1],[20,2,21,2],[20,3,21,3],[20,4,21,4],[20,5,21,5],[20,6,21,6],[20,7,21,7],[20,8,20,9],[24,0,25,0],[24,1,25,1],[24,2,25,2],[24,3,25,3],[24,4,25,4],[24,5,25,5],[24,6,25,6],[22,0,23,0],[22,1,23,1],[22,2,23,2],[22,3,23,3],[22,4,23,4],[22,5,23,5],[8,11,9,11],[8,12,9,12],[8,13,9,13],[10,11,11,11],[10,12,11,12],[10,13,11,13],[26,8,26,9],[28,0,35,0],[28,5,29,5],[29,1,29,3],[32,6,32,9],[33,6,35,9],[24,7,25,7],[24,8,24,9],[26,0,27,0],[26,1,27,1],[26,2,27,2],[26,3,27,3],[26,4,27,4],[26,5,27,5],[26,6,27,6],[16,11,17,11],[16,12,17,12],[16,13,17,13],[18,11,19,11],[18,12,19,12],[18,13,19,13],[12,11,13,11],[12,12,13,12],[12,13,13,13],[14,11,15,11],[14,12,15,12],[14,13,15,13],[24,11,25,11],[24,12,25,12],[24,13,25,13],[26,11,27,11],[26,12,27,12],[26,13,27,13],[20,11,21,11],[20,12,21,12],[20,13,21,13],[22,11,23,11],[22,12,23,12],[22,13,23,13]]}
["様式1【S-101検体受付手順書 別紙（10）】",null,null,null,null,null,null,null,null,"2014.12.03改訂",null,"入力",null,null,{"$f":"LEFT(ADDRESS(ROW(),COLUMN(),4,1),LEN(ADDRESS(ROW(),COLUMN(),4,1))-LEN(ROW()))","v":"O"},null,{"$f":"LEFT(ADDRESS(ROW(),COLUMN(),4,1),LEN(ADDRESS(ROW(),COLUMN(),4,1))-LEN(ROW()))","v":"Q"},null,null,null,null,null,null,null,null,null,null,"500　　＋外税　　　　　　　　（保管料込）　　　　　"]
[]
["保存検査　発送・請求記録表",null,null,null,"依頼者",{"$f":"#REF!","v":{"$error":"#REF!"}},null,null,null,"様",null,null,null,null,"←保存開始日",null,null,null,null,null,null,null,null,null,null,null,null,"1000　＋外税　　　　　　　　（保管料込）　　　　　",null,null,null,null,"保",{"$f":"RIGHT(CELL(\"filename\",AA1),LEN(CELL(\"filename\",AA1))-FIND(\"]\",CELL(\"filename\",AA1)))","v":"保1"},{"$f":"VALUE(SUBSTITUTE(AH3,AG3,\"\"))","v":1}]
[]
[null,null,null,"　　　　　　　　　　　都度発送",null,"　要FAX(都度)",null,null,"　　　　都度",null,null,10,null,null,"℃","保存検査マニュアル",null,null,null,null,null,null,null,null,null,null,null,"外税","℃",",保管料","検体名称","検査項目","検査料金","データ集約!","製造","空白"]
[null,null,null,"　　　　　　　　　　　まとめて発送",null,"　要FAX(まとめて)",null,null,"　　　　まとめて",null,null,"製造",null,null,"貼付け　↓",null,null,null,null,null,null,null,null,null,null,null,null,"FO-","保管料"," 保管料",{"$f":"#REF!","v":{"$error":"#REF!"}},{"$f":"#REF!","v":{"$error":"#REF!"}},{"$f":"#REF!","v":{"$error":"#REF!"}},{"$f":"#REF!","v":{"$error":"#REF!"}},"解凍"]
["食品",null,null,null,null,null,"※その都度発送・請求の場合",null,null,null,null,null,null,null,null,"保存検査実施日",null,null,null,null,null,null,null,null,null,null,null,"初発あり","初発","℃保存　　　　","日より　　　　　","日後検査",null,null,"加工"]
["検体名称","受付番号","検査日","検査項目","検査料金","備　考","Ｆ Ａ Ｘ","成績書\n発送　　　　　　　　　　　　　","請求番号\n請求書作成／発送",null,null,"検体名称","受付番号","検査日",null,"経過日","備　考","重複","検索行","総合","料金追加","保管料","初発判断","経過日2"]
[{"$f":"IFERROR(IF(OR(L9=$AJ$5,L9=\"\"),INDIRECT($AH$5&$AE$6&T9),L9),\"\")","v":""},null,{"$f":"IF(INDIRECT(AB9)=\"\",\"\",INDIRECT(AB9))","v":""},{"$f":"IFERROR(SUBSTITUTE(SUBSTITUTE(INDIRECT($AH$5&$AF$6&T9),$AD$5,\"\"),$AD$6,\"\"),\"\")","v":""},{"$f":"IF(T9=\"\",\"\",IF(INDIRECT($AH$5&$AG$6&T9)=\"\",\"\",(INDIRECT($AH$5&$AG$6&T9)&\" + \"&IF(V9=1,$AB$1,IF(V9=100,$AB$3,$AB$5)))))","v":{"$error":"#REF!"}},{"$f":"IF(AND($O$7=$AB$7,W9=1),$AC$7,Q9)","v":"10℃保存　　　　　製造日より　　　　　日後検査"},null,null,"請求№",null,null,null,null,null,null,{"$f":"IF($O$8=\"\",\"\",IF(INDIRECT(AB9)=\"\",\"\",INDIRECT(AB9)-$O$8))","v":""},{"$f":"$L$5&$AD$7&REPT(\"　\",3-LEN($L$5))&$L$6&$AE$7&P9&$AF$7","v":"10℃保存　　　　　製造日より　　　　　日後検査"},{"$f":"IF(L9=\"\",\"\",ASC(L9)&COUNTIF($L$9:L9,L9))","v":""},{"$f":"IFERROR(IF(R9=\"\",\"\",INDEX(#REF!,MATCH(R9,#REF!,0),1)),\"\")","v":""},{"$f":"IF(L9=$AJ$5,\"\",IF(AND(S9=\"\",$AI$3=1),INDIRECT($AH$5&$AH$6&AA9),S9))","v":{"$error":"#REF!"}},{"$f":"IF(A9=\"\",\"\",IF($L$3=\"\",IF(AND(P9>89,P9<>\"\"),100,COUNTIF($A$9:A9,A9)),IF(AND(X9>89,X9<>\"\"),100,COUNTIF($A$9:A9,A9))))","v":""},{"$f":"IF($O$7=$AB$7,IF(U11=100,100,IF(U11=\"\",\"\",1)),IF(U9=100,100,1))","v":1},{"$f":"IF(A9=\"\",\"\",COUNTIF($A$9:A9,A9))","v":""},{"$f":"IF($O$8=\"\",\"\",IF(INDIRECT(AB9)=\"\",\"\",INDIRECT(AB9)-$L$3))","v":""},null,null,11,{"$f":"$O$1&ROW()","v":"O9"}]
[null,null,null,null,null,null,null,null,"(作成)","(発送)"]
[{"$f":"IFERROR(IF(OR(L11=$AJ$5,L11=\"\"),INDIRECT($AH$5&$AE$6&T11),L11),\"\")","v":""},null,{"$f":"IF(INDIRECT(AB11)=\"\",\"\",INDIRECT(AB11))","v":""},{"$f":"IFERROR(SUBSTITUTE(SUBSTITUTE(INDIRECT($AH$5&$AF$6&T11),$AD$5,\"\"),$AD$6,\"\"),\"\")","v":""},{"$f":"IF(T11=\"\",\"\",IF(INDIRECT($AH$5&$AG$6&T11)=\"\",\"\",(INDIRECT($AH$5&$AG$6&T11)&\" + \"&IF(V11=1,$AB$1,IF(V11=100,$AB$3,$AB$5)))))","v":{"$error":"#REF!"}},{"$f":"IF(C11=\"\",\"\",IF(AND($O$7=$AB$7,W11=1),$AC$7,Q11))","v":""},null,null,"請求№",null,null,null,null,null,null,{"$f":"IF($O$8=\"\",\"\",IF(INDIRECT(AB11)=\"\",\"\",INDIRECT(AB11)-$O$8))","v":""},{"$f":"$L$5&$AD$7&REPT(\"　\",3-LEN($L$5))&$L$6&$AE$7&P11&$AF$7","v":"10℃保存　　　　　製造日より　　　　　日後検査"},{"$f":"IF(L11=\"\",\"\",ASC(L11)&COUNTIF($L$9:L11,L11))","v":""},{"$f":"IFERROR(IF(R11=\"\",\"\",INDEX(#REF!,MATCH(R11,#REF!,0),1)),\"\")","v":""},{"$f":"IF(L11=$AJ$5,\"\",IF(AND(S11=\"\",$AI$3=1),INDIRECT($AH$5&$AH$6&AA11),S11))","v":{"$error":"#REF!"}},{"$f":"IF(A11=\"\",\"\",IF($L$3=\"\",IF(AND(P11>89,P11<>\"\"),100,COUNTIF($A$9:A11,A11)),IF(AND(X11>89,X11<>\"\"),100,COUNTIF($A$9:A11,A11))))","v":""},{"$f":"IF($O$7=$AB$7,IF(U13=100,100,IF(U13=\"\",\"\",1)),IF(U11=100,100,1))","v":1},{"$f":"IF(A11=\"\",\"\",COUNTIF($A$9:A11,A11))","v":""},{"$f":"IF($O$8=\"\",\"\",IF(INDIRECT(AB11)=\"\",\"\",INDIRECT(AB11)-$L$3))","v":""},null,null,{"$f":"AA9+1","v":12},{"$f":"$O$1&ROW()","v":"O11"}]
[null,null,null,null,null,null,null,null,"(作成)","(発送)"]
[{"$f":"IFERROR(IF(OR(L13=$AJ$5,L13=\"\"),INDIRECT($AH$5&$AE$6&T13),L13),\"\")","v":""},null,{"$f":"IF(INDIRECT(AB13)=\"\",\"\",INDIRECT(AB13))","v":""},{"$f":"IFERROR(SUBSTITUTE(SUBSTITUTE(INDIRECT($AH$5&$AF$6&T13),$AD$5,\"\"),$AD$6,\"\"),\"\")","v":""},{"$f":"IF(T13=\"\",\"\",IF(INDIRECT($AH$5&$AG$6&T13)=\"\",\"\",(INDIRECT($AH$5&$AG$6&T13)&\" + \"&IF(V13=1,$AB$1,IF(V13=100,$AB$3,$AB$5)))))","v":{"$error":"#REF!"}},{"$f":"IF(C13=\"\",\"\",IF(AND($O$7=$AB$7,W13=1),$AC$7,Q13))","v":""},null,null,"請求№",null,null,null,null,null,null,{"$f":"IF($O$8=\"\",\"\",IF(INDIRECT(AB13)=\"\",\"\",INDIRECT(AB13)-$O$8))","v":""},{"$f":"$L$5&$AD$7&REPT(\"　\",3-LEN($L$5))&$L$6&$AE$7&P13&$AF$7","v":"10℃保存　　　　　製造日より　　　　　日後検査"},{"$f":"IF(L13=\"\",\"\",ASC(L13)&COUNTIF($L$9:L13,L13))","v":""},{"$f":"IFERROR(IF(R13=\"\",\"\",INDEX(#REF!,MATCH(R13,#REF!,0),1)),\"\")","v":""},{"$f":"IF(L13=$AJ$5,\"\",IF(AND(S13=\"\",$AI$3=1),INDIRECT($AH$5&$AH$6&AA13),S13))","v":{"$error":"#REF!"}},{"$f":"IF(A13=\"\",\"\",IF($L$3=\"\",IF(AND(P13>89,P13<>\"\"),100,COUNTIF($A$9:A13,A13)),IF(AND(X13>89,X13<>\"\"),100,COUNTIF($A$9:A13,A13))))","v":""},{"$f":"IF($O$7=$AB$7,IF(U15=100,100,IF(U15=\"\",\"\",1)),IF(U13=100,100,1))","v":1},{"$f":"IF(A13=\"\",\"\",COUNTIF($A$9:A13,A13))","v":""},{"$f":"IF($O$8=\"\",\"\",IF(INDIRECT(AB13)=\"\",\"\",INDIRECT(AB13)-$L$3))","v":""},null,null,{"$f":"AA11+1","v":13},{"$f":"$O$1&ROW()","v":"O13"}]
[null,null,null,null,null,null,null,null,"(作成)","(発送)"]
[{"$f":"IFERROR(IF(OR(L15=$AJ$5,L15=\"\"),INDIRECT($AH$5&$AE$6&T15),L15),\"\")","v":""},null,{"$f":"IF(INDIRECT(AB15)=\"\",\"\",INDIRECT(AB15))","v":""},{"$f":"IFERROR(SUBSTITUTE(SUBSTITUTE(INDIRECT($AH$5&$AF$6&T15),$AD$5,\"\"),$AD$6,\"\"),\"\")","v":""},{"$f":"IF(T15=\"\",\"\",IF(INDIRECT($AH$5&$AG$6&T15)=\"\",\"\",(INDIRECT($AH$5&$AG$6&T15)&\" + \"&IF(V15=1,$AB$1,IF(V15=100,$AB$3,$AB$5)))))","v":{"$error":"#REF!"}},{"$f":"IF(C15=\"\",\"\",IF(AND($O$7=$AB$7,W15=1),$AC$7,Q15))","v":""},null,null,"請求№",null,null,null,null,null,null,{"$f":"IF($O$8=\"\",\"\",IF(INDIRECT(AB15)=\"\",\"\",INDIRECT(AB15)-$O$8))","v":""},{"$f":"$L$5&$AD$7&REPT(\"　\",3-LEN($L$5))&$L$6&$AE$7&P15&$AF$7","v":"10℃保存　　　　　製造日より　　　　　日後検査"},{"$f":"IF(L15=\"\",\"\",ASC(L15)&COUNTIF($L$9:L15,L15))","v":""},{"$f":"IFERROR(IF(R15=\"\",\"\",INDEX(#REF!,MATCH(R15,#REF!,0),1)),\"\")","v":""},{"$f":"IF(L15=$AJ$5,\"\",IF(AND(S15=\"\",$AI$3=1),INDIRECT($AH$5&$AH$6&AA15),S15))","v":{"$error":"#REF!"}},{"$f":"IF(A15=\"\",\"\",IF($L$3=\"\",IF(AND(P15>89,P15<>\"\"),100,COUNTIF($A$9:A15,A15)),IF(AND(X15>89,X15<>\"\"),100,COUNTIF($A$9:A15,A15))))","v":""},{"$f":"IF($O$7=$AB$7,IF(U17=100,100,IF(U17=\"\",\"\",1)),IF(U15=100,100,1))","v":1},{"$f":"IF(A15=\"\",\"\",COUNTIF($A$9:A15,A15))","v":""},{"$f":"IF($O$8=\"\",\"\",IF(INDIRECT(AB15)=\"\",\"\",INDIRECT(AB15)-$L$3))","v":""},null,null,{"$f":"AA13+1","v":14},{"$f":"$O$1&ROW()","v":"O15"}]
[null,null,null,null,null,null,null,null,"(作成)","(発送)"]
[{"$f":"IFERROR(IF(OR(L17=$AJ$5,L17=\"\"),INDIRECT($AH$5&$AE$6&T17),L17),\"\")","v":""},null,{"$f":"IF(INDIRECT(AB17)=\"\",\"\",INDIRECT(AB17))","v":""},{"$f":"IFERROR(SUBSTITUTE(SUBSTITUTE(INDIRECT($AH$5&$AF$6&T17),$AD$5,\"\"),$AD$6,\"\"),\"\")","v":""},{"$f":"IF(T17=\"\",\"\",IF(INDIRECT($AH$5&$AG$6&T17)=\"\",\"\",(INDIRECT($AH$5&$AG$6&T17)&\" + \"&IF(V17=1,$AB$1,IF(V17=100,$AB$3,$AB$5)))))","v":{"$error":"#REF!"}},{"$f":"IF(C17=\"\",\"\",IF(AND($O$7=$AB$7,W17=1),$AC$7,Q17))","v":""},null,null,"請求№",null,null,null,null,null,null,{"$f":"IF($O$8=\"\",\"\",IF(INDIRECT(AB17)=\"\",\"\",INDIRECT(AB17)-$O$8))","v":""},{"$f":"$L$5&$AD$7&REPT(\"　\",3-LEN($L$5))&$L$6&$AE$7&P17&$AF$7","v":"10℃保存　　　　　製造日より　　　　　日後検査"},{"$f":"IF(L17=\"\",\"\",ASC(L17)&COUNTIF($L$9:L17,L17))","v":""},{"$f":"IFERROR(IF(R17=\"\",\"\",INDEX(#REF!,MATCH(R17,#REF!,0),1)),\"\")","v":""},{"$f":"IF(L17=$AJ$5,\"\",IF(AND(S17=\"\",$AI$3=1),INDIRECT($AH$5&$AH$6&AA17),S17))","v":{"$error":"#REF!"}},{"$f":"IF(A17=\"\",\"\",IF($L$3=\"\",IF(AND(P17>89,P17<>\"\"),100,COUNTIF($A$9:A17,A17)),IF(AND(X17>89,X17<>\"\"),100,COUNTIF($A$9:A17,A17))))","v":""},{"$f":"IF($O$7=$AB$7,IF(U19=100,100,IF(U19=\"\",\"\",1)),IF(U17=100,100,1))","v":1},{"$f":"IF(A17=\"\",\"\",COUNTIF($A$9:A17,A17))","v":""},{"$f":"IF($O$8=\"\",\"\",IF(INDIRECT(AB17)=\"\",\"\",INDIRECT(AB17)-$L$3))","v":""},null,null,{"$f":"AA15+1","v":15},{"$f":"$O$1&ROW()","v":"O17"}]
[null,null,null,null,null,null,null,null,"(作成)","(発送)"]
[{"$f":"IFERROR(IF(OR(L19=$AJ$5,L19=\"\"),INDIRECT($AH$5&$AE$6&T19),L19),\"\")","v":""},null,{"$f":"IF(INDIRECT(AB19)=\"\",\"\",INDIRECT(AB19))","v":""},{"$f":"IFERROR(SUBSTITUTE(SUBSTITUTE(INDIRECT($AH$5&$AF$6&T19),$AD$5,\"\"),$AD$6,\"\"),\"\")","v":""},{"$f":"IF(T19=\"\",\"\",IF(INDIRECT($AH$5&$AG$6&T19)=\"\",\"\",(INDIRECT($AH$5&$AG$6&T19)&\" + \"&IF(V19=1,$AB$1,IF(V19=100,$AB$3,$AB$5)))))","v":{"$error":"#REF!"}},{"$f":"IF(C19=\"\",\"\",IF(AND($O$7=$AB$7,W19=1),$AC$7,Q19))","v":""},null,null,"請求№",null,null,null,null,null,null,{"$f":"IF($O$8=\"\",\"\",IF(INDIRECT(AB19)=\"\",\"\",INDIRECT(AB19)-$O$8))","v":""},{"$f":"$L$5&$AD$7&REPT(\"　\",3-LEN($L$5))&$L$6&$AE$7&P19&$AF$7","v":"10℃保存　　　　　製造日より　　　　　日後検査"},{"$f":"IF(L19=\"\",\"\",ASC(L19)&COUNTIF($L$9:L19,L19))","v":""},{"$f":"IFERROR(IF(R19=\"\",\"\",INDEX(#REF!,MATCH(R19,#REF!,0),1)),\"\")","v":""},{"$f":"IF(L19=$AJ$5,\"\",IF(AND(S19=\"\",$AI$3=1),INDIRECT($AH$5&$AH$6&AA19),S19))","v":{"$error":"#REF!"}},{"$f":"IF(A19=\"\",\"\",IF($L$3=\"\",IF(AND(P19>89,P19<>\"\"),100,COUNTIF($A$9:A19,A19)),IF(AND(X19>89,X19<>\"\"),100,COUNTIF($A$9:A19,A19))))","v":""},{"$f":"IF($O$7=$AB$7,IF(U21=100,100,IF(U21=\"\",\"\",1)),IF(U19=100,100,1))","v":1},{"$f":"IF(A19=\"\",\"\",COUNTIF($A$9:A19,A19))","v":""},{"$f":"IF($O$8=\"\",\"\",IF(INDIRECT(AB19)=\"\",\"\",INDIRECT(AB19)-$L$3))","v":""},null,null,{"$f":"AA17+1","v":16},{"$f":"$O$1&ROW()","v":"O19"}]
[null,null,null,null,null,null,null,null,"(作成)","(発送)"]
[{"$f":"IFERROR(IF(OR(L21=$AJ$5,L21=\"\"),INDIRECT($AH$5&$AE$6&T21),L21),\"\")","v":""},null,{"$f":"IF(INDIRECT(AB21)=\"\",\"\",INDIRECT(AB21))","v":""},{"$f":"IFERROR(SUBSTITUTE(SUBSTITUTE(INDIRECT($AH$5&$AF$6&T21),$AD$5,\"\"),$AD$6,\"\"),\"\")","v":""},{"$f":"IF(T21=\"\",\"\",IF(INDIRECT($AH$5&$AG$6&T21)=\"\",\"\",(INDIRECT($AH$5&$AG$6&T21)&\" + \"&IF(V21=1,$AB$1,IF(V21=100,$AB$3,$AB$5)))))","v":{"$error":"#REF!"}},{"$f":"IF(C21=\"\",\"\",IF(AND($O$7=$AB$7,W21=1),$AC$7,Q21))","v":""},null,null,"請求№",null,null,null,null,null,null,{"$f":"IF($O$8=\"\",\"\",IF(INDIRECT(AB21)=\"\",\"\",INDIRECT(AB21)-$O$8))","v":""},{"$f":"$L$5&$AD$7&REPT(\"　\",3-LEN($L$5))&$L$6&$AE$7&P21&$AF$7","v":"10℃保存　　　　　製造日より　　　　　日後検査"},{"$f":"IF(L21=\"\",\"\",ASC(L21)&COUNTIF($L$9:L21,L21))","v":""},{"$f":"IFERROR(IF(R21=\"\",\"\",INDEX(#REF!,MATCH(R21,#REF!,0),1)),\"\")","v":""},{"$f":"IF(L21=$AJ$5,\"\",IF(AND(S21=\"\",$AI$3=1),INDIRECT($AH$5&$AH$6&AA21),S21))","v":{"$error":"#REF!"}},{"$f":"IF(A21=\"\",\"\",IF($L$3=\"\",IF(AND(P21>89,P21<>\"\"),100,COUNTIF($A$9:A21,A21)),IF(AND(X21>89,X21<>\"\"),100,COUNTIF($A$9:A21,A21))))","v":""},{"$f":"IF($O$7=$AB$7,IF(U23=100,100,IF(U23=\"\",\"\",1)),IF(U21=100,100,1))","v":1},{"$f":"IF(A21=\"\",\"\",COUNTIF($A$9:A21,A21))","v":""},{"$f":"IF($O$8=\"\",\"\",IF(INDIRECT(AB21)=\"\",\"\",INDIRECT(AB21)-$L$3))","v":""},null,null,{"$f":"AA19+1","v":17},{"$f":"$O$1&ROW()","v":"O21"}]
[null,null,null,null,null,null,null,null,"(作成)","(発送)"]
[{"$f":"IFERROR(IF(OR(L23=$AJ$5,L23=\"\"),INDIRECT($AH$5&$AE$6&T23),L23),\"\")","v":""},null,{"$f":"IF(INDIRECT(AB23)=\"\",\"\",INDIRECT(AB23))","v":""},{"$f":"IFERROR(SUBSTITUTE(SUBSTITUTE(INDIRECT($AH$5&$AF$6&T23),$AD$5,\"\"),$AD$6,\"\"),\"\")","v":""},{"$f":"IF(T23=\"\",\"\",IF(INDIRECT($AH$5&$AG$6&T23)=\"\",\"\",(INDIRECT($AH$5&$AG$6&T23)&\" + \"&IF(V23=1,$AB$1,IF(V23=100,$AB$3,$AB$5)))))","v":{"$error":"#REF!"}},{"$f":"IF(C23=\"\",\"\",IF(AND($O$7=$AB$7,W23=1),$AC$7,Q23))","v":""},null,null,"請求№",null,null,null,null,null,null,{"$f":"IF($O$8=\"\",\"\",IF(INDIRECT(AB23)=\"\",\"\",INDIRECT(AB23)-$O$8))","v":""},{"$f":"$L$5&$AD$7&REPT(\"　\",3-LEN($L$5))&$L$6&$AE$7&P23&$AF$7","v":"10℃保存　　　　　製造日より　　　　　日後検査"},{"$f":"IF(L23=\"\",\"\",ASC(L23)&COUNTIF($L$9:L23,L23))","v":""},{"$f":"IFERROR(IF(R23=\"\",\"\",INDEX(#REF!,MATCH(R23,#REF!,0),1)),\"\")","v":""},{"$f":"IF(L23=$AJ$5,\"\",IF(AND(S23=\"\",$AI$3=1),INDIRECT($AH$5&$AH$6&AA23),S23))","v":{"$error":"#REF!"}},{"$f":"IF(A23=\"\",\"\",IF($L$3=\"\",IF(AND(P23>89,P23<>\"\"),100,COUNTIF($A$9:A23,A23)),IF(AND(X23>89,X23<>\"\"),100,COUNTIF($A$9:A23,A23))))","v":""},{"$f":"IF($O$7=$AB$7,IF(U25=100,100,IF(U25=\"\",\"\",1)),IF(U23=100,100,1))","v":1},{"$f":"IF(A23=\"\",\"\",COUNTIF($A$9:A23,A23))","v":""},{"$f":"IF($O$8=\"\",\"\",IF(INDIRECT(AB23)=\"\",\"\",INDIRECT(AB23)-$L$3))","v":""},null,null,{"$f":"AA21+1","v":18},{"$f":"$O$1&ROW()","v":"O23"}]
[null,null,null,null,null,null,null,null,"(作成)","(発送)"]
[{"$f":"IFERROR(IF(OR(L25=$AJ$5,L25=\"\"),INDIRECT($AH$5&$AE$6&T25),L25),\"\")","v":""},null,{"$f":"IF(INDIRECT(AB25)=\"\",\"\",INDIRECT(AB25))","v":""},{"$f":"IFERROR(SUBSTITUTE(SUBSTITUTE(INDIRECT($AH$5&$AF$6&T25),$AD$5,\"\"),$AD$6,\"\"),\"\")","v":""},{"$f":"IF(T25=\"\",\"\",IF(INDIRECT($AH$5&$AG$6&T25)=\"\",\"\",(INDIRECT($AH$5&$AG$6&T25)&\" + \"&IF(V25=1,$AB$1,IF(V25=100,$AB$3,$AB$5)))))","v":{"$error":"#REF!"}},{"$f":"IF(C25=\"\",\"\",IF(AND($O$7=$AB$7,W25=1),$AC$7,Q25))","v":""},null,null,"請求№",null,null,null,null,null,null,{"$f":"IF($O$8=\"\",\"\",IF(INDIRECT(AB25)=\"\",\"\",INDIRECT(AB25)-$O$8))","v":""},{"$f":"$L$5&$AD$7&REPT(\"　\",3-LEN($L$5))&$L$6&$AE$7&P25&$AF$7","v":"10℃保存　　　　　製造日より　　　　　日後検査"},{"$f":"IF(L25=\"\",\"\",ASC(L25)&COUNTIF($L$9:L25,L25))","v":""},{"$f":"IFERROR(IF(R25=\"\",\"\",INDEX(#REF!,MATCH(R25,#REF!,0),1)),\"\")","v":""},{"$f":"IF(L25=$AJ$5,\"\",IF(AND(S25=\"\",$AI$3=1),INDIRECT($AH$5&$AH$6&AA25),S25))","v":{"$error":"#REF!"}},{"$f":"IF(A25=\"\",\"\",IF($L$3=\"\",IF(AND(P25>89,P25<>\"\"),100,COUNTIF($A$9:A25,A25)),IF(AND(X25>89,X25<>\"\"),100,COUNTIF($A$9:A25,A25))))","v":""},{"$f":"IF($O$7=$AB$7,IF(U27=100,100,IF(U27=\"\",\"\",1)),IF(U25=100,100,1))","v":1},{"$f":"IF(A25=\"\",\"\",COUNTIF($A$9:A25,A25))","v":""},{"$f":"IF($O$8=\"\",\"\",IF(INDIRECT(AB25)=\"\",\"\",INDIRECT(AB25)-$L$3))","v":""},null,null,{"$f":"AA23+1","v":19},{"$f":"$O$1&ROW()","v":"O25"}]
[null,null,null,null,null,null,null,null,"(作成)","(発送)"]
[{"$f":"IFERROR(IF(OR(L27=$AJ$5,L27=\"\"),INDIRECT($AH$5&$AE$6&T27),L27),\"\")","v":""},null,"",{"$f":"IFERROR(SUBSTITUTE(SUBSTITUTE(INDIRECT($AH$5&$AF$6&T27),$AD$5,\"\"),$AD$6,\"\"),\"\")","v":""},{"$f":"IF(T27=\"\",\"\",IF(INDIRECT($AH$5&$AG$6&T27)=\"\",\"\",(INDIRECT($AH$5&$AG$6&T27)&\" + \"&IF(V27=1,$AB$1,IF(V27=100,$AB$3,$AB$5)))))","v":{"$error":"#REF!"}},{"$f":"IF(C27=\"\",\"\",IF(AND($O$7=$AB$7,W27=1),$AC$7,Q27))","v":""},null,null,"請求№",null,null,null,null,null,null,{"$f":"IF($O$8=\"\",\"\",IF(INDIRECT(AB27)=\"\",\"\",INDIRECT(AB27)-$O$8))","v":""},{"$f":"$L$5&$AD$7&REPT(\"　\",3-LEN($L$5))&$L$6&$AE$7&P27&$AF$7","v":"10℃保存　　　　　製造日より　　　　　日後検査"},{"$f":"IF(L27=\"\",\"\",ASC(L27)&COUNTIF($L$9:L27,L27))","v":""},{"$f":"IFERROR(IF(R27=\"\",\"\",INDEX(#REF!,MATCH(R27,#REF!,0),1)),\"\")","v":""},{"$f":"IF(L27=$AJ$5,\"\",IF(AND(S27=\"\",$AI$3=1),INDIRECT($AH$5&$AH$6&AA27),S27))","v":{"$error":"#REF!"}},{"$f":"IF(A27=\"\",\"\",IF($L$3=\"\",IF(AND(P27>89,P27<>\"\"),100,COUNTIF($A$9:A27,A27)),IF(AND(X27>89,X27<>\"\"),100,COUNTIF($A$9:A27,A27))))","v":""},{"$f":"IF($O$7=$AB$7,IF(U29=100,100,IF(U29=\"\",\"\",1)),IF(U27=100,100,1))","v":1},{"$f":"IF(A27=\"\",\"\",COUNTIF($A$9:A27,A27))","v":""},{"$f":"IF($O$8=\"\",\"\",IF(INDIRECT(AB27)=\"\",\"\",INDIRECT(AB27)-$L$3))","v":""},null,null,{"$f":"AA25+1","v":20},{"$f":"$O$1&ROW()","v":"O27"}]
[null,null,null,null,null,null,null,null,"(作成)","(発送)"]
["備　考",{"$f":"O34&TEXT(O8,\"yyyy年m月d日\")","v":"〇製造日：　1900年1月0日"},null,null,"技術部",null,"ご依頼者様　確認サイン欄\n\n※太枠内のご依頼内容をご確認の上、\n印またはサインをお願い致します。"]
[null,"〇製造日を0日目とする。　",null,null,"担当者"]
[null,"〇安全係数0.8　",null,null,"日付印or"]
[null,{"$f":"O35&L5&O5","v":"〇保管温度：10℃"},null,null,"サイン欄"]
[null,"※90日設定（製造日より113日後検査）",null,null,null,null,"　令和元年　　　月　　　日"]
[null,"※365日設定",null,null,null,null,null,null,null,null,null,null,null,null,"〇製造日：　"]
[null,"※1　冷凍食品規格による（加熱後包装）",null,null,null,null,null,null,null,null,null,null,null,null,"〇保管温度："]
[null,{"$f":"IF(O29=\"\",\"\",O36&L6&O29)","v":""},null,null,null,null,null,null,null,null,null,null,null,null,"☆"]

{"sheet":"依2","index":2,"n_rows":252,"n_cols":112,"rows_kept":252,"cut":false,"hidden":true,"merged":[[130,9,130,21],[130,22,130,31],[131,9,131,21],[131,22,131,31],[132,9,132,21],[132,22,132,31],[127,9,127,21],[127,22,127,31],[128,9,128,21],[128,22,128,31],[129,9,129,21],[129,22,129,31],[124,9,124,21],[124,22,124,31],[125,9,125,21],[125,22,125,31],[126,9,126,21],[126,22,126,31],[121,9,121,21],[121,22,121,31],[122,9,122,21],[122,22,122,31],[123,9,123,21],[123,22,123,31],[118,9,118,21],[118,22,118,31],[119,9,119,21],[119,22,119,31],[120,9,120,21],[120,22,120,31],[115,9,115,21],[115,22,115,31],[116,9,116,21],[116,22,116,31],[117,9,117,21],[117,22,117,31],[112,9,112,21],[112,22,112,31],[113,9,113,21],[113,22,113,31],[114,9,114,21],[114,22,114,31],[109,9,109,21],[109,22,109,31],[110,9,110,21],[110,22,110,31],[111,9,111,21],[111,22,111,31],[106,9,106,21],[106,22,106,31],[107,9,107,21],[107,22,107,31],[108,9,108,21],[108,22,108,31],[103,9,103,21],[103,22,103,31],[104,9,104,21],[104,22,104,31],[105,9,105,21],[105,22,105,31],[100,9,100,21],[100,22,100,31],[101,9,101,21],[101,22,101,31],[102,9,102,21],[102,22,102,31],[97,9,97,21],[97,22,97,31],[98,9,98,21],[98,22,98,31],[99,9,99,21],[99,22,99,31],[94,9,94,21],[94,22,94,31],[95,9,95,21],[95,22,95,31],[96,9,96,21],[96,22,96,31],[91,9,91,21],[91,22,91,31],[92,9,92,21],[92,22,92,31],[93,9,93,21],[93,22,93,31],[88,9,88,21],[88,22,88,31],[89,9,89,21],[89,22,89,31],[90,9,90,21],[90,22,90,31],[85,9,85,21],[85,22,85,31],[86,9,86,21],[86,22,86,31],[87,9,87,21],[87,22,87,31],[82,9,82,21],[82,22,82,31],[83,9,83,21],[83,22,83,31],[84,9,84,21],[84,22,84,31],[79,9,79,21],[79,22,79,31],[80,9,80,21],[80,22,80,31],[81,9,81,21],[81,22,81,31],[76,9,76,21],[76,22,76,31],[77,9,77,21],[77,22,77,31],[78,9,78,21],[78,22,78,31],[72,9,72,21],[73,9,73,21],[73,22,73,31],[74,9,74,21],[74,22,74,31],[75,9,75,21],[75,22,75,31],[62,11,62,39],[64,30,65,32],[64,33,65,40],[66,9,66,39],[67,8,68,8],[67,9,68,39],[56,11,56,39],[57,11,57,39],[58,11,58,39],[59,11,59,39],[60,11,60,39],[61,11,61,39],[52,11,52,39],[53,11,53,39],[54,8,54,10],[54,11,54,39],[55,8,55,10],[55,11,55,39],[47,8,48,10],[48,11,48,39],[49,11,49,39],[50,8,50,10],[50,11,50,39],[51,11,51,39],[44,8,44,10],[44,11,44,34],[45,8,45,10],[45,11,45,34],[46,8,46,10],[46,11,46,34],[41,8,41,10],[41,11,41,34],[42,8,42,10],[42,11,42,34],[43,8,43,10],[43,11,43,34],[37,36,38,39],[38,8,38,10],[38,11,38,34],[39,8,39,10],[39,11,39,34],[40,8,40,10],[40,11,40,34],[32,8,34,10],[32,11,34,39],[36,8,36,13],[36,14,36,15],[36,16,36,22],[36,24,36,25],[36,26,36,32],[36,34,36,35],[36,36,36,38],[29,8,29,10],[29,11,29,39],[30,8,30,10],[30,11,30,39],[31,8,31,10],[31,11,31,39],[24,33,24,39],[25,8,25,10],[25,11,25,21],[25,22,25,24],[25,33,25,39],[27,8,27,10],[27,11,27,15],[27,16,27,17],[27,18,27,39],[24,8,24,10],[24,11,24,15],[24,16,24,17],[24,18,24,24],[24,25,24,26],[24,27,24,31],[10,8,10,16],[10,33,10,39],[11,8,11,22],[11,25,11,31],[12,8,12,22],[12,25,12,31],[21,8,21,10],[21,11,21,31],[21,33,23,39],[22,8,22,10],[22,11,22,31],[23,8,23,10],[23,11,23,31],[13,8,13,22],[13,29,13,31],[13,33,13,39],[16,32,16,39],[17,32,17,39],[20,8,20,12],[20,13,20,27]]}
[null,null,null,null,null,null,null,null,null,null,null,null,null,null,null,null,null,null,null,null,null,null,null,null,null,null,null,null,null,null,null,null,null,null,null,null,null,null,null,null,null,null,null,null,null,null,{"$f":"LEFT(ADDRESS(ROW(),COLUMN(),4,1),LEN(ADDRESS(ROW(),COLUMN(),4,1))-LEN(ROW()))","v":"AU"},null,null,{"$f":"LEFT(ADDRESS(ROW(),COLUMN(),4,1),LEN(ADDRESS(ROW(),COLUMN(),4,1))-LEN(ROW()))","v":"AX"},null,null,null,null,null,{"$f":"LEFT(ADDRESS(ROW(),COLUMN(),4,1),LEN(ADDRESS(ROW(),COLUMN(),4,1))-LEN(ROW()))","v":"BD"},{"$f":"LEFT(ADDRESS(ROW(),COLUMN(),4,1),LEN(ADDRESS(ROW(),COLUMN(),4,1))-LEN(ROW()))","v":"BE"},{"$f":"LEFT(ADDRESS(ROW(),COLUMN(),4,1),LEN(ADDRESS(ROW(),COLUMN(),4,1))-LEN(ROW()))","v":"BF"},null,null,null,null,null,null,null,{"$f":"LEFT(ADDRESS(ROW(),COLUMN(),4,1),LEN(ADDRESS(ROW(),COLUMN(),4,1))-LEN(ROW()))","v":"BN"}]
[null,null,null,null,null,null,null,null,null,null,null,null,null,null,null,null,null,null,null,null,null,null,null,null,null,null,null,null,null,null,null,null,null,null,null,null,null,null,null,null,null,null,null,null,null,null,"空白"," ",null,null,null,null,null,null,null,null,null,null,null,null,"データ集約!",null,null,null,null,null,null,null,null,null,null,null,null,null,null,null,null,null,null,null,null,null,null,null,null,null,null,"依頼書データ!A:A"]
[null,null,null,null,null,null,null,null,null,null,null,null,null,null,null,null,null,null,null,null,null,null,null,null,null,null,null,null,null,null,null,null,null,null,null,null,null,null,null,null,null,null,null,null,null,null,"依頼書データ!",null,null,null,null,null,null,null,null,null,null,null,null,null,"施設名：同上"]
[]
[null,null,null,null,null,null,null,null,null,null,null,null,null,null,null,null,null,null,null,null,null,null,null,null,null,null,null,null,null,null,null,null,null,null,null,null,null,null,null,null,null,null,null,null,null,null,null,null,"担当者：","TEL:","〒","住所:"]
[]
[]
[]
[null,null,null,null,null,null,null,null,null,null,null,null,null,null,null,null,null,null,null,null,null,null,null,null,null,null,null,null,null,null,null,null,null,null,null,null,null,null,null,null,null,null,null,null,null,null,null,{"$f":"#REF!","v":{"$error":"#REF!"}},{"$f":"#REF!","v":{"$error":"#REF!"}},{"$f":"#REF!","v":{"$error":"#REF!"}},{"$f":"#REF!","v":{"$error":"#REF!"}},{"$f":"#REF!","v":{"$error":"#REF!"}}]
[]
[null,null,null,null,null,null,null,null,"検査依頼書",null,null,null,null,null,null,null,null,null,null,null,null,null,null,null,null,null,null,null,null,null,null,null,null,{"$f":"AV12&AX11&AY12","v":{"$error":"#REF!"}},null,null,null,null,null,null,null,null,null,null,null,null,null,null,null,"-",null,null,null,null,null,null,null,null,null,null,null,null,null,null,null,null,null,null,"P",null,null,null,null,null,null,null,null,null,null,null,null,null,null,null,null,null,"タブ情報"]
[null,null,null,null,null,null,null,null,"一般財団法人　茨城県薬剤師会検査センター",null,null,null,null,null,null,null,null,null,null,null,null,null,null,null,null,"依頼書番号",null,null,null,null,null,null,null,{"$f":"AV50","v":{"$error":"#REF!"}},null,null,null,null,null,null,null,null,null,null,null,null,"A",{"$f":"INDIRECT($AU$3&AU12&($CJ$12+1))","v":{"$error":"#REF!"}},null,"B",{"$f":"INDIRECT($AU$3&AX12&($CJ$14+$CJ$12))","v":{"$error":"#REF!"}},null,null,null,null,null,null,null,null,null,null,null,null,null,null,null,null,null,null,null,null,null,null,null,null,null,null,null,null,null,null,null,null,null,null,null,{"$f":"RIGHT(CELL(\"filename\",AE8),LEN(CELL(\"filename\",AE8))-FIND(\"]\",CELL(\"filename\",AE8)))","v":"依2"},{"$f":"#REF!","v":{"$error":"#REF!"}}]
[null,null,null,null,null,null,null,null,"〒310-0852　茨城県水戸市笠原町978-47",null,null,null,null,null,null,null,null,null,null,null,null,null,null,null,null,{"$f":"AH11","v":{"$error":"#REF!"}}]
[null,null,null,null,null,null,null,null,"TEL：029-306-9086　FAX：029-306-9076",null,null,null,null,null,null,null,null,null,null,null,null,null,null,null,null,null,null,null,null,{"$f":"AH12","v":{"$error":"#REF!"}},null,null,null,"ラベル",null,null,null,null,null,null,null,null,null,null,null,null,null,null,null,null,null,"BP",{"$f":"IFERROR(IF(INDIRECT($AU$3&AZ14&($CJ$14+$CJ$12))=\"\",0,INDIRECT($AU$3&AZ14&($CJ$14+$CJ$12))),0)","v":0},null,null,null,null,null,null,null,null,null,null,null,null,null,null,null,null,null,null,null,null,null,null,null,null,null,null,null,null,null,null,null,null,"行番号","@ORD_SAMPLE",{"$f":"MATCH(CI14,INDIRECT(CJ2),0)","v":{"$error":"#REF!"}}]
[]
[null,null,null,null,null,null,null,null,"採取・回収",null,null,"番号記入",null,null,null,"依頼入力",null,null,"成績発送",null,null,null,"請求作成",null,null,"請求発送",null,null,null,"確認",null,null,null,null,null,null,null,null,null,null,null,null,null,"データ集約",null,null,null,"1=依頼書データ!H10"]
[]
[null,null,null,null,null,null,null,null,null,null,null,null,null,null,null,null,null,null,null,null,null,null,null,null,null,null,null,null,null,null,null,null,null,null,null,null,null,null,null,null,null,null,null,null,null,null,null,null,null,null,null,null,null,null,null,null,null,null,null," 受付日 　　    　　　年　　　月　　　日",null,null,null,null,null,null,"他（合計"]
[null,null,null,null,null,null,null,null,null,null,null,null,null,null,null,null,null,null,null,null,null,null,null,null,null,null,null,null,null,null,null,null,null,null,null,null,null,null,null,null,null,null,null,"ラベル",null,null,null,null,null,null,null,null,null,null,null,null,null,null,null," 受付日　　　",null,null,null,null,null,null,"件）別紙参照"]
[]
[null,null,null,null,null,null,null,null,"ご依頼者",null,null,null,null,"太枠内へのご記入をお願いいたします。"]
[null,null,null,null,null,null,null,null,"ふりがな",null,null,{"$f":"AV22&\"-\"&AY22","v":{"$error":"#REF!"}},null,null,null,null,null,null,null,null,null,null,null,null,null,null,null,null,null,null,null,null,null,"左記ご依頼者名と異なる内容で成績書又は請求書が必要な場合は、備考欄 にご記入ください。",null,null,null,null,null,null,null,null,null,null,null,null,"H",{"$f":"INDIRECT($AU$3&$AU22&($CJ$12+1))","v":{"$error":"#REF!"}},null,"I",{"$f":"INDIRECT($AU$3&AX22&($CJ$12+1))","v":{"$error":"#REF!"}}]
[null,null,null,null,null,null,null,null,"氏名",null,null,{"$f":"AV23","v":{"$error":"#REF!"}},null,null,null,null,null,null,null,null,null,null,null,null,null,null,null,null,null,null,null,null,null,null,null,null,null,null,null,null,null,null,null,null,null,null,"J",{"$f":"INDIRECT($AU$3&AU23&($CJ$12+1))","v":{"$error":"#REF!"}},null,"R",{"$f":"INDIRECT($AU$3&AX23&($CJ$12+1))","v":{"$error":"#REF!"}}]
[null,null,null,null,null,null,null,null,"住所",null,null,{"$f":"AY24","v":{"$error":"#REF!"}},null,null,null,null,null,null,null,null,null,null,null,null,null,null,null,null,null,null,null,null,null,null,null,null,null,null,null,null,null,null,null,null,null,null,"O",{"$f":"INDIRECT($AU$3&AU24&($CJ$12+1))","v":{"$error":"#REF!"}},{"$f":"LEFT(AV24,3)&\"-\"&RIGHT(AV24,4)","v":{"$error":"#REF!"}},"L",{"$f":"INDIRECT($AU$3&AX24&($CJ$12+1))","v":{"$error":"#REF!"}},null,null,"(",")","-　"]
[null,null,null,null,null,null,null,null,"郵便番号",null,null,{"$f":"AW24","v":{"$error":"#REF!"}},null,null,null,null,"TEL",null,{"$f":"AV25","v":{"$error":"#REF!"}},null,null,null,null,null,null,"FAX",null,{"$f":"AV26","v":{"$error":"#REF!"}},null,null,null,null,null,{"$f":"BH25","v":" 受付日 　　    　　　年　　　月　　　日"},null,null,null,null,null,null,null,null,null,null,null,null,"P",{"$f":"INDIRECT($AU$3&AU25&($CJ$12+1))","v":{"$error":"#REF!"}},null,{"$f":"IFERROR(IF(AV25=\"\",\"\",LEFT(AV25,FIND(\"-\",AV25)-1)),\"\")","v":""},{"$f":"IF(AX25=\"\",\"\",MID(AV25,FIND(\"-\",AV25)+1,10))","v":""},{"$f":"IFERROR(IF(AX25=\"\",\"\",LEFT(AY25,FIND(\"-\",AY25)-1)),\"\")","v":""},{"$f":"IFERROR(IF(AX25=\"\",\"\",MID(AY25,FIND(\"-\",AY25)+1,10)),\"\")","v":""},{"$f":"IFERROR(IF(AX25=\"\",\"\",AX25&$BB$24&AZ25&$BC$24&BA25),\"\")","v":""},null,"　　　　　　（　　　　）",null,null,null,{"$f":"IFERROR(IF(#REF!=\"\",BH18,BH19&TEXT(#REF!,\"yyyy年mm月dd日\")),BH18)","v":" 受付日 　　    　　　年　　　月　　　日"},null,null,null,"FO"]
[null,null,null,null,null,null,null,null,"ご担当者",null,null,{"$f":"AY23","v":{"$error":"#REF!"}},null,null,null,null,null,null,null,null,null,null,"携帯",null,null,null,null,null,null,null,null,null,null,"  同時発送",null,null,null,null,null,null,null,null,null,null,null,null,"Q",{"$f":"INDIRECT($AU$3&AU26&($CJ$12+1))","v":{"$error":"#REF!"}},null,{"$f":"IFERROR(IF(AV26=\"\",\"\",LEFT(AV26,FIND(\"-\",AV26)-1)),\"\")","v":""},{"$f":"IF(AX26=\"\",\"\",MID(AV26,FIND(\"-\",AV26)+1,10))","v":""},{"$f":"IFERROR(IF(AX26=\"\",\"\",LEFT(AY26,FIND(\"-\",AY26)-1)),\"\")","v":""},{"$f":"IFERROR(IF(AX26=\"\",\"\",MID(AY26,FIND(\"-\",AY26)+1,10)),\"\")","v":""},{"$f":"IFERROR(IF(AX26=\"\",\"\",AX26&$BB$24&AZ26&$BC$24&BA26),\"\")","v":""},null,"　　　　　（　　　　）",null,"↓トリハロ",null,"↓VOCセット",null,"↓フェノールセット",null,"FJ"]
[]
[null,null,null,null,null,null,null,null,"検体種類",null,null,{"$f":"AV28","v":{"$error":"#REF!"}},null,null,null,null,{"$f":"IF(COUNTIF(BL25:BL26,AV50),BM28,BL28)","v":"採取\n容器"},null,{"$f":"IF(Q28=BM28,\"  \"&AV32,IF(AY28=0,\"　－\",BJ28)&BB28)","v":{"$error":"#REF!"}},null,null,null,null,null,null,null,null,null,null,null,null,null,null,null,null,null,null,null,null,null,null,null,null,null,null,null,"BQ",{"$f":"INDIRECT($AU$3&AU28&($CJ$14+$CJ$12))","v":{"$error":"#REF!"}},null,"BO",{"$f":"INDIRECT($AU$3&AX28&($CJ$14+$CJ$12))","v":{"$error":"#REF!"}},"BP",{"$f":"IFERROR(VLOOKUP(AV28&BA14,AW231:AX240,2,FALSE),IF(AND(SUM(IF(BA14=\"\",0,VALUE(BA14)),-DH69)=1,DD69>0),DH69,VALUE(BA14)))","v":0},{"$f":"IF(AY28=\"\",\"\",\" \"&\" \"&BB24&BA28&BC28)","v":{"$error":"#REF!"}},"本）",{"$f":"IF(DB69=0,AY28,DG72)","v":{"$error":"#REF!"}},null,{"$f":"IF(COUNTIF(L28,[1]採取マスタ!G201),SUBSTITUTE(BD28,[1]採取マスタ!H201,[1]採取マスタ!I201),BD28)","v":{"$error":"#REF!"}},null,{"$f":"IF(OR(COUNTIF(L28,[1]採取マスタ!K201),COUNTIF(L28,[1]採取マスタ!K202),COUNTIF(L28,[1]採取マスタ!K203)),BF28,SUBSTITUTE(BF28,[1]採取マスタ!L201,[1]採取マスタ!M201))","v":{"$error":"#REF!"}},null,{"$f":"IF(COUNTIF(BH28,[1]採取マスタ!K204),BH28,SUBSTITUTE(BH28,[1]採取マスタ!L204,[1]採取マスタ!M204))","v":{"$error":"#REF!"}},null,"採取\n容器","検体\n名称"]
[]
[null,null,null,null,null,null,null,null,"施設名",null,null,{"$f":"IF(AV30=BP34,\"\",IF(BI30=BI3,BI30,BK30))","v":{"$error":"#REF!"}},null,null,null,null,null,null,null,null,null,null,null,null,null,null,null,null,null,null,null,null,null,null,null,null,null,null,null,null,null,null,null,null,null,"施設名：","BR",{"$f":"INDIRECT($AU3&AU30&($CJ$14+$CJ$12))","v":{"$error":"#REF!"}},null,"BU",{"$f":"INDIRECT($AU$3&$AX$30&($CJ$14+$CJ$12))","v":{"$error":"#REF!"}},"CB",{"$f":"INDIRECT($AU3&AZ30&($CJ$14+$CJ$12))","v":{"$error":"#REF!"}},"BZ",{"$f":"INDIRECT($AU3&BB30&($CJ$14+$CJ$12))","v":{"$error":"#REF!"}},"BY",{"$f":"INDIRECT($AU3&BD30&($CJ$14+$CJ$12))","v":{"$error":"#REF!"}},"BV",{"$f":"INDIRECT($AU3&BF30&($CJ$14+$CJ$12))","v":{"$error":"#REF!"}},null,{"$f":"IF(AY30&BG30&BC30=AV23&AY24&AV25,BI3,AT30&AY30&AV2&BA30&AV2&BC30&AV2&BE30&AV2&BG30)","v":{"$error":"#REF!"}},{"$f":"LENB(BI30)","v":{"$error":"#REF!"}},{"$f":"AY30&AV2&BA30&AV2&BC30","v":{"$error":"#REF!"}},null,null,null,null,"学薬マスタ貼付け用",{"$f":"AV30","v":{"$error":"#REF!"}},{"$f":"AY30","v":{"$error":"#REF!"}},null,{"$f":"BE30","v":{"$error":"#REF!"}},{"$f":"BG30","v":{"$error":"#REF!"}},{"$f":"BC30","v":{"$error":"#REF!"}},{"$f":"IF(BC31=0,\"\",BC31)","v":{"$error":"#REF!"}}]
[null,null,null,null,null,null,null,null,{"$f":"IF(AV30=BP34,\"\",AV30)","v":{"$error":"#REF!"}},null,null,{"$f":"IF(AV30=BP34,BO31,IF(AV24&AV2&AY24=BK31,\"\",BK31))","v":{"$error":"#REF!"}},null,null,null,null,null,null,null,null,null,null,null,null,null,null,null,null,null,null,null,null,null,null,null,null,null,null,null,null,null,null,null,null,null,null,null,null,null,null,{"$f":"INDIRECT($AU$3&$AX$30&($CJ$14+$CJ$12))","v":{"$error":"#REF!"}},null,null,"CA",{"$f":"INDIRECT($AU4&BB31&($CJ$14+$CJ$12))","v":{"$error":"#REF!"}},null,null,null,null,null,"最大",96,{"$f":"BE30&AV2&BG30&AV2","v":{"$error":"#REF!"}},null,null,null,"住所：〒",null,"採取場所不要"]
[null,null,null,null,null,null,null,null,"採取場所",null,null,{"$f":"IF(COUNTIF(BQ32:BQ33,AV50),BQ34,BK32)","v":{"$error":"#REF!"}},null,null,null,null,null,null,null,null,null,null,null,null,null,null,null,null,null,null,null,null,null,null,null,null,null,null,null,null,null,null,null,null,null,"採取場所：","P",{"$f":"INDIRECT(AU$3&AU32&($CJ$14+$CJ$12))","v":{"$error":"#REF!"}},"検体項目：","D",{"$f":"INDIRECT($AU$3&AX32&($CJ$14+$CJ$12))","v":{"$error":"#REF!"}},"E",{"$f":"INDIRECT($AU$3&AZ32&($CJ$14+$CJ$12))","v":{"$error":"#REF!"}},"GL",{"$f":"VALUE(INDIRECT($AU$3&BB32&($CJ$14+$CJ$12)))","v":{"$error":"#REF!"}},"GM",{"$f":"INDIRECT($AU$3&BD32&($CJ$14+$CJ$12))","v":{"$error":"#REF!"}},null,null,null,null,{"$f":"LENB(BK32)","v":{"$error":"#REF!"}},{"$f":"IF(OR(AV50=BL25,AV50=BL26),\"\",AV32)","v":{"$error":"#REF!"}},null,null,null,null,null,"FJ"]
[null,null,null,null,null,null,null,null,"検査項目",null,null,{"$f":"IF(COUNTIF(BR49:BR50,AW50),AY32&\"  \"&BA32&\" / \"&AV34&\" / \"&AY34,IF(COUNTIF(BR51:BR59,AW50),AV34&\" / \"&AY34,IF(BC32>100,AY32&\"  \"&BA32,AY32&\"  \"&BA32&\" / \"&AY33)))","v":{"$error":"#REF!"}},null,null,null,null,null,null,null,null,null,null,null,null,null,null,null,null,null,null,null,null,null,null,null,null,null,null,null,null,null,null,null,null,null,null,"GN",{"$f":"INDIRECT($AU$3&AU33&($CJ$14+$CJ$12))","v":{"$error":"#REF!"}},null,"GO",{"$f":"IF(INDIRECT($AU$3&AX33&($CJ$14+$CJ$12))=BA32,\"\",INDIRECT($AU$3&AX33&($CJ$14+$CJ$12)))","v":{"$error":"#REF!"}},null,null,null,null,null,null,null,null,null,null,null,null,null,null,null,null,"非表示","FO"]
[null,null,null,null,null,null,null,null,null,null,null,null,null,null,null,null,null,null,null,null,null,null,null,null,null,null,null,null,null,null,null,null,null,null,null,null,null,null,null,null,null,null,null,null,null,null,"調整",{"$f":"SUBSTITUTE(SUBSTITUTE(SUBSTITUTE(SUBSTITUTE(SUBSTITUTE(SUBSTITUTE(SUBSTITUTE(SUBSTITUTE(SUBSTITUTE(AV33,BQ81,BR81),BQ80,BR80),BQ73,BR73),BQ74,BR74),BQ75,BR75),BQ76,BR76),BQ77,BR77),BQ78,BR78),BQ79,BR79)","v":{"$error":"#REF!"}},null,null,{"$f":"SUBSTITUTE(SUBSTITUTE(SUBSTITUTE(SUBSTITUTE(SUBSTITUTE(SUBSTITUTE(SUBSTITUTE(SUBSTITUTE(SUBSTITUTE(AY33,BQ81,BR81),BQ80,BR80),BQ73,BR73),BQ74,BR74),BQ75,BR75),BQ76,BR76),BQ77,BR77),BQ78,BR78),BQ79,BR79)","v":{"$error":"#REF!"}},null,null,null,null,null,null,null,null,null,null,null,null,{"$f":"BN1","v":"BN"},{"$f":"BN1","v":"BN"},"依頼者と同じ",null,"9999999","　－"]
[null,null,null,null,null,null,null,null,null,null,null,null,null,null,null,null,null,null,null,null,null,null,null,null,null,null,null,null,null,null,null,null,null,null,null,null,null,null,null,null,null,null,null,null,null,null,null,null,null,null,null,null,"*後納*",{"$f":"COUNTIF(#REF!,AX44)","v":{"$error":"#REF!"}},"■現金","要注意リスト　現金前払い",null,null,"AAAAA",null,null,null,null,{"$f":"BF1","v":"BF"},{"$f":"BF1","v":"BF"},null,null,"AT"]
[]
[null,null,null,null,null,null,null,null,"検査手数料合計",null,null,null,null,null,"税抜",null,{"$f":"AV37","v":{"$error":"#REF!"}},null,null,null,null,null,null,"円","税込",null,{"$f":"AV37*(AY37+1)","v":{"$error":"#REF!"}},null,null,null,null,null,null,"円","支払",null,{"$f":"BC37","v":{"$error":"#REF!"}},null,null,{"$f":"BD37","v":{"$error":"#REF!"}},null,null,{"$f":"IF(BB35=1,BD35,\"\")","v":{"$error":"#REF!"}},null,null,null,"BA",{"$f":"INDIRECT($AU$3&AU37&($CJ$14+$CJ$12))","v":{"$error":"#REF!"}},null,"税",0.1,"BI",{"$f":"INDIRECT($AU$3&AZ37&($CJ$14+$CJ$12))","v":{"$error":"#REF!"}},{"$f":"COUNTIF(BA37,BA35)","v":0},{"$f":"IF(AND(BB37=1,BB35=0),\"□現金\",\"■現金\")","v":{"$error":"#REF!"}},{"$f":"IF(AND(BB37=1,BB35=0),\"■後納\",\"□後納\")","v":{"$error":"#REF!"}},"/","結合","割愛","BE","行数",null,"上詰め","コード用",null,"Sコード表示用","簡専水可変"]
[null,null,null,null,null,null,null,null,null,null,null,null,null,null,null,null,null,null,null,null,null,null,null,null,null,null,null,null,null,null,null,null,null,null,null,null,null,null,null,null,null,null,null,null,null,null,null,null,null,null,null,null,null,null,null,null,null,null,null,null,null,null,42]
[null,null,null,null,null,null,{"$f":"AW45","v":{"$error":"#REF!"}},null,{"$f":"IFERROR(IF(BK39=\"\",\"\",IF(BP39=$BP$34,\"\",BP39)),\"\")","v":""},null,null,{"$f":"IFERROR(IF(BK39=\"\",\"\",IF(BP39=$BP$34,INDIRECT($BP$35&BK39),INDIRECT(BM39&BK39))),\"\")","v":""},null,null,null,null,null,null,null,null,null,null,null,null,null,null,null,null,null,null,null,null,null,null,null,null,null,null,null,null,null,null,{"$f":"AW44","v":{"$error":"#REF!"}},null,null,"学校薬剤師：",null,{"$f":"IF(COUNTIF(AV40:AV41,AV50),BE30&AY30,\"A\")","v":"A"},{"$f":"IFERROR(MATCH(AV39,[1]学校!B12:B1200,0),\"\")","v":""},{"$f":"IF($AW$39=\"\",\"\",IF(INDEX([1]学校!$C$12:$C$1200,$AW$39,1)=\"\",\"\",INDEX([1]学校!$C$12:$C$1200,$AW$39,1)))","v":""},{"$f":"IF($AW$39=\"\",\"\",IF(INDEX([1]学校!$Q$12:$Q$1200,$AW$39,1)=\"\",\"\",INDEX([1]学校!$Q$12:$Q$1200,$AW$39,1)))","v":""},{"$f":"IF($AW$39=\"\",\"\",IF(INDEX([1]学校!$R$12:$R$1200,$AW$39,1)=\"\",\"\",INDEX([1]学校!$R$12:$R$1200,$AW$39,1)))","v":""},{"$f":"IF($AW$39=\"\",\"\",IF(INDEX([1]学校!$V$12:$V$1200,$AW$39,1)=\"\",\"\",INDEX([1]学校!$V$12:$V$1200,$AW$39,1)))","v":""},null,{"$f":"IF($AW$39=\"\",\"\",IF(INDEX([1]学校!T$12:$T$1200,$AW$39,1)=\"\",\"\",INDEX([1]学校!$T$12:$T$1200,$AW$39,1)))","v":""},{"$f":"IF($AW$39=\"\",\"\",IF(INDEX([1]学校!$U$12:$U$1200,$AW$39,1)=\"\",\"\",INDEX([1]学校!$U$12:$U$1200,$AW$39,1)))","v":""},{"$f":"IF(AZ39=\"\",\"\",AT39&AY39&\" \"&AZ39)","v":""},{"$f":"BA39&\" \"&BC39&\" / \"&BD39","v":"  / "},{"$f":"BE39","v":""},{"$f":"BF39","v":"  / "},{"$f":"IF(BG39=\"\",\"\",ROW())","v":""},{"$f":"BI39","v":""},{"$f":"IFERROR(SMALL($BI$39:$BJ$44,ROW()-ROW($BG$38)),\"\")","v":""},{"$f":"BK39","v":""},{"$f":"IF(BK39=\"\",\"\",IF(BK38=42,$BL$34,$BL$35))","v":""},{"$f":"BE39","v":""},null,{"$f":"IFERROR(INDIRECT($AX$1&BL39),\"\")","v":""}]
[null,null,null,null,null,null,null,null,{"$f":"IFERROR(IF(BK40=\"\",\"\",IF(BP40=$BP$34,\"\",BP40)),\"\")","v":""},null,null,{"$f":"IFERROR(IF(BK40=\"\",\"\",IF(AND(BM40=$BM$35,BP39=$BP$34),\"\",IF(BP40=$BP$34,INDIRECT($BP$35&BK40),INDIRECT(BM40&BK40)))),\"\")","v":""},null,null,null,null,null,null,null,null,null,null,null,null,null,null,null,null,null,null,null,null,null,null,null,null,null,null,null,null,null,null,{"$f":"AW43","v":{"$error":"#REF!"}},null,null,null,null,"GA","行番号","コード","郵便番号","住所","宛先","担当者","TEL","FAX",null,null,{"$f":"BE40","v":0},null,null,null,"",{"$f":"IF(BK40=BK39,\"\",BK40)","v":""},{"$f":"IF(BK40=\"\",\"\",IF(BK39=42,$BL$34,IF(BM39=$BM$34,$BL$35,$BM$34)))","v":""},null,null,{"$f":"IFERROR(INDIRECT($AX$1&BL40),\"\")","v":""}]
[null,null,null,null,null,null,null,null,{"$f":"IFERROR(IF(BK41=\"\",\"\",IF(BP41=$BP$34,\"\",BP41)),\"\")","v":""},null,null,{"$f":"IFERROR(IF(BK41=\"\",\"\",IF(BP41=$BP$34,INDIRECT($BP$35&BK41),INDIRECT(BM41&BK41))),\"\")","v":""},null,null,null,null,null,null,null,null,null,null,null,null,null,null,null,null,null,null,null,null,null,null,null,null,null,null,null,null,null,null,null,null,null,"成績書送付：",null,"GP",null,{"$f":"VLOOKUP($CJ$12,#REF!,#REF!,FALSE)","v":{"$error":"#REF!"}},{"$f":"VLOOKUP($CJ$12,#REF!,#REF!,FALSE)","v":{"$error":"#REF!"}},{"$f":"VLOOKUP($CJ$12,#REF!,#REF!,FALSE)","v":{"$error":"#REF!"}},{"$f":"VLOOKUP($CJ$12,#REF!,#REF!,FALSE)","v":{"$error":"#REF!"}},{"$f":"VLOOKUP($CJ$12,#REF!,#REF!,FALSE)","v":{"$error":"#REF!"}},{"$f":"VLOOKUP($CJ$12,#REF!,#REF!,FALSE)","v":{"$error":"#REF!"}},{"$f":"VLOOKUP($CJ$12,#REF!,#REF!,FALSE)","v":{"$error":"#REF!"}},{"$f":"IF(BA41=\"\",\"\",AT41&$AY41&$AV$2&AZ41)","v":{"$error":"#REF!"}},{"$f":"BA41&$AV$2&BB41&$AV$2&BC41&$AV$2&$BE$37&BD41","v":{"$error":"#REF!"}},{"$f":"IF(SUBSTITUTE(SUBSTITUTE(AZ41,$AV$231,\"\"),$AV$232,\"\")&BA41&BB41&BC41&BG35=SUBSTITUTE(SUBSTITUTE($AY$24,$AV$231,\"\"),$AV$232,\"\")&$AV$23&$AY$23&$AV$25,\"\",BE41)","v":{"$error":"#REF!"}},{"$f":"IF(BG41=\"\",\"\",BF41)","v":{"$error":"#REF!"}},{"$f":"IF(BG41=\"\",\"\",ROW())","v":{"$error":"#REF!"}},{"$f":"BI41","v":{"$error":"#REF!"}},"","","",{"$f":"BE41","v":{"$error":"#REF!"}},null,""]
[null,null,null,null,null,null,null,null,{"$f":"IFERROR(IF(BK42=\"\",\"\",IF(BP42=$BP$34,\"\",BP42)),\"\")","v":""},null,null,{"$f":"IFERROR(IF(BK42=\"\",\"\",IF(AND(BM42=$BM$35,BP41=$BP$34),\"\",IF(BP42=$BP$34,INDIRECT($BP$35&BK42),INDIRECT(BM42&BK42)))),\"\")","v":""},null,null,null,null,null,null,null,null,null,null,null,null,null,null,null,null,null,null,null,null,null,null,null,null,null,null,null,null,null,null,null,null,null,"成績書標題：",null,null,null,{"$f":"VLOOKUP($CJ$12,#REF!,#REF!,FALSE)","v":{"$error":"#REF!"}},{"$f":"VLOOKUP($CJ$12,#REF!,#REF!,FALSE)","v":{"$error":"#REF!"}},{"$f":"VLOOKUP($CJ$12,#REF!,#REF!,FALSE)","v":{"$error":"#REF!"}},{"$f":"VLOOKUP($CJ$12,#REF!,#REF!,FALSE)","v":{"$error":"#REF!"}},{"$f":"VLOOKUP($CJ$12,#REF!,#REF!,FALSE)","v":{"$error":"#REF!"}},{"$f":"VLOOKUP($CJ$12,#REF!,#REF!,FALSE)","v":{"$error":"#REF!"}},{"$f":"VLOOKUP($CJ$12,#REF!,#REF!,FALSE)","v":{"$error":"#REF!"}},{"$f":"IF(BA42=\"\",\"\",AT42&BA42)","v":{"$error":"#REF!"}},null,{"$f":"IF(SUBSTITUTE(SUBSTITUTE(AZ42,AV231,\"\"),AV232,\"\")&BA42&BB42&BG35=SUBSTITUTE(SUBSTITUTE($AY$24,AV231,\"\"),AV232,\"\")&AV23&$AY$23,\"\",BE42)","v":{"$error":"#REF!"}},{"$f":"IF(BG42=\"\",\"\",BF42)","v":{"$error":"#REF!"}},{"$f":"IF(BG42=\"\",\"\",ROW())","v":{"$error":"#REF!"}},null,"","","",{"$f":"BE42","v":{"$error":"#REF!"}},null,""]
[null,null,null,null,null,null,null,null,{"$f":"IFERROR(IF(BK43=\"\",\"\",IF(BP43=$BP$34,\"\",BP43)),\"\")","v":""},null,null,{"$f":"IFERROR(IF(BK43=\"\",\"\",IF(AND(BM43=$BM$35,BP42=$BP$34),\"\",IF(BP43=$BP$34,INDIRECT($BP$35&BK43),INDIRECT(BM43&BK43)))),\"\")","v":""},null,null,null,null,null,null,null,null,null,null,null,null,null,null,null,null,null,null,null,null,null,null,null,null,null,null,null,null,null,null,null,null,null,"請求書送付：",null,null,{"$f":"IF(BC37=BC35,\"\",IF(AX43=\"\",AT43&$AV$45,\"\"))","v":{"$error":"#REF!"}},{"$f":"VLOOKUP($CJ$12,#REF!,#REF!,FALSE)","v":{"$error":"#REF!"}},{"$f":"VLOOKUP($CJ$12,#REF!,#REF!,FALSE)","v":{"$error":"#REF!"}},{"$f":"VLOOKUP($CJ$12,#REF!,#REF!,FALSE)","v":{"$error":"#REF!"}},{"$f":"VLOOKUP($CJ$12,#REF!,#REF!,FALSE)","v":{"$error":"#REF!"}},{"$f":"VLOOKUP($CJ$12,#REF!,#REF!,FALSE)","v":{"$error":"#REF!"}},{"$f":"VLOOKUP($CJ$12,#REF!,#REF!,FALSE)","v":{"$error":"#REF!"}},{"$f":"VLOOKUP($CJ$12,#REF!,#REF!,FALSE)","v":{"$error":"#REF!"}},{"$f":"IF(BA43=\"\",\"\",AT43&$AY43&$AV$2&AZ43)","v":{"$error":"#REF!"}},{"$f":"BA43&$AV$2&BB43&$AV$2&BC43&$AV$2&$BE$37&BD43","v":{"$error":"#REF!"}},{"$f":"IF(SUBSTITUTE(SUBSTITUTE(AZ43,AV231,\"\"),AV232,\"\")&BA43&BB43&BG35=SUBSTITUTE(SUBSTITUTE($AY$24,AV231,\"\"),AV232,\"\")&$AV$23&$AY$23,\"\",BE43)","v":{"$error":"#REF!"}},{"$f":"IF(BG43=\"\",\"\",BF43)","v":{"$error":"#REF!"}},{"$f":"IF(BG43=\"\",\"\",ROW())","v":{"$error":"#REF!"}},{"$f":"BI43","v":{"$error":"#REF!"}},"","","",{"$f":"BE43","v":{"$error":"#REF!"}},null,""]
[null,null,null,null,null,null,null,null,{"$f":"IFERROR(IF(BK44=\"\",\"\",IF(BP44=BP34,\"\",BP44)),\"\")","v":""},null,null,{"$f":"IFERROR(IF(BK44=\"\",\"\",IF(BP44=$BP$34,INDIRECT($BP$35&BK44),INDIRECT(BM44&BK44))),\"\")","v":""},null,null,null,null,null,null,null,null,null,null,null,null,null,null,null,null,null,null,null,null,null,null,null,null,null,null,null,null,null,null,null,null,null,"請求書宛名：",null,null,{"$f":"IF(BC37=BC35,\"\",IF(AX44=\"\",AT44&$AV$45,\"\"))","v":{"$error":"#REF!"}},{"$f":"VLOOKUP($CJ$12,#REF!,#REF!,FALSE)","v":{"$error":"#REF!"}},{"$f":"VLOOKUP($CJ$12,#REF!,#REF!,FALSE)","v":{"$error":"#REF!"}},{"$f":"VLOOKUP($CJ$12,#REF!,#REF!,FALSE)","v":{"$error":"#REF!"}},{"$f":"VLOOKUP($CJ$12,#REF!,#REF!,FALSE)","v":{"$error":"#REF!"}},{"$f":"VLOOKUP($CJ$12,#REF!,#REF!,FALSE)","v":{"$error":"#REF!"}},{"$f":"VLOOKUP($CJ$12,#REF!,#REF!,FALSE)","v":{"$error":"#REF!"}},{"$f":"VLOOKUP($CJ$12,#REF!,#REF!,FALSE)","v":{"$error":"#REF!"}},{"$f":"IF(BA44=\"\",\"\",AT44&$AY44&$AV$2&AZ44)","v":{"$error":"#REF!"}},{"$f":"IF(BG44=AX44,\"\",BA44&$AV$2&$AV$2&BC44&$AV$2&$BE$37&BD44)","v":{"$error":"#REF!"}},{"$f":"IF(SUBSTITUTE(SUBSTITUTE(AZ44,AV231,\"\"),AV232,\"\")&BA44&BC44&BG35=SUBSTITUTE(SUBSTITUTE($AY$24,AV231,\"\"),AV232,\"\")&$AV$23&$AV$25,AX44,BE44)","v":{"$error":"#REF!"}},{"$f":"IF(BG44=\"\",\"\",BF44)","v":{"$error":"#REF!"}},{"$f":"IF(BG44=\"\",\"\",ROW())","v":{"$error":"#REF!"}},{"$f":"BI44","v":{"$error":"#REF!"}},"","","",{"$f":"IF($BG$44=$AX$44,BN34,BE44)","v":{"$error":"#REF!"}},null,""]
[null,null,null,null,null,null,null,null,{"$f":"IFERROR(IF(BK45=\"\",\"\",INDIRECT($AX$1&BL45)),\"\")","v":""},null,null,{"$f":"IFERROR(IF(BK45=\"\",\"\",IF(AND(BM45=$BM$35,BP44=$BP$34),\"\",IF(BP45=$BP$34,INDIRECT($BP$35&BK45),INDIRECT(BM45&BK45)))),\"\")","v":""},null,null,null,null,null,null,null,null,null,null,null,null,null,null,null,null,null,null,null,null,null,null,null,null,null,null,null,null,null,null,null,null,null,null,null,"エラー",{"$f":"IF(BC37=BC35,\"\",IF(OR(AX44=\"\",AX43=\"\"),\"E\",\"\"))","v":{"$error":"#REF!"}},null,null,null,null,null,null,null,null,null,null,null,null,null,"","","",null,null,""]
[null,null,null,null,null,null,null,null,{"$f":"IFERROR(IF(BK46=\"\",\"\",IF(BP46=$BP$34,\"\",BP46)),\"\")","v":""},null,null,{"$f":"IFERROR(IF(BK46=\"\",\"\",IF(BP46=$BP$34,INDIRECT($BP$35&BK46),INDIRECT(BM46&BK46))),\"\")","v":""},null,null,null,null,null,null,null,null,null,null,null,null,null,null,null,null,null,null,null,null,null,null,null,null,null,null,null,null,null,null,null,null,null,null,null,null,null,null,null,null,null,null,null,null,null,null,null,null,null,null,"","","",null,null,""]
[null,null,null,null,null,null,null,null,{"$f":"IFERROR(IF(BK47=\"\",\"\",IF(BP47=$BP$34,\"\",BP47)),\"\")","v":""},null,null,{"$f":"IFERROR(IF(BK47=\"\",\"\",IF(AND(BM47=$BM$35,BP46=$BP$34),\"\",IF(BP47=$BP$34,INDIRECT($BP$35&BK47),INDIRECT(BM47&BK47)))),\"\")","v":""},null,null,null,null,null,null,null,null,null,null,null,null,null,null,null,null,null,null,null,null,null,null,null,null,null,null,null,null,null,null,null,null,null,null,null,"KS",{"$f":"LEFT(AV47,2)","v":"KS"},null,null,null,null,null,null,null,null,null,null,null,null,null,"","","",null,null,"","添付資料","試験名表示"]
[null,null,null,null,null,null,null,null,"メ　モ"]
[null,null,null,null,null,null,null,null,null,null,null,{"$f":"AV49","v":{"$error":"#REF!"}},null,null,null,null,null,null,null,null,null,null,null,null,null,null,null,null,null,null,null,null,null,null,null,null,null,null,null,null,null,null,null,null,null,null,"BF",{"$f":"IF(AV50=AV47,\"\",INDIRECT($AU$3&AU49&($CJ$14+$CJ$12)))","v":{"$error":"#REF!"}},null,null,null,null,null,null,null,null,null,null,null,null,null,"SK",null,null,null,null,null,null,"KK","ON"]
[null,null,null,null,null,null,null,null,null,null,null,{"$f":"IF(COUNTIF($BQ$49:$BQ$65,$AV$50),\"\",BI51)","v":{"$error":"#REF!"}},null,null,null,null,null,null,null,null,null,null,null,null,null,null,null,null,null,null,null,null,null,null,null,null,null,null,null,null,null,null,null,null,null,null,"BM",{"$f":"INDIRECT($AU$3&AU50&($CJ$14+$CJ$12))","v":{"$error":"#REF!"}},{"$f":"LEFT(AV50,2)","v":{"$error":"#REF!"}},{"$f":"IFERROR(VLOOKUP(AW50,[1]採取マスタ!H11:I50,2,FALSE),\"\")","v":""},"-",0,null,null,null,null,null,null,null,"採取者：","採取日：","SY","設置者：",{"$f":"IFERROR(IF(OR($AW$50=$BJ$50,$AW$50=$BJ$49),VLOOKUP($AV$30,[1]SYマスタ!$B$4:$E$4608,3,FALSE),\"\"),\"\")","v":""},"主たる用途：",{"$f":"IFERROR(IF(OR($AW$50=$BJ$50,$AW$50=$BJ$49),VLOOKUP($AV$30,[1]SYマスタ!$B$4:$E$4608,4,FALSE),\"\"),\"\")","v":""},"水源の種類：",null,"HH","VO"]
[null,null,null,null,null,null,null,null,{"$f":"IF(COUNTIF($BQ$49:$BQ$65,$AV$50),$BQ$47,\"\")","v":""},null,null,{"$f":"IF(COUNTIF($BQ$49:$BQ$65,$AV$50),\"\",BI52)","v":{"$error":"#REF!"}},null,null,null,null,null,null,null,null,null,null,null,null,null,null,null,null,null,null,null,null,null,null,null,null,null,null,null,null,null,null,null,null,null,null,null,{"$f":"$AX$50&$AY$50&$AZ$50&$AY$50&ROW()-ROW($AV$50)","v":"-0-1"},{"$f":"LEFT(AV51,2)","v":"-0"},{"$f":"$AX$50&$AY$50&ROW()-ROW($AX$50)","v":"-1"},{"$f":"IFERROR(VLOOKUP(AX51,[1]採取マスタ!$O$11:$P$174,2,FALSE),\"\")","v":""},null,null,null,null,null,null,null,null,{"$f":"IF(COUNTIF(AY51,\"*\"&$BH$50&\"*\"),SUBSTITUTE(AY51,$BH$50&\"　　　　　　　\",$BH$50&\"　\"&#REF!),AY51)","v":""},{"$f":"IF(#REF!=\"\",IF(BL50=\"\",BH51,BK50&BL50&\"    \"&BM50&BN50&\"    \"&BO50),IF(COUNTIF(BH51,\"*\"&$BI$50&\"*\"),SUBSTITUTE(BH51,$BI$50&\"　　　　　　　\",$BI$50&\"　\"&TEXT(#REF!,\"yyyy/mm/dd\")),BH51))","v":{"$error":"#REF!"}},null,null,null,null,null,null,null,"GG","KK"]
[null,null,null,null,null,null,null,null,{"$f":"IFERROR(VLOOKUP(AV53,[1]採取マスタ!$Q$81:$R$98,2,FALSE),\"\")","v":""},null,null,{"$f":"IF(COUNTIF($BQ$49:$BQ$65,$AV$50),\"\",BI53)","v":{"$error":"#REF!"}},null,null,null,null,null,null,null,null,null,null,null,null,null,null,null,null,null,null,null,null,null,null,null,null,null,null,null,null,null,null,null,null,null,null,null,"-0-2",null,"-2",{"$f":"IFERROR(VLOOKUP(AX52,[1]採取マスタ!$O$11:$P$174,2,FALSE),\"\")","v":""},null,null,null,null,null,null,null,null,{"$f":"IF(COUNTIF(AY52,\"*\"&$BH$50&\"*\"),SUBSTITUTE(AY52,$BH$50&\"　　　　　　　\",$BH$50&\"　\"&#REF!),AY52)","v":""},{"$f":"IF(#REF!=\"\",BH52,IF(COUNTIF(BH52,\"*\"&$BI$50&\"*\"),SUBSTITUTE(BH52,$BI$50&\"　　　　　　　\",$BI$50&\"　\"&TEXT(#REF!,\"yyyy/mm/dd\")),BH52))","v":{"$error":"#REF!"}},null,null,null,null,null,null,null,"DO","HH"]
[null,null,null,null,null,null,null,null,{"$f":"IFERROR(VLOOKUP(AV54,[1]採取マスタ!$Q$81:$R$98,2,FALSE),\"\")","v":""},null,null,{"$f":"IF(COUNTIF($BQ$49:$BQ$65,$AV$50),BI51,BI54)","v":{"$error":"#REF!"}},null,null,null,null,null,null,null,null,null,null,null,null,null,null,null,null,null,null,null,null,null,null,null,null,null,null,null,null,null,null,null,null,null,null,null,"-0-3",null,"-3",{"$f":"IFERROR(VLOOKUP(AX53,[1]採取マスタ!$O$11:$P$174,2,FALSE),\"\")","v":""},null,null,null,null,null,null,null,null,{"$f":"IF(COUNTIF(AY53,\"*\"&$BH$50&\"*\"),SUBSTITUTE(AY53,$BH$50&\"　　　　　　　\",$BH$50&\"　\"&#REF!),AY53)","v":""},{"$f":"IF(#REF!=\"\",BH53,IF(COUNTIF(BH53,\"*\"&$BI$50&\"*\"),SUBSTITUTE(BH53,$BI$50&\"　　　　　　　\",$BI$50&\"　\"&TEXT(#REF!,\"yyyy/mm/dd\")),BH53))","v":{"$error":"#REF!"}},null,null,null,null,null,null,null,"VO","GG"]
[null,null,null,null,null,null,null,null,{"$f":"IFERROR(VLOOKUP(AV55,[1]採取マスタ!$Q$81:$R$98,2,FALSE),\"\")","v":""},null,null,{"$error":"#REF!"},null,null,null,null,null,null,null,null,null,null,null,null,null,null,null,null,null,null,null,null,null,null,null,null,null,null,null,null,null,null,null,null,null,null,null,"-0-4",null,"-4",{"$f":"IFERROR(VLOOKUP(AX54,[1]採取マスタ!$O$11:$P$174,2,FALSE),\"\")","v":""},null,null,null,null,null,null,null,null,{"$f":"IF(COUNTIF(AY54,\"*\"&$BH$50&\"*\"),SUBSTITUTE(AY54,$BH$50&\"　　　　　　　\",$BH$50&\"　\"&#REF!),AY54)","v":""},{"$f":"IF(#REF!=\"\",BH54,IF(COUNTIF(BH54,\"*\"&$BI$50&\"*\"),SUBSTITUTE(BH54,$BI$50&\"　　　　　　　\",$BI$50&\"　\"&TEXT(#REF!,\"yyyy/mm/dd\")),BH54))","v":{"$error":"#REF!"}},null,null,null,null,null,null,null,"NO","DO"]
[null,null,null,null,null,null,null,null,null,null,null,{"$error":"#REF!"},null,null,null,null,null,null,null,null,null,null,null,null,null,null,null,null,null,null,null,null,null,null,null,null,null,null,null,null,null,null,null,null,null,null,null,"-0-5",null,"-5",{"$f":"IFERROR(VLOOKUP(AX55,[1]採取マスタ!$O$11:$P$174,2,FALSE),\"\")","v":""},null,null,null,null,null,null,null,null,{"$f":"IF(COUNTIF(AY55,\"*\"&$BH$50&\"*\"),SUBSTITUTE(AY55,$BH$50&\"　　　　　　　\",$BH$50&\"　\"&#REF!),AY55)","v":""},{"$f":"IF(#REF!=\"\",BH55,IF(COUNTIF(BH55,\"*\"&$BI$50&\"*\"),SUBSTITUTE(BH55,$BI$50&\"　　　　　　　\",$BI$50&\"　\"&TEXT(#REF!,\"yyyy/mm/dd\")),BH55))","v":{"$error":"#REF!"}},null,null,null,null,null,null,null,"ZZ","NO"]
[null,null,null,null,null,null,null,null,"備　考",null,null,{"$error":"#REF!"},null,null,null,null,null,null,null,null,null,null,null,null,null,null,null,null,null,null,null,null,null,null,null,null,null,null,null,null,null,null,null,null,null,null,null,"-0-6",null,"-6",{"$f":"IFERROR(VLOOKUP(AX56,[1]採取マスタ!$O$11:$P$174,2,FALSE),\"\")","v":""},null,null,null,null,null,null,null,null,{"$f":"IF(COUNTIF(AY56,\"*\"&$BH$50&\"*\"),SUBSTITUTE(AY56,$BH$50&\"　　　　　　　\",$BH$50&\"　\"&#REF!),AY56)","v":""},{"$f":"IF(#REF!=\"\",BH56,IF(COUNTIF(BH56,\"*\"&$BI$50&\"*\"),SUBSTITUTE(BH56,$BI$50&\"　　　　　　　\",$BI$50&\"　\"&TEXT(#REF!,\"yyyy/mm/dd\")),BH56))","v":{"$error":"#REF!"}},null,null,null,null,null,null,null,"HI","HI"]
[null,null,null,null,null,null,null,null,{"$f":"IFERROR(VLOOKUP(AV58,[1]採取マスタ!$Q$81:$R$98,2,FALSE),\"\")","v":""},null,null,{"$error":"#REF!"},null,null,null,null,null,null,null,null,null,null,null,null,null,null,null,null,null,null,null,null,null,null,null,null,null,null,null,null,null,null,null,null,null,null,null,"-0-7",null,"-7",{"$f":"IFERROR(VLOOKUP(AX57,[1]採取マスタ!$O$11:$P$174,2,FALSE),\"\")","v":""},null,null,null,null,null,null,null,null,{"$f":"IF(COUNTIF(AY57,\"*\"&$BH$50&\"*\"),SUBSTITUTE(AY57,$BH$50&\"　　　　　　　\",$BH$50&\"　\"&#REF!),AY57)","v":""},{"$f":"IF(#REF!=\"\",BH57,IF(COUNTIF(BH57,\"*\"&$BI$50&\"*\"),SUBSTITUTE(BH57,$BI$50&\"　　　　　　　\",$BI$50&\"　\"&TEXT(#REF!,\"yyyy/mm/dd\")),BH57))","v":{"$error":"#REF!"}},null,null,null,null,null,null,null,"SN","SN"]
[null,null,null,null,null,null,null,null,{"$f":"IFERROR(VLOOKUP(AV59,[1]採取マスタ!$Q$81:$R$98,2,FALSE),\"\")","v":""},null,null,{"$error":"#REF!"},null,null,null,null,null,null,null,null,null,null,null,null,null,null,null,null,null,null,null,null,null,null,null,null,null,null,null,null,null,null,null,null,null,null,null,"-0-8",null,"-8",{"$f":"IFERROR(VLOOKUP(AX58,[1]採取マスタ!$O$11:$P$174,2,FALSE),\"\")","v":""},null,null,null,null,null,null,null,null,{"$f":"IF(COUNTIF(AY58,\"*\"&$BH$50&\"*\"),SUBSTITUTE(AY58,$BH$50&\"　　　　　　　\",$BH$50&\"　\"&#REF!),AY58)","v":""},{"$f":"IF(#REF!=\"\",BH58,IF(COUNTIF(BH58,\"*\"&$BI$50&\"*\"),SUBSTITUTE(BH58,$BI$50&\"　　　　　　　\",$BI$50&\"　\"&TEXT(#REF!,\"yyyy/mm/dd\")),BH58))","v":{"$error":"#REF!"}},null,null,null,null,null,null,null,"ON","DA"]
[null,null,null,null,null,null,null,null,{"$f":"IFERROR(VLOOKUP(AV60,[1]採取マスタ!$Q$81:$R$98,2,FALSE),\"\")","v":""},null,null,{"$error":"#REF!"},null,null,null,null,null,null,null,null,null,null,null,null,null,null,null,null,null,null,null,null,null,null,null,null,null,null,null,null,null,null,null,null,null,null,null,"-0-9",null,"-9",{"$f":"IFERROR(VLOOKUP(AX59,[1]採取マスタ!$O$11:$P$174,2,FALSE),\"\")","v":""},null,null,null,null,null,null,null,null,{"$f":"IF(COUNTIF(AY59,\"*\"&$BH$50&\"*\"),SUBSTITUTE(AY59,$BH$50&\"　　　　　　　\",$BH$50&\"　\"&#REF!),AY59)","v":""},{"$f":"IF(#REF!=\"\",BH59,IF(COUNTIF(BH59,\"*\"&$BI$50&\"*\"),SUBSTITUTE(BH59,$BI$50&\"　　　　　　　\",$BI$50&\"　\"&TEXT(#REF!,\"yyyy/mm/dd\")),BH59))","v":{"$error":"#REF!"}},null,null,null,null,null,null,null,"TK","TK"]
[null,null,null,null,null,null,null,null,{"$f":"IFERROR(VLOOKUP(AV61,[1]採取マスタ!$Q$81:$R$98,2,FALSE),\"\")","v":""},null,null,{"$error":"#REF!"},null,null,null,null,null,null,null,null,null,null,null,null,null,null,null,null,null,null,null,null,null,null,null,null,null,null,null,null,null,null,null,null,null,null,null,"-0-10",null,"-10",{"$f":"IFERROR(VLOOKUP(AX60,[1]採取マスタ!$O$11:$P$174,2,FALSE),\"\")","v":""},null,null,null,null,null,null,null,null,{"$f":"IF(COUNTIF(AY60,\"*\"&$BH$50&\"*\"),SUBSTITUTE(AY60,$BH$50&\"　　　　　　　\",$BH$50&\"　\"&#REF!),AY60)","v":""},{"$f":"IF(#REF!=\"\",BH60,IF(COUNTIF(BH60,\"*\"&$BI$50&\"*\"),SUBSTITUTE(BH60,$BI$50&\"　　　　　　　\",$BI$50&\"　\"&TEXT(#REF!,\"yyyy/mm/dd\")),BH60))","v":{"$error":"#REF!"}},null,null,null,null,null,null,null,"KU"]
[null,null,null,null,null,null,null,null,{"$f":"IFERROR(VLOOKUP(AV62,[1]採取マスタ!$Q$81:$R$98,2,FALSE),\"\")","v":""},null,null,{"$error":"#REF!"},null,null,null,null,null,null,null,null,null,null,null,null,null,null,null,null,null,null,null,null,null,null,null,null,null,null,null,null,null,null,null,null,null,null,null,"-0-11",null,"-11",{"$f":"IFERROR(VLOOKUP(AX61,[1]採取マスタ!$O$11:$P$174,2,FALSE),\"\")","v":""},null,null,null,null,null,null,null,null,{"$f":"IF(COUNTIF(AY61,\"*\"&$BH$50&\"*\"),SUBSTITUTE(AY61,$BH$50&\"　　　　　　　\",$BH$50&\"　\"&#REF!),AY61)","v":""},{"$f":"IF(#REF!=\"\",BH61,IF(COUNTIF(BH61,\"*\"&$BI$50&\"*\"),SUBSTITUTE(BH61,$BI$50&\"　　　　　　　\",$BI$50&\"　\"&TEXT(#REF!,\"yyyy/mm/dd\")),BH61))","v":{"$error":"#REF!"}},null,null,null,null,null,null,null,"EN"]
[null,null,null,null,null,null,null,null,{"$f":"IFERROR(VLOOKUP(AV63,[1]採取マスタ!$Q$81:$R$98,2,FALSE),\"\")","v":""},null,null,{"$error":"#REF!"},null,null,null,null,null,null,null,null,null,null,null,null,null,null,null,null,null,null,null,null,null,null,null,null,null,null,null,null,null,null,null,null,null,null,null,"-0-12",null,"-12",{"$f":"IFERROR(VLOOKUP(AX62,[1]採取マスタ!$O$11:$P$174,2,FALSE),\"\")","v":""},null,null,null,null,null,null,null,null,{"$f":"IF(COUNTIF(AY62,\"*\"&$BH$50&\"*\"),SUBSTITUTE(AY62,$BH$50&\"　　　　　　　\",$BH$50&\"　\"&#REF!),AY62)","v":""},{"$f":"IF(#REF!=\"\",BH62,IF(COUNTIF(BH62,\"*\"&$BI$50&\"*\"),SUBSTITUTE(BH62,$BI$50&\"　　　　　　　\",$BI$50&\"　\"&TEXT(#REF!,\"yyyy/mm/dd\")),BH62))","v":{"$error":"#REF!"}},null,null,null,null,null,null,null,"SG"]
[null,null,null,null,null,null,null,null,{"$f":"IFERROR(VLOOKUP(AV64,[1]採取マスタ!$Q$81:$R$98,2,FALSE),\"\")","v":""},null,null,{"$error":"#REF!"},null,null,null,null,null,null,null,null,null,null,null,null,null,null,null,null,null,null,null,null,null,null,null,null,null,null,null,null,null,null,null,null,null,null,null,"-0-13",null,"-13",{"$f":"IFERROR(VLOOKUP(AX63,[1]採取マスタ!$O$11:$P$174,2,FALSE),\"\")","v":""},null,null,null,null,null,null,null,null,{"$f":"IF(COUNTIF(AY63,\"*\"&$BH$50&\"*\"),SUBSTITUTE(AY63,$BH$50&\"　　　　　　　\",$BH$50&\"　\"&#REF!),AY63)","v":""},{"$f":"IF(#REF!=\"\",BH63,IF(COUNTIF(BH63,\"*\"&$BI$50&\"*\"),SUBSTITUTE(BH63,$BI$50&\"　　　　　　　\",$BI$50&\"　\"&TEXT(#REF!,\"yyyy/mm/dd\")),BH63))","v":{"$error":"#REF!"}},null,null,null,null,null,null,null,"TA"]
[null,null,null,null,null,null,null,null,null,null,null,null,null,null,null,null,null,null,null,null,null,null,null,null,null,null,null,null,null,null,null,null,null,null,null,null,null,null,null,null,null,null,null,null,null,null,null,"-0-14",null,"-14",{"$f":"IFERROR(VLOOKUP(AX64,[1]採取マスタ!$O$11:$P$174,2,FALSE),\"\")","v":""},null,null,null,null,null,null,null,null,{"$f":"IF(COUNTIF(AY64,\"*\"&$BH$50&\"*\"),SUBSTITUTE(AY64,$BH$50&\"　　　　　　　\",$BH$50&\"　\"&#REF!),AY64)","v":""},{"$f":"IF(#REF!=\"\",BH64,IF(COUNTIF(BH64,\"*\"&$BI$50&\"*\"),SUBSTITUTE(BH64,$BI$50&\"　　　　　　　\",$BI$50&\"　\"&TEXT(#REF!,\"yyyy/mm/dd\")),BH64))","v":{"$error":"#REF!"}}]
[null,null,null,null,null,null,null,null,"※","ご依頼の際には、検査手数料を添えてお申し込み下さい（つり銭のないようご用意下さい）。",null,null,null,null,null,null,null,null,null,null,null,null,null,null,null,null,null,null,null,null,"サイン"]
[null,null,null,null,null,null,null,null,"※","検査成績書は結果が出次第、順次発送いたします。",null,null,null,null,null,null,null,null,null,null,null,null,null,null,null,null,null,null,null,null,null,null,null,null,null,null,null,null,null,null,null,null,null,null,null,null,null,null,null,null,null,null,null,null,null,null,null,null,null,null,null,null,null,null,null,null,null,null,null,null,null,{"$f":"TRIM(SUBSTITUTE(SUBSTITUTE(SUBSTITUTE(SUBSTITUTE(SUBSTITUTE(SUBSTITUTE(SUBSTITUTE(BU67,BQ91,BR91),BQ92,BR92),BT70,BR91),BQ93,BR92),BQ94,BR94),BQ95,BR95),BQ96,BR96))","v":{"$error":"#REF!"}},{"$f":"SUBSTITUTE(SUBSTITUTE(SUBSTITUTE(SUBSTITUTE(SUBSTITUTE(SUBSTITUTE(SUBSTITUTE(SUBSTITUTE(SUBSTITUTE(SUBSTITUTE(SUBSTITUTE(SUBSTITUTE(SUBSTITUTE(SUBSTITUTE(SUBSTITUTE(SUBSTITUTE(SUBSTITUTE(SUBSTITUTE(SUBSTITUTE(SUBSTITUTE(SUBSTITUTE(AY28,BQ120,BR120),BQ121,BR121),BQ122,BR122),BQ123,BR123),BQ124,BR124),BQ125,BR125),BQ126,BR126),BQ127,BR127),BQ128,BR128),BQ129,BR129),BQ130,BR130),BQ131,BR131),BQ132,BR132),BQ133,BR133),BQ134,BR134),BQ135,BR135),BQ136,BR136),BQ137,BR137),BQ138,BR138),BQ139,BR139),BQ140,BR140)","v":{"$error":"#REF!"}}]
[null,null,null,null,null,null,null,null,"※","当検査センターは検査結果に限り責任を負うものであり、検査結果によって生じるトラブルまたは損害等に関して一切の責任を負いかねます。",null,null,null,null,null,null,null,null,null,null,null,null,null,null,null,null,null,null,null,null,null,null,null,null,null,null,null,null,null,null,null,null,null,null,null,null,null,null,null,null,null,null,null,null,null,null,null,null,null,null,null,null,null,null,null,null,null,null,null,null,null,{"$f":"SUBSTITUTE(SUBSTITUTE(AY29,BQ92,BR92),BT70,BU70)","v":""},{"$f":"IF(RIGHT(BU66,1)=\",\",LEFT(BU66,LEN(BU66)-1),BU66)","v":{"$error":"#REF!"}},"COUNTIF"]
[null,null,null,null,null,null,null,null,"※","依頼書に記載された内容は検査の目的以外には使用しません。また、検査結果について、無断で他に提供することはありません。なお、検査結果をもとに、個々を特定できないデータとして、集計に使用させていただくことがあります。",null,null,null,null,null,null,null,null,null,null,null,null,null,null,null,null,null,null,null,null,null,null,null,null,null,null,null,null,null,null,null,null,null,null,null,null,null,null,null,null,null,null,null,null,null,null,null,null,null,null,null,null,null,null,null,null,null,null,null,null,null,null,null,{"$f":"COUNTIF(BT66,\"*\"&BR91&\"*\")","v":0},"未使用",null,null,null,null,null,"~"]
[null,null,null,null,null,null,null,null,null,null,null,null,null,null,null,null,null,null,null,null,null,null,null,null,null,null,null,null,null,null,null,null,null,null,null,null,null,null,null,null,null,null,null,null,null,null,null,null,null,null,null,null,null,null,null,null,null,null,null,null,null,null,null,null,null,null,null,null,null,null,null,null,null,{"$f":"COUNTIF(BT66,\"*\"&BR92&\"*\")","v":0},null,null,null,null,null,null,null,null,null,null,null,null,null,null,null,null,null,null,null,null,null,null,null,null,null,null,null,null,null,null,null,{"$f":"SUM(COUNT(DB72:DB111),DC69,DC70)","v":0},{"$f":"SUMPRODUCT(COUNTIF(BQ100:BQ118,DC72:DC111))","v":0},{"$f":"COUNTIF(DD72:DD111,\">=!\")","v":0},"×","、",null,{"$f":"SUM(DH72:DH111)","v":0}]
[null,null,null,null,null,null,null,null,null,"検査項目",null,null,null,null,null,null,null,null,null,null,null,null,null,null,null,null,null,null,null,null,null,null,null,null,null,null,null,null,null,null,null,null,null,null,null,null,null,null,null,null,null,null,null,null,null,null,null,null,null,null,null,null,null,null,null,null,null,null,null,null,null,"  ","選択",{"$f":"IF(BV69=1,BR92,BR91)","v":" "},null,{"$f":"COUNTIF(BX73:BX145,\">=!\")","v":1},"×","、",null,"～表示を分割　最大10個",null,null,null,null,null,null,null,null,null,null,null,null,null,null,null,null,null,null,null,null,null,null,null,null,null,null,{"$f":"COUNT(DC72:DC111)","v":0},null,"本",null,null,"BY列"]
[null,null,null,null,null,null,null,null,null,{"$f":"BA32&\"    \"&AU74&\"項目\"","v":{"$error":"#REF!"}},null,null,null,null,null,null,null,null,null,null,null,null,null,null,null,null,null,null,null,null,null,null,null,null,null,null,null,null,null,null,null,null,null,null,null,null,null,null,null,null,null,null,null,"折り返し",null,null,null,null,"行番号1","追加検査",null,null,null,null,null,45,"51項目表示",null,null,null,null,null,null,null,null,null,null,null,null,null,null,null,null,null,null,null,null,null,null,null,null,null,null,null,null,null,null,null,null,null,null,null,null,"MAX","SMALL","VLOOKUP1","数字","容器","本数","容器＋本数","集約","全本数"]
[null,null,null,null,null,null,null,null,null,null,null,null,null,null,null,null,null,null,null,null,null,null,null,null,null,null,null,null,null,null,null,null,null,null,null,null,null,null,null,null,null,null,null,null,null,",",null,null,null,"検査項目",null,"割愛",null,"KM",null,null,null,{"$f":"IF(BJ72=\"\",\"\",ROW())","v":{"$error":"#REF!"}},{"$f":"IF(BI72=\"\",\"\",IF(BN72>BN71,ROW(I125),$AU$73+2))","v":74},{"$f":"COUNT(BH73:BH223)","v":0},"追加",{"$f":"\"―追加―\"&\"    \"&BE32&\"項目\"","v":{"$error":"#REF!"}},null,null,{"$f":"COUNTIF(BM73:BM125,1)","v":0},{"$f":"COUNTIF(BN73:BN125,1)","v":2},"試験項目名",null,"例外",null,null,"位置","容器","分割1","数字","容器","本数","容器＋本数","集約","VLOOKUP用","始まり","終わり","～分割用",null,null,null,null,null,null,null,{"$f":"IFERROR(IF(CL73+1<=$CD73,CL73+1,\"\"),\"\")","v":""},{"$f":"IFERROR(IF(CM72+1<=$CD73,CM72+1,\"\"),\"\")","v":""},"","","","","","","","","","",{"$f":"IFERROR(IF(BT73=\"\",\"\",IF(ISNUMBER(VALUE(BV73)),VALUE(BV73),IF(ISNUMBER(VALUE(CC73)),\"\",CZ71+1))),1)","v":""},{"$f":"MAX(CE72:CY72)","v":0},{"$f":"IFERROR(SMALL($CE$72:$CY$111,ROW()-ROW($DA$71)),\"\")","v":""},{"$f":"IFERROR(IF(DA72=\"\",\"\",VLOOKUP(DA72,$CB$73:$CC$112,2,FALSE)),DA72)","v":""},{"$f":"IFERROR(VALUE(LEFT(DB72,FIND($BY$70,DB72)-1)),DB72)","v":""},{"$f":"IFERROR(VLOOKUP(DC72,[1]採取マスタ!$F$156:$H$195,3,FALSE),DB72)","v":""},{"$f":"IFERROR(MID(DB72,FIND($DE$69,DB72),5),\"\")","v":""},{"$f":"IF(AND(DB72<>\"\",DD72=\"\"),DB72,DD72&IF(ISNUMBER(DC72),DE72,\"\")&IF(OR(DD73=\"\",DD72=\"\"),\"\",$DF$69))","v":""},{"$f":"DG91&DG111","v":""},{"$f":"IF(DD72=\"\",0,IFERROR(VALUE(SUBSTITUTE(SUBSTITUTE(DE72,$DE$69,\"\"),$DE$70,\"\")),1))","v":0}]
[null,null,null,null,null,null,null,null,null,{"$f":"IFERROR(IF($BN$72>$BN$71,BO73,IF($AU$73>=ROW(),AX73,VLOOKUP(ROW(),$BG$72:$BJ$134,4,FALSE))),\"\")","v":""},null,null,null,null,null,null,null,null,null,null,null,null,null,null,null,null,null,null,null,null,null,null,{"$f":"IFERROR(IF($AU$73>$AU$76,VLOOKUP(ROW()-1,$BF$72:$BK$145,5,FALSE),\"\"),\"\")","v":""},null,null,null,null,null,null,null,null,null,null,null,null,"最下限",{"$f":"MAX(INDEX((LEN(AX72:AX223)>0)*ROW(AX72:AX223),0))","v":72},null,{"$f":"IFERROR(SUBSTITUTE(SUBSTITUTE(SUBSTITUTE(AV34,$AZ$73,$BA$73),$AZ$74,$BA$74),$AZ$75,\"\"),\"\")","v":""},{"$f":"ASC(IF(AV74=\"\",AW73,LEFT(AW73,AV74-1)))","v":""},null,"セット価格(",null,"KM",null,null,null,"",{"$f":"IF(BI73=\"\",\"\",IF(BG72=$AU$76,74,BG72+1))","v":""},{"$f":"IFERROR(FIND($AT$72,AY34),\"\")","v":""},{"$f":"IFERROR(SUBSTITUTE(SUBSTITUTE(SUBSTITUTE(AY34,$AZ$73,$BA$73),$AZ$74,$BA$74),$AZ$75,\"\"),\"\")","v":""},{"$f":"ASC(IF(BH74=\"\",BI73,LEFT(BI73,BH74-1)))","v":""},null,null,null,{"$f":"COUNTIF($AX$73:$AX$137,BO73)","v":0},"一般細菌",null,"1,2","1，2",null,{"$f":"IF(BU73=\"\",\"\",IFERROR(FIND($BV$70,$BT$66),1))","v":""},{"$f":"IFERROR($BT$66,\"\")","v":""},{"$f":"ASC(IF(BT74=\"\",BU73,LEFT(BU73,BT74-1)))","v":""},{"$f":"IFERROR(LEFT(BV73,FIND($BY$70,BV73)-1),BV73)","v":""},{"$f":"IFERROR(VLOOKUP(BW73,[1]採取マスタ!$G$144:$H$164,2,FALSE),\"\")","v":""},{"$f":"IFERROR(MID(BV73,FIND($BY$70,BV73),5),\"\")","v":""},{"$f":"IF(AND(BW73<>\"\",BX73=\"\"),BW73,BX73&BY73&IF(OR(BX74=\"\",BX73=\"\"),\"\",$BZ$70))","v":""},{"$f":"CA92&CA112","v":""},{"$f":"IF(CC73=\"\",\"\",CY72)","v":""},{"$f":"IFERROR(LEFT(BV73,FIND($CC$68,BV73)-1),IF(ISNUMBER(VALUE(BV73)),\"\",BV73))","v":""},{"$f":"IFERROR(VALUE(MID(BV73,FIND($CC$68,BV73)+1,10)),\"\")","v":""},{"$f":"IFERROR(VALUE(CC73),\"\")","v":""},{"$f":"IFERROR(IF(CE73+1<=$CD73,CE73+1,\"\"),\"\")","v":""},{"$f":"IFERROR(IF(CF73+1<=$CD73,CF73+1,\"\"),\"\")","v":""},"","","","","","","","","","","","","","","","","",{"$f":"IFERROR(IF(BT74=\"\",\"\",IF(ISNUMBER(VALUE(BV74)),VALUE(BV74),IF(ISNUMBER(VALUE(CC74)),\"\",CZ72+1))),\"\")","v":""},{"$f":"MAX(CE73:CY73)","v":0},{"$f":"IFERROR(SMALL($CE$72:$CY$111,ROW()-ROW($DA$71)),\"\")","v":""},"","",{"$f":"IFERROR(VLOOKUP(DC73,[1]採取マスタ!$F$156:$H$195,3,FALSE),DB73)","v":""},{"$f":"IFERROR(MID(DB73,FIND($DE$69,DB73),5),\"\")","v":""},"",null,{"$f":"IF(DD73=\"\",0,IFERROR(VALUE(SUBSTITUTE(SUBSTITUTE(DE73,$DE$69,\"\"),$DE$70,\"\")),1))","v":0}]
[null,null,null,null,null,null,null,null,null,"",null,null,null,null,null,null,null,null,null,null,null,null,{"$f":"IFERROR(IF(AX136=\"\",IF($AU$73+$BH$72>$AU$76,VLOOKUP(ROW(),BG73:$BJ$223,4,FALSE),\"\"),AX136),\"\")","v":""},null,null,null,null,null,null,null,null,null,"",null,null,null,null,null,null,null,null,null,null,null,null,"項目数",{"$f":"BC32","v":{"$error":"#REF!"}},{"$f":"IFERROR(FIND($AT$72,AV34),\"\")","v":""},{"$f":"IF(AV74=\"\",\"\",MID(AW73,AV74+1,2000))","v":""},"",null,"),",",",null,null,null,null,"","",{"$f":"IFERROR(FIND($AT$72,BI73),\"\")","v":""},{"$f":"IF(BH74=\"\",\"\",MID(BI73,BH74+1,2000))","v":""},"",null,null,null,0,"大腸菌",null,"1,3","1，3",null,{"$f":"IFERROR(FIND($BV$70,BU73),\"\")","v":""},{"$f":"IF(BT74=\"\",\"\",MID(BU73,BT74+1,500))","v":""},"","",{"$f":"IFERROR(VLOOKUP(BW74,[1]採取マスタ!$G$144:$H$164,2,FALSE),\"\")","v":""},"","",null,"","","",{"$f":"IFERROR(VALUE(CC74),\"\")","v":""},{"$f":"IFERROR(IF(CE74+1<=$CD74,CE74+1,\"\"),\"\")","v":""},"","","","","","","","","","","","","","","","","","","",0,"","","",{"$f":"IFERROR(VLOOKUP(DC74,[1]採取マスタ!$F$156:$H$195,3,FALSE),DB74)","v":""},"","",null,0]
[null,null,null,null,null,null,null,null,null,"",null,null,null,null,null,null,null,null,null,null,null,null,{"$f":"IFERROR(IF(AX137=\"\",IF($AU$73+$BH$72>$AU$76,VLOOKUP(ROW(),BG74:$BJ$223,4,FALSE),\"\"),AX137),\"\")","v":""},null,null,null,null,null,null,null,null,null,"",null,null,null,null,null,null,null,null,null,null,null,null,null,null,{"$f":"IFERROR(FIND($AT$72,AW74),\"\")","v":""},"","",null,")",null,null,null,null,null,"","","","","",null,null,null,0,"ｶﾄﾞﾐｳﾑ及びその化合物",null,"1,4","1，4",null,"","","","",{"$f":"IFERROR(VLOOKUP(BW75,[1]採取マスタ!$G$144:$H$164,2,FALSE),\"\")","v":""},"","",null,"","","","","","","","","","","","","","","","","","","","","","","","",0,"","","",{"$f":"IFERROR(VLOOKUP(DC75,[1]採取マスタ!$F$156:$H$195,3,FALSE),DB75)","v":""},"","",null,0]
[null,null,null,null,null,null,null,null,null,"",null,null,null,null,null,null,null,null,null,null,null,null,{"$f":"IFERROR(IF(AX138=\"\",IF($AU$73+$BH$72>$AU$76,VLOOKUP(ROW(),BG75:$BJ$223,4,FALSE),\"\"),AX138),\"\")","v":""},null,null,null,null,null,null,null,null,null,"",null,null,null,null,null,null,null,null,null,null,null,null,"１列目max",133,"","","",null,null,null,null,null,null,null,"","","","","",null,null,null,0,"水銀及びその化合物",null,"2,2","2，2",null,"","","","",{"$f":"IFERROR(VLOOKUP(BW76,[1]採取マスタ!$G$144:$H$164,2,FALSE),\"\")","v":""},"","",null,"","","","","","","","","","","","","","","","","","","","","","","","",0,"","","",{"$f":"IFERROR(VLOOKUP(DC76,[1]採取マスタ!$F$156:$H$195,3,FALSE),DB76)","v":""},"","",null,0]
[null,null,null,null,null,null,null,null,null,"",null,null,null,null,null,null,null,null,null,null,null,null,{"$f":"IFERROR(IF(AX139=\"\",IF($AU$73+$BH$72>$AU$76,VLOOKUP(ROW(),BG76:$BJ$223,4,FALSE),\"\"),AX139),\"\")","v":""},null,null,null,null,null,null,null,null,null,"",null,null,null,null,null,null,null,null,null,null,null,null,null,null,"","","",null,null,null,null,null,null,null,"","","","","",null,null,null,0,"ｾﾚﾝ及びその化合物",null,"2,3","2，3",null,"","","","",{"$f":"IFERROR(VLOOKUP(BW77,[1]採取マスタ!$G$144:$H$164,2,FALSE),\"\")","v":""},"","",null,"","","","","","","","","","","","","","","","","","","","","","","","",0,"","","",{"$f":"IFERROR(VLOOKUP(DC77,[1]採取マスタ!$F$156:$H$195,3,FALSE),DB77)","v":""},"","",null,0]
[null,null,null,null,null,null,null,null,null,"",null,null,null,null,null,null,null,null,null,null,null,null,{"$f":"IFERROR(IF(AX140=\"\",IF($AU$73+$BH$72>$AU$76,VLOOKUP(ROW(),BG77:$BJ$223,4,FALSE),\"\"),AX140),\"\")","v":""},null,null,null,null,null,null,null,null,null,"",null,null,null,null,null,null,null,null,null,null,null,null,null,null,"","","",null,null,null,null,null,null,null,"","","","","",null,null,null,0,"鉛及びその化合物",null,"2,4","2，4",null,"","","","",{"$f":"IFERROR(VLOOKUP(BW78,[1]採取マスタ!$G$144:$H$164,2,FALSE),\"\")","v":""},"","",null,"","","","","","","","","","","","","","","","","","","","","","","","",0,"","","",{"$f":"IFERROR(VLOOKUP(DC78,[1]採取マスタ!$F$156:$H$195,3,FALSE),DB78)","v":""},"","",null,0]
[null,null,null,null,null,null,null,null,null,"",null,null,null,null,null,null,null,null,null,null,null,null,{"$f":"IFERROR(IF(AX141=\"\",IF($AU$73+$BH$72>$AU$76,VLOOKUP(ROW(),BG78:$BJ$223,4,FALSE),\"\"),AX141),\"\")","v":""},null,null,null,null,null,null,null,null,null,"",null,null,null,null,null,null,null,null,null,null,null,null,null,null,"","","",null,null,null,null,null,null,null,"","","","","",null,null,null,0,"ﾋ素及びその化合物",null,"1,1","１，１",null,"","","","",{"$f":"IFERROR(VLOOKUP(BW79,[1]採取マスタ!$G$144:$H$164,2,FALSE),\"\")","v":""},"","",null,"","","","","","","","","","","","","","","","","","","","","","","","",0,"","","",{"$f":"IFERROR(VLOOKUP(DC79,[1]採取マスタ!$F$156:$H$195,3,FALSE),DB79)","v":""},"","",null,0]
[null,null,null,null,null,null,null,null,null,"",null,null,null,null,null,null,null,null,null,null,null,null,{"$f":"IFERROR(IF(AX142=\"\",IF($AU$73+$BH$72>$AU$76,VLOOKUP(ROW(),BG79:$BJ$223,4,FALSE),\"\"),AX142),\"\")","v":""},null,null,null,null,null,null,null,null,null,"",null,null,null,null,null,null,null,null,null,null,null,null,null,null,"","","",null,null,null,null,null,null,null,"","","","","",null,null,null,0,"六価ｸﾛﾑ化合物",null,"1,1,1","１，１，１",null,"","","","",{"$f":"IFERROR(VLOOKUP(BW80,[1]採取マスタ!$G$144:$H$164,2,FALSE),\"\")","v":""},"","",null,"","","","","","","","","","","","","","","","","","","","","","","","",0,"","","",{"$f":"IFERROR(VLOOKUP(DC80,[1]採取マスタ!$F$156:$H$195,3,FALSE),DB80)","v":""},"","",null,0]
[null,null,null,null,null,null,null,null,null,"",null,null,null,null,null,null,null,null,null,null,null,null,{"$f":"IFERROR(IF(AX143=\"\",IF($AU$73+$BH$72>$AU$76,VLOOKUP(ROW(),BG80:$BJ$223,4,FALSE),\"\"),AX143),\"\")","v":""},null,null,null,null,null,null,null,null,null,"",null,null,null,null,null,null,null,null,null,null,null,null,null,null,"","","",null,null,null,null,null,null,null,"","","","","",null,null,null,0,"亜硝酸態窒素",null,"1,1,2","１，１，２",null,"","","","",{"$f":"IFERROR(VLOOKUP(BW81,[1]採取マスタ!$G$144:$H$164,2,FALSE),\"\")","v":""},"","",null,"","","","","","","","","","","","","","","","","","","","","","","","",0,"","","",{"$f":"IFERROR(VLOOKUP(DC81,[1]採取マスタ!$F$156:$H$195,3,FALSE),DB81)","v":""},"","",null,0]
[null,null,null,null,null,null,null,null,null,"",null,null,null,null,null,null,null,null,null,null,null,null,{"$f":"IFERROR(IF(AX144=\"\",IF($AU$73+$BH$72>$AU$76,VLOOKUP(ROW(),BG81:$BJ$223,4,FALSE),\"\"),AX144),\"\")","v":""},null,null,null,null,null,null,null,null,null,"",null,null,null,null,null,null,null,null,null,null,null,null,null,null,"","","",null,null,null,null,null,null,null,"","","","","",null,null,null,0,"ｼｱﾝ化物ｲｵﾝ及び塩化ｼｱﾝ",null,"1,1","１，１",null,"","","","",{"$f":"IFERROR(VLOOKUP(BW82,[1]採取マスタ!$G$144:$H$164,2,FALSE),\"\")","v":""},"","",null,"","","","","","","","","","","","","","","","","","","","","","","","",0,"","","",{"$f":"IFERROR(VLOOKUP(DC82,[1]採取マスタ!$F$156:$H$195,3,FALSE),DB82)","v":""},"","",null,0]
[null,null,null,null,null,null,null,null,null,"",null,null,null,null,null,null,null,null,null,null,null,null,{"$f":"IFERROR(IF(AX145=\"\",IF($AU$73+$BH$72>$AU$76,VLOOKUP(ROW(),BG82:$BJ$223,4,FALSE),\"\"),AX145),\"\")","v":""},null,null,null,null,null,null,null,null,null,"",null,null,null,null,null,null,null,null,null,null,null,null,null,null,"","","",null,null,null,null,null,null,null,"","","","","",null,null,null,0,"硝酸態窒素及び亜硝酸態窒素",null,null,null,null,"","","","",{"$f":"IFERROR(VLOOKUP(BW83,[1]採取マスタ!$G$144:$H$164,2,FALSE),\"\")","v":""},"","",null,"","","","","","","","","","","","","","","","","","","","","","","","",0,"","","",{"$f":"IFERROR(VLOOKUP(DC83,[1]採取マスタ!$F$156:$H$195,3,FALSE),DB83)","v":""},"","",null,0]
[null,null,null,null,null,null,null,null,null,"",null,null,null,null,null,null,null,null,null,null,null,null,{"$f":"IFERROR(IF(AX146=\"\",IF($AU$73+$BH$72>$AU$76,VLOOKUP(ROW(),BG83:$BJ$223,4,FALSE),\"\"),AX146),\"\")","v":""},null,null,null,null,null,null,null,null,null,"",null,null,null,null,null,null,null,null,null,null,null,null,null,null,"","","",null,null,null,null,null,null,null,"","","","","",null,null,null,0,"ﾌｯ素及びその化合物",null,null,null,null,"","","","",{"$f":"IFERROR(VLOOKUP(BW84,[1]採取マスタ!$G$144:$H$164,2,FALSE),\"\")","v":""},"","",null,"","","","","","","","","","","","","","","","","","","","","","","","",0,"","","",{"$f":"IFERROR(VLOOKUP(DC84,[1]採取マスタ!$F$156:$H$195,3,FALSE),DB84)","v":""},"","",null,0]
[null,null,null,null,null,null,null,null,null,"",null,null,null,null,null,null,null,null,null,null,null,null,{"$f":"IFERROR(IF(AX147=\"\",IF($AU$73+$BH$72>$AU$76,VLOOKUP(ROW(),BG84:$BJ$223,4,FALSE),\"\"),AX147),\"\")","v":""},null,null,null,null,null,null,null,null,null,"",null,null,null,null,null,null,null,null,null,null,null,null,null,null,"","","",null,null,null,null,null,null,null,"","","","","",null,null,null,0,"ﾎｳ素及びその化合物",null,null,null,null,"","","","",{"$f":"IFERROR(VLOOKUP(BW85,[1]採取マスタ!$G$144:$H$164,2,FALSE),\"\")","v":""},"","",null,"","","","","","","","","","","","","","","","","","","","","","","","",0,"","","",{"$f":"IFERROR(VLOOKUP(DC85,[1]採取マスタ!$F$156:$H$195,3,FALSE),DB85)","v":""},"","",null,0]
[null,null,null,null,null,null,null,null,null,"",null,null,null,null,null,null,null,null,null,null,null,null,{"$f":"IFERROR(IF(AX148=\"\",IF($AU$73+$BH$72>$AU$76,VLOOKUP(ROW(),BG85:$BJ$223,4,FALSE),\"\"),AX148),\"\")","v":""},null,null,null,null,null,null,null,null,null,"",null,null,null,null,null,null,null,null,null,null,null,null,null,null,"","","",null,null,null,null,null,null,null,"","","","","",null,null,null,0,"四塩化炭素",null,null,null,null,"","","","",{"$f":"IFERROR(VLOOKUP(BW86,[1]採取マスタ!$G$144:$H$164,2,FALSE),\"\")","v":""},"","",null,"","","","","","","","","","","","","","","","","","","","","","","","",0,"","","",{"$f":"IFERROR(VLOOKUP(DC86,[1]採取マスタ!$F$156:$H$195,3,FALSE),DB86)","v":""},"","",null,0]
[null,null,null,null,null,null,null,null,null,"",null,null,null,null,null,null,null,null,null,null,null,null,{"$f":"IFERROR(IF(AX149=\"\",IF($AU$73+$BH$72>$AU$76,VLOOKUP(ROW(),BG86:$BJ$223,4,FALSE),\"\"),AX149),\"\")","v":""},null,null,null,null,null,null,null,null,null,"",null,null,null,null,null,null,null,null,null,null,null,null,null,null,"","","",null,null,null,null,null,null,null,"","","","","",null,null,null,0,"1,4-ｼﾞｵｷｻﾝ",null,null,null,null,"","","","",{"$f":"IFERROR(VLOOKUP(BW87,[1]採取マスタ!$G$144:$H$164,2,FALSE),\"\")","v":""},"","",null,"","","","","","","","","","","","","","","","","","","","","","","","",0,"","","",{"$f":"IFERROR(VLOOKUP(DC87,[1]採取マスタ!$F$156:$H$195,3,FALSE),DB87)","v":""},"","",null,0]
[null,null,null,null,null,null,null,null,null,"",null,null,null,null,null,null,null,null,null,null,null,null,{"$f":"IFERROR(IF(AX150=\"\",IF($AU$73+$BH$72>$AU$76,VLOOKUP(ROW(),BG87:$BJ$223,4,FALSE),\"\"),AX150),\"\")","v":""},null,null,null,null,null,null,null,null,null,"",null,null,null,null,null,null,null,null,null,null,null,null,null,null,"","","",null,null,null,null,null,null,null,"","","","","",null,null,null,0,"ｼｽ及びﾄﾗﾝｽ-1,2-ｼﾞｸﾛﾛｴﾁﾚﾝ","ｼｽ及びﾄﾗﾝｽ-1,2-ｼﾞｸﾛﾛｴﾁﾚﾝ",null,null,null,"","","","",{"$f":"IFERROR(VLOOKUP(BW88,[1]採取マスタ!$G$144:$H$164,2,FALSE),\"\")","v":""},"","",null,"","","","","","","","","","","","","","","","","","","","","","","","",0,"","","",{"$f":"IFERROR(VLOOKUP(DC88,[1]採取マスタ!$F$156:$H$195,3,FALSE),DB88)","v":""},"","",null,0]
[null,null,null,null,null,null,null,null,null,"",null,null,null,null,null,null,null,null,null,null,null,null,{"$f":"IFERROR(IF(AX151=\"\",IF($AU$73+$BH$72>$AU$76,VLOOKUP(ROW(),BG88:$BJ$223,4,FALSE),\"\"),AX151),\"\")","v":""},null,null,null,null,null,null,null,null,null,"",null,null,null,null,null,null,null,null,null,null,null,null,null,null,"","","",null,null,null,null,null,null,null,"","","","","",null,null,null,0,"ｼﾞｸﾛﾛﾒﾀﾝ",null,null,null,null,"","","","",{"$f":"IFERROR(VLOOKUP(BW89,[1]採取マスタ!$G$144:$H$164,2,FALSE),\"\")","v":""},"","",null,"","","","","","","","","","","","","","","","","","","","","","","","",0,"","","",{"$f":"IFERROR(VLOOKUP(DC89,[1]採取マスタ!$F$156:$H$195,3,FALSE),DB89)","v":""},"","",null,0]
[null,null,null,null,null,null,null,null,null,"",null,null,null,null,null,null,null,null,null,null,null,null,{"$f":"IFERROR(IF(AX152=\"\",IF($AU$73+$BH$72>$AU$76,VLOOKUP(ROW(),BG89:$BJ$223,4,FALSE),\"\"),AX152),\"\")","v":""},null,null,null,null,null,null,null,null,null,"",null,null,null,null,null,null,null,null,null,null,null,null,null,null,"","","",null,null,null,null,null,null,null,"","","","","",null,null,null,0,"ﾃﾄﾗｸﾛﾛｴﾁﾚﾝ",null,"変換",null,null,"","","","",{"$f":"IFERROR(VLOOKUP(BW90,[1]採取マスタ!$G$144:$H$164,2,FALSE),\"\")","v":""},"","",null,"","","","",{"$f":"IFERROR(IF(CE90+1<=$CD90,CE90+1,\"\"),\"\")","v":""},"","","","","","","","","","","","","","","","","","","",0,"","","",{"$f":"IFERROR(VLOOKUP(DC90,[1]採取マスタ!$F$156:$H$195,3,FALSE),DB90)","v":""},"","",null,0]
[null,null,null,null,null,null,null,null,null,"",null,null,null,null,null,null,null,null,null,null,null,null,{"$f":"IFERROR(IF(AX153=\"\",IF($AU$73+$BH$72>$AU$76,VLOOKUP(ROW(),BG90:$BJ$223,4,FALSE),\"\"),AX153),\"\")","v":""},null,null,null,null,null,null,null,null,null,"",null,null,null,null,null,null,null,null,null,null,null,null,null,null,"","","",null,null,null,null,null,null,null,"","","","","",null,null,null,0,"ﾄﾘｸﾛﾛｴﾁﾚﾝ",null,"　"," ",null,"","","","",{"$f":"IFERROR(VLOOKUP(BW91,[1]採取マスタ!$G$144:$H$164,2,FALSE),\"\")","v":""},"","",null,"","","","","","","","","","","","","","","","","","","","","","","","",0,"","","",{"$f":"IFERROR(VLOOKUP(DC91,[1]採取マスタ!$F$156:$H$195,3,FALSE),DB91)","v":""},"","",{"$f":"DF72&DF73&DF74&DF75&DF76&DF77&DF78&DF79&DF80&DF81&DF82&DF83&DF84&DF85&DF86&DF87&DF88&DF89&DF90&DF91","v":""},0]
[null,null,null,null,null,null,null,null,null,"",null,null,null,null,null,null,null,null,null,null,null,null,{"$f":"IFERROR(IF(AX154=\"\",IF($AU$73+$BH$72>$AU$76,VLOOKUP(ROW(),BG91:$BJ$223,4,FALSE),\"\"),AX154),\"\")","v":""},null,null,null,null,null,null,null,null,null,"",null,null,null,null,null,null,null,null,null,null,null,null,null,null,"","","",null,null,null,null,null,null,null,"","","","","",null,null,null,0,"ﾍﾞﾝｾﾞﾝ",null,"、",",",null,"","","","",{"$f":"IFERROR(VLOOKUP(BW92,[1]採取マスタ!$G$144:$H$164,2,FALSE),\"\")","v":""},"","",{"$f":"BZ73&BZ74&BZ75&BZ76&BZ77&BZ78&BZ79&BZ80&BZ81&BZ82&BZ83&BZ84&BZ85&BZ86&BZ87&BZ88&BZ89&BZ90&BZ91&BZ92","v":""},"","","","","","","","","","","","","","","","","","","","","","","","",0,"","","",{"$f":"IFERROR(VLOOKUP(DC92,[1]採取マスタ!$F$156:$H$195,3,FALSE),DB92)","v":""},"","",null,0]
[null,null,null,null,null,null,null,null,null,"",null,null,null,null,null,null,null,null,null,null,null,null,{"$f":"IFERROR(IF(AX155=\"\",IF($AU$73+$BH$72>$AU$76,VLOOKUP(ROW(),BG92:$BJ$223,4,FALSE),\"\"),AX155),\"\")","v":""},null,null,null,null,null,null,null,null,null,"",null,null,null,null,null,null,null,null,null,null,null,null,null,null,"","","",null,null,null,null,null,null,null,"","","","","",null,null,null,0,"塩素酸",null,"・",null,null,"","","","",{"$f":"IFERROR(VLOOKUP(BW93,[1]採取マスタ!$G$144:$H$164,2,FALSE),\"\")","v":""},"","",null,"","","","","","","","","","","","","","","","","","","","","","","","",0,"","","",{"$f":"IFERROR(VLOOKUP(DC93,[1]採取マスタ!$F$156:$H$195,3,FALSE),DB93)","v":""},"","",null,0]
[null,null,null,null,null,null,null,null,null,"",null,null,null,null,null,null,null,null,null,null,null,null,{"$f":"IFERROR(IF(AX156=\"\",IF($AU$73+$BH$72>$AU$76,VLOOKUP(ROW(),BG93:$BJ$223,4,FALSE),\"\"),AX156),\"\")","v":""},null,null,null,null,null,null,null,null,null,"",null,null,null,null,null,null,null,null,null,null,null,null,null,null,"","","",null,null,null,null,null,null,null,"","","","","",null,null,null,0,"ｸﾛﾛ酢酸",null," ×","×",null,"","","","",{"$f":"IFERROR(VLOOKUP(BW94,[1]採取マスタ!$G$144:$H$164,2,FALSE),\"\")","v":""},"","",null,"","","","","","","","","","","","","","","","","","","","","","","","",0,"","","",{"$f":"IFERROR(VLOOKUP(DC94,[1]採取マスタ!$F$156:$H$195,3,FALSE),DB94)","v":""},"","",null,0]
[null,null,null,null,null,null,null,null,null,"",null,null,null,null,null,null,null,null,null,null,null,null,{"$f":"IFERROR(IF(AX157=\"\",IF($AU$73+$BH$72>$AU$76,VLOOKUP(ROW(),BG94:$BJ$223,4,FALSE),\"\"),AX157),\"\")","v":""},null,null,null,null,null,null,null,null,null,"",null,null,null,null,null,null,null,null,null,null,null,null,null,null,"","","",null,null,null,null,null,null,null,"","","","","",null,null,null,0,"ｸﾛﾛﾎﾙﾑ",null,"，",",",null,"","","","",{"$f":"IFERROR(VLOOKUP(BW95,[1]採取マスタ!$G$144:$H$164,2,FALSE),\"\")","v":""},"","",null,"","","","","","","","","","","","","","",{"$f":"IFERROR(IF(CO95+1<=$CD96,CO95+1,\"\"),\"\")","v":""},"","","","","","","","","",0,"","","",{"$f":"IFERROR(VLOOKUP(DC95,[1]採取マスタ!$F$156:$H$195,3,FALSE),DB95)","v":""},"","",null,0]
[null,null,null,null,null,null,null,null,null,"",null,null,null,null,null,null,null,null,null,null,null,null,{"$f":"IFERROR(IF(AX158=\"\",IF($AU$73+$BH$72>$AU$76,VLOOKUP(ROW(),BG95:$BJ$223,4,FALSE),\"\"),AX158),\"\")","v":""},null,null,null,null,null,null,null,null,null,"",null,null,null,null,null,null,null,null,null,null,null,null,null,null,"","","",null,null,null,null,null,null,null,"","","","","",null,null,null,0,"ｼﾞｸﾛﾛ酢酸",null,"*","×",null,"","","","",{"$f":"IFERROR(VLOOKUP(BW96,[1]採取マスタ!$G$144:$H$164,2,FALSE),\"\")","v":""},"","",null,"","","","","","","","","","","","",{"$f":"IFERROR(IF(CM96+1<=$CD97,CM96+1,\"\"),\"\")","v":""},"","","","","","","","","","","",0,"","","",{"$f":"IFERROR(VLOOKUP(DC96,[1]採取マスタ!$F$156:$H$195,3,FALSE),DB96)","v":""},"","",null,0]
[null,null,null,null,null,null,null,null,null,"",null,null,null,null,null,null,null,null,null,null,null,null,{"$f":"IFERROR(IF(AX159=\"\",IF($AU$73+$BH$72>$AU$76,VLOOKUP(ROW(),BG96:$BJ$223,4,FALSE),\"\"),AX159),\"\")","v":""},null,null,null,null,null,null,null,null,null,"",null,null,null,null,null,null,null,null,null,null,null,null,null,null,"","","",null,null,null,null,null,null,null,"","","","","",null,null,null,0,"ｼﾞﾌﾞﾛﾓｸﾛﾛﾒﾀﾝ",null,null,null,null,"","","","",{"$f":"IFERROR(VLOOKUP(BW97,[1]採取マスタ!$G$144:$H$164,2,FALSE),\"\")","v":""},"","",null,"","","","","","","","","","","","","","","","","","","","","","","","",0,"","","",{"$f":"IFERROR(VLOOKUP(DC97,[1]採取マスタ!$F$156:$H$195,3,FALSE),DB97)","v":""},"","",null,0]
[null,null,null,null,null,null,null,null,null,"",null,null,null,null,null,null,null,null,null,null,null,null,{"$f":"IFERROR(IF(AX160=\"\",IF($AU$73+$BH$72>$AU$76,VLOOKUP(ROW(),BG97:$BJ$223,4,FALSE),\"\"),AX160),\"\")","v":""},null,null,null,null,null,null,null,null,null,"",null,null,null,null,null,null,null,null,null,null,null,null,null,null,"","","",null,null,null,null,null,null,null,"","","","","",null,null,null,0,"臭素酸",null,null,null,null,"","","","",{"$f":"IFERROR(VLOOKUP(BW98,[1]採取マスタ!$G$144:$H$164,2,FALSE),\"\")","v":""},"","",null,"","","","","","","","","","","","","","","","","","","","","","","","",0,"","","",{"$f":"IFERROR(VLOOKUP(DC98,[1]採取マスタ!$F$156:$H$195,3,FALSE),DB98)","v":""},"","",null,0]
[null,null,null,null,null,null,null,null,null,"",null,null,null,null,null,null,null,null,null,null,null,null,{"$f":"IFERROR(IF(AX161=\"\",IF($AU$73+$BH$72>$AU$76,VLOOKUP(ROW(),BG98:$BJ$223,4,FALSE),\"\"),AX161),\"\")","v":""},null,null,null,null,null,null,null,null,null,"",null,null,null,null,null,null,null,null,null,null,null,null,null,null,"","","",null,null,null,null,null,null,null,"","","","","",null,null,null,0,"総ﾄﾘﾊﾛﾒﾀﾝ",null,null,null,null,"","","","",{"$f":"IFERROR(VLOOKUP(BW99,[1]採取マスタ!$G$144:$H$164,2,FALSE),\"\")","v":""},"","",null,"","","","","","","","","","","","","","","","","","","","","","","","",0,"","","",{"$f":"IFERROR(VLOOKUP(DC99,[1]採取マスタ!$F$156:$H$195,3,FALSE),DB99)","v":""},"","",null,0]
[null,null,null,null,null,null,null,null,null,"",null,null,null,null,null,null,null,null,null,null,null,null,{"$f":"IFERROR(IF(AX162=\"\",IF($AU$73+$BH$72>$AU$76,VLOOKUP(ROW(),BG99:$BJ$223,4,FALSE),\"\"),AX162),\"\")","v":""},null,null,null,null,null,null,null,null,null,"",null,null,null,null,null,null,null,null,null,null,null,null,null,null,"","","",null,null,null,null,null,null,null,"","","","","",null,null,null,0,"ﾄﾘｸﾛﾛ酢酸",null,"A",null,null,"","","","",{"$f":"IFERROR(VLOOKUP(BW100,[1]採取マスタ!$G$144:$H$164,2,FALSE),\"\")","v":""},"","",null,"","","","","","","","","","","","","","","","","","","","","","","","",0,"","","",{"$f":"IFERROR(VLOOKUP(DC100,[1]採取マスタ!$F$156:$H$195,3,FALSE),DB100)","v":""},"","",null,0]
[null,null,null,null,null,null,null,null,null,"",null,null,null,null,null,null,null,null,null,null,null,null,{"$f":"IFERROR(IF(AX163=\"\",IF($AU$73+$BH$72>$AU$76,VLOOKUP(ROW(),BG100:$BJ$223,4,FALSE),\"\"),AX163),\"\")","v":""},null,null,null,null,null,null,null,null,null,"",null,null,null,null,null,null,null,null,null,null,null,null,null,null,"","","",null,null,null,null,null,null,null,"","","","","",null,null,null,0,"ﾌﾞﾛﾓｼﾞｸﾛﾛﾒﾀﾝ",null,"B",null,null,"","","","",{"$f":"IFERROR(VLOOKUP(BW101,[1]採取マスタ!$G$144:$H$164,2,FALSE),\"\")","v":""},"","",null,"","","","","","","","","","","","","","","","","","","","","","","","",0,"","","",{"$f":"IFERROR(VLOOKUP(DC101,[1]採取マスタ!$F$156:$H$195,3,FALSE),DB101)","v":""},"","",null,0]
[null,null,null,null,null,null,null,null,null,"",null,null,null,null,null,null,null,null,null,null,null,null,{"$f":"IFERROR(IF(AX164=\"\",IF($AU$73+$BH$72>$AU$76,VLOOKUP(ROW(),BG101:$BJ$223,4,FALSE),\"\"),AX164),\"\")","v":""},null,null,null,null,null,null,null,null,null,"",null,null,null,null,null,null,null,null,null,null,null,null,null,null,"","","",null,null,null,null,null,null,null,"","","","","",null,null,null,0,"ﾌﾞﾛﾓﾎﾙﾑ",null,"C",null,null,"","","","",{"$f":"IFERROR(VLOOKUP(BW102,[1]採取マスタ!$G$144:$H$164,2,FALSE),\"\")","v":""},"","",null,"","","","","","","","","","","","","","","","","","","","","","","","",0,"","","",{"$f":"IFERROR(VLOOKUP(DC102,[1]採取マスタ!$F$156:$H$195,3,FALSE),DB102)","v":""},"","",null,0]
[null,null,null,null,null,null,null,null,null,"",null,null,null,null,null,null,null,null,null,null,null,null,{"$f":"IFERROR(IF(AX165=\"\",IF($AU$73+$BH$72>$AU$76,VLOOKUP(ROW(),BG102:$BJ$223,4,FALSE),\"\"),AX165),\"\")","v":""},null,null,null,null,null,null,null,null,null,"",null,null,null,null,null,null,null,null,null,null,null,null,null,null,"","","",null,null,null,null,null,null,null,"","","","","",null,null,null,0,"ﾎﾙﾑｱﾙﾃﾞﾋﾄﾞ",null,"D",null,null,"","","","",{"$f":"IFERROR(VLOOKUP(BW103,[1]採取マスタ!$G$144:$H$164,2,FALSE),\"\")","v":""},"","",null,"","","","","","","","","","","","","","","","","","","","","","","","",0,"","","",{"$f":"IFERROR(VLOOKUP(DC103,[1]採取マスタ!$F$156:$H$195,3,FALSE),DB103)","v":""},"","",null,0]
[null,null,null,null,null,null,null,null,null,"",null,null,null,null,null,null,null,null,null,null,null,null,{"$f":"IFERROR(IF(AX166=\"\",IF($AU$73+$BH$72>$AU$76,VLOOKUP(ROW(),BG103:$BJ$223,4,FALSE),\"\"),AX166),\"\")","v":""},null,null,null,null,null,null,null,null,null,"",null,null,null,null,null,null,null,null,null,null,null,null,null,null,"","","",null,null,null,null,null,null,null,"","","","","",null,null,null,0,"亜鉛及びその化合物",null,"E",null,null,"","","","",{"$f":"IFERROR(VLOOKUP(BW104,[1]採取マスタ!$G$144:$H$164,2,FALSE),\"\")","v":""},"","",null,"","","","","","","","","","","","","","","","","","","","","","","","",0,"","","",{"$f":"IFERROR(VLOOKUP(DC104,[1]採取マスタ!$F$156:$H$195,3,FALSE),DB104)","v":""},"","",null,0]
[null,null,null,null,null,null,null,null,null,"",null,null,null,null,null,null,null,null,null,null,null,null,{"$f":"IFERROR(IF(AX167=\"\",IF($AU$73+$BH$72>$AU$76,VLOOKUP(ROW(),BG104:$BJ$223,4,FALSE),\"\"),AX167),\"\")","v":""},null,null,null,null,null,null,null,null,null,"",null,null,null,null,null,null,null,null,null,null,null,null,null,null,"","","",null,null,null,null,null,null,null,"","","","","",null,null,null,0,"ｱﾙﾐﾆｳﾑ及びその化合物",null,"F",null,null,"","","","",{"$f":"IFERROR(VLOOKUP(BW105,[1]採取マスタ!$G$144:$H$164,2,FALSE),\"\")","v":""},"","",null,"","","","","","","","","","","","","","","","","","","","","","","","",0,"","","",{"$f":"IFERROR(VLOOKUP(DC105,[1]採取マスタ!$F$156:$H$195,3,FALSE),DB105)","v":""},"","",null,0]
[null,null,null,null,null,null,null,null,null,"",null,null,null,null,null,null,null,null,null,null,null,null,{"$f":"IFERROR(IF(AX168=\"\",IF($AU$73+$BH$72>$AU$76,VLOOKUP(ROW(),BG105:$BJ$223,4,FALSE),\"\"),AX168),\"\")","v":""},null,null,null,null,null,null,null,null,null,"",null,null,null,null,null,null,null,null,null,null,null,null,null,null,"","","",null,null,null,null,null,null,null,"","","","","",null,null,null,0,"鉄及びその化合物",null,"G",null,null,"","","","",{"$f":"IFERROR(VLOOKUP(BW106,[1]採取マスタ!$G$144:$H$164,2,FALSE),\"\")","v":""},"","",null,"","","","",{"$f":"IFERROR(IF(CE106+1<=$CD106,CE106+1,\"\"),\"\")","v":""},"","","","","","","","","","","","","","","","","","","",0,"","","",{"$f":"IFERROR(VLOOKUP(DC106,[1]採取マスタ!$F$156:$H$195,3,FALSE),DB106)","v":""},"","",null,0]
[null,null,null,null,null,null,null,null,null,"",null,null,null,null,null,null,null,null,null,null,null,null,{"$f":"IFERROR(IF(AX169=\"\",IF($AU$73+$BH$72>$AU$76,VLOOKUP(ROW(),BG106:$BJ$223,4,FALSE),\"\"),AX169),\"\")","v":""},null,null,null,null,null,null,null,null,null,"",null,null,null,null,null,null,null,null,null,null,null,null,null,null,"","","",null,null,null,null,null,null,null,"","","","","",null,null,null,0,"銅及びその化合物",null,"H",null,null,"","","","",{"$f":"IFERROR(VLOOKUP(BW107,[1]採取マスタ!$G$144:$H$164,2,FALSE),\"\")","v":""},"","",null,"","","","","","","","","","","","","","","","","","","","","","","","",0,"","","",{"$f":"IFERROR(VLOOKUP(DC107,[1]採取マスタ!$F$156:$H$195,3,FALSE),DB107)","v":""},"","",null,0]
[null,null,null,null,null,null,null,null,null,"",null,null,null,null,null,null,null,null,null,null,null,null,{"$f":"IFERROR(IF(AX170=\"\",IF($AU$73+$BH$72>$AU$76,VLOOKUP(ROW(),BG107:$BJ$223,4,FALSE),\"\"),AX170),\"\")","v":""},null,null,null,null,null,null,null,null,null,"",null,null,null,null,null,null,null,null,null,null,null,null,null,null,"","","",null,null,null,null,null,null,null,"","","","","",null,null,null,0,"ﾅﾄﾘｳﾑ及びその化合物",null,"I",null,null,"","","","",{"$f":"IFERROR(VLOOKUP(BW108,[1]採取マスタ!$G$144:$H$164,2,FALSE),\"\")","v":""},"","",null,"","","","","","","","","","","","","","","","","","","","","","","","",0,"","","",{"$f":"IFERROR(VLOOKUP(DC108,[1]採取マスタ!$F$156:$H$195,3,FALSE),DB108)","v":""},"","",null,0]
[null,null,null,null,null,null,null,null,null,"",null,null,null,null,null,null,null,null,null,null,null,null,{"$f":"IFERROR(IF(AX171=\"\",IF($AU$73+$BH$72>$AU$76,VLOOKUP(ROW(),BG108:$BJ$223,4,FALSE),\"\"),AX171),\"\")","v":""},null,null,null,null,null,null,null,null,null,"",null,null,null,null,null,null,null,null,null,null,null,null,null,null,"","","",null,null,null,null,null,null,null,"","","","","",null,null,null,0,"ﾏﾝｶﾞﾝ及びその化合物",null,"J",null,null,"","","","",{"$f":"IFERROR(VLOOKUP(BW109,[1]採取マスタ!$G$144:$H$164,2,FALSE),\"\")","v":""},"","",null,"","","","","","","","","","","","","","","","","","","","","","","","",0,"","","",{"$f":"IFERROR(VLOOKUP(DC109,[1]採取マスタ!$F$156:$H$195,3,FALSE),DB109)","v":""},"","",null,0]
[null,null,null,null,null,null,null,null,null,"",null,null,null,null,null,null,null,null,null,null,null,null,{"$f":"IFERROR(IF(AX172=\"\",IF($AU$73+$BH$72>$AU$76,VLOOKUP(ROW(),BG109:$BJ$223,4,FALSE),\"\"),AX172),\"\")","v":""},null,null,null,null,null,null,null,null,null,"",null,null,null,null,null,null,null,null,null,null,null,null,null,null,"","","",null,null,null,null,null,null,null,"","","","","",null,null,null,0,"塩化物ｲｵﾝ",null,"K",null,null,"","","","",{"$f":"IFERROR(VLOOKUP(BW110,[1]採取マスタ!$G$144:$H$164,2,FALSE),\"\")","v":""},"","",null,"","","","","","","","","","","","","","","","","","","","","","","","",0,"","","",{"$f":"IFERROR(VLOOKUP(DC110,[1]採取マスタ!$F$156:$H$195,3,FALSE),DB110)","v":""},"","",null,0]
[null,null,null,null,null,null,null,null,null,"",null,null,null,null,null,null,null,null,null,null,null,null,{"$f":"IFERROR(IF(AX173=\"\",IF($AU$73+$BH$72>$AU$76,VLOOKUP(ROW(),BG110:$BJ$223,4,FALSE),\"\"),AX173),\"\")","v":""},null,null,null,null,null,null,null,null,null,"",null,null,null,null,null,null,null,null,null,null,null,null,null,null,"","","",null,null,null,null,null,null,null,"","","","","",null,null,null,0,"ｶﾙｼｳﾑ,ﾏｸﾞﾈｼｳﾑ等(硬度)",null,"L",null,null,"","","","",{"$f":"IFERROR(VLOOKUP(BW111,[1]採取マスタ!$G$144:$H$164,2,FALSE),\"\")","v":""},"","",null,"","","","","","","","","","","","","","","","","","","","","","","","",0,"","","",{"$f":"IFERROR(VLOOKUP(DC111,[1]採取マスタ!$F$156:$H$195,3,FALSE),DB111)","v":""},"","",{"$f":"DF92&DF93&DF94&DF95&DF96&DF97&DF98&DF99&DF100&DF101&DF102&DF103&DF104&DF105&DF106&DF107&DF108&DF109&DF110&DF111","v":""},0]
[null,null,null,null,null,null,null,null,null,"",null,null,null,null,null,null,null,null,null,null,null,null,{"$f":"IFERROR(IF(AX174=\"\",IF($AU$73+$BH$72>$AU$76,VLOOKUP(ROW(),BG111:$BJ$223,4,FALSE),\"\"),AX174),\"\")","v":""},null,null,null,null,null,null,null,null,null,"",null,null,null,null,null,null,null,null,null,null,null,null,null,null,"","","",null,null,null,null,null,null,null,"","","","","",null,null,null,0,"蒸発残留物",null,"M",null,null,"","","","",{"$f":"IFERROR(VLOOKUP(BW112,[1]採取マスタ!$G$144:$H$164,2,FALSE),\"\")","v":""},"","",{"$f":"BZ93&BZ94&BZ95&BZ96&BZ97&BZ98&BZ99&BZ100&BZ101&BZ102&BZ103&BZ104&BZ105&BZ106&BZ107&BZ108&BZ109&BZ110&BZ111&BZ112","v":""},"","","","","","","","","","","","END","END","END","END","END","END","END","END","END","END","END","END","END","END","END","END","END","END","END","END","END"]
[null,null,null,null,null,null,null,null,null,"",null,null,null,null,null,null,null,null,null,null,null,null,{"$f":"IFERROR(IF(AX175=\"\",IF($AU$73+$BH$72>$AU$76,VLOOKUP(ROW(),BG112:$BJ$223,4,FALSE),\"\"),AX175),\"\")","v":""},null,null,null,null,null,null,null,null,null,"",null,null,null,null,null,null,null,null,null,null,null,null,null,null,"","","",null,null,null,null,null,null,null,"","","","","",null,null,null,0,"陰ｲｵﾝ界面活性剤",null,"N",null,null,"","","","END","END","END","END","END","END","END","END","END","END","END","END","END","END","END","END"]
[null,null,null,null,null,null,null,null,null,"",null,null,null,null,null,null,null,null,null,null,null,null,{"$f":"IFERROR(IF(AX176=\"\",IF($AU$73+$BH$72>$AU$76,VLOOKUP(ROW(),BG113:$BJ$223,4,FALSE),\"\"),AX176),\"\")","v":""},null,null,null,null,null,null,null,null,null,"",null,null,null,null,null,null,null,null,null,null,null,null,null,null,"","","",null,null,null,null,null,null,null,"","","","","",null,null,null,0,"ｼﾞｪｵｽﾐﾝ",null,"O",null,null,"","",""]
[null,null,null,null,null,null,null,null,null,"",null,null,null,null,null,null,null,null,null,null,null,null,{"$f":"IFERROR(IF(AX177=\"\",IF($AU$73+$BH$72>$AU$76,VLOOKUP(ROW(),BG114:$BJ$223,4,FALSE),\"\"),AX177),\"\")","v":""},null,null,null,null,null,null,null,null,null,"",null,null,null,null,null,null,null,null,null,null,null,null,null,null,"","","",null,null,null,null,null,null,null,"","","","","",null,null,null,0,"2-ﾒﾁﾙｲｿﾎﾞﾙﾈｵｰﾙ",null,"P",null,null,"","",""]
[null,null,null,null,null,null,null,null,null,"",null,null,null,null,null,null,null,null,null,null,null,null,{"$f":"IFERROR(IF(AX178=\"\",IF($AU$73+$BH$72>$AU$76,VLOOKUP(ROW(),BG115:$BJ$223,4,FALSE),\"\"),AX178),\"\")","v":""},null,null,null,null,null,null,null,null,null,"",null,null,null,null,null,null,null,null,null,null,null,null,null,null,"","","",null,null,null,null,null,null,null,"","","","","",null,null,null,0,"非ｲｵﾝ界面活性剤",null,"Q",null,null,"","",""]
[null,null,null,null,null,null,null,null,null,"",null,null,null,null,null,null,null,null,null,null,null,null,{"$f":"IFERROR(IF(AX179=\"\",IF($AU$73+$BH$72>$AU$76,VLOOKUP(ROW(),BG116:$BJ$223,4,FALSE),\"\"),AX179),\"\")","v":""},null,null,null,null,null,null,null,null,null,"",null,null,null,null,null,null,null,null,null,null,null,null,null,null,"","","",null,null,null,null,null,null,null,"","","","","",null,null,null,0,"ﾌｪﾉｰﾙ類",null,"R",null,null,"","",""]
[null,null,null,null,null,null,null,null,null,"",null,null,null,null,null,null,null,null,null,null,null,null,{"$f":"IFERROR(IF(AX180=\"\",IF($AU$73+$BH$72>$AU$76,VLOOKUP(ROW(),BG117:$BJ$223,4,FALSE),\"\"),AX180),\"\")","v":""},null,null,null,null,null,null,null,null,null,"",null,null,null,null,null,null,null,null,null,null,null,null,null,null,"","","",null,null,null,null,null,null,null,"","","","","",null,null,null,0,"有機物(全有機炭素(TOC)の量)",null,"S",null,null,"","",""]
[null,null,null,null,null,null,null,null,null,"",null,null,null,null,null,null,null,null,null,null,null,null,{"$f":"IFERROR(IF(AX181=\"\",IF($AU$73+$BH$72>$AU$76,VLOOKUP(ROW(),BG118:$BJ$223,4,FALSE),\"\"),AX181),\"\")","v":""},null,null,null,null,null,null,null,null,null,"",null,null,null,null,null,null,null,null,null,null,null,null,null,null,"","","",null,null,null,null,null,null,null,"","","","","",null,null,null,0,"pH値",null,null,null,null,"","",""]
[null,null,null,null,null,null,null,null,null,"",null,null,null,null,null,null,null,null,null,null,null,null,{"$f":"IFERROR(IF(AX182=\"\",IF($AU$73+$BH$72>$AU$76,VLOOKUP(ROW(),BG119:$BJ$223,4,FALSE),\"\"),AX182),\"\")","v":""},null,null,null,null,null,null,null,null,null,"",null,null,null,null,null,null,null,null,null,null,null,null,null,null,"","","",null,null,null,null,null,null,null,"","","","","",null,null,null,0,"味",null,"①","1,",null,"","",""]
[null,null,null,null,null,null,null,null,null,"",null,null,null,null,null,null,null,null,null,null,null,null,{"$f":"IFERROR(IF(AX183=\"\",IF($AU$73+$BH$72>$AU$76,VLOOKUP(ROW(),BG120:$BJ$223,4,FALSE),\"\"),AX183),\"\")","v":""},null,null,null,null,null,null,null,null,null,"",null,null,null,null,null,null,null,null,null,null,null,null,null,null,"","","",null,null,null,null,null,null,null,"","","","","",null,null,null,0,"臭気",null,"②","2,",null,"","",""]
[null,null,null,null,null,null,null,null,null,"",null,null,null,null,null,null,null,null,null,null,null,null,{"$f":"IFERROR(IF(AX184=\"\",IF($AU$73+$BH$72>$AU$76,VLOOKUP(ROW(),BG121:$BJ$223,4,FALSE),\"\"),AX184),\"\")","v":""},null,null,null,null,null,null,null,null,null,"",null,null,null,null,null,null,null,null,null,null,null,null,null,null,"","","",null,null,null,null,null,null,null,"","","","","",null,null,null,0,"色度",null,"③","3,",null,"","",""]
[null,null,null,null,null,null,null,null,null,"",null,null,null,null,null,null,null,null,null,null,null,null,{"$f":"IFERROR(IF(AX185=\"\",IF($AU$73+$BH$72>$AU$76,VLOOKUP(ROW(),BG122:$BJ$223,4,FALSE),\"\"),AX185),\"\")","v":""},null,null,null,null,null,null,null,null,null,"",null,null,null,null,null,null,null,null,null,null,null,null,null,null,"","","",null,null,null,null,null,null,null,"","","","","",null,null,null,0,"濁度",null,"④","4,",null,"","",""]
[null,null,null,null,null,null,null,null,null,{"$f":"IFERROR(IF($AU$73>=ROW(),AX124,VLOOKUP(ROW(),$BG$72:$BJ$134,4,FALSE)),\"\")","v":""},null,null,null,null,null,null,null,null,null,null,null,null,{"$f":"IFERROR(IF(AX186=\"\",IF($AU$73+$BH$72>$AU$76,VLOOKUP(ROW(),BG123:$BJ$223,4,FALSE),\"\"),AX186),\"\")","v":""},null,null,null,null,null,null,null,null,null,"",null,null,null,null,null,null,null,null,null,null,null,null,null,null,"","","",null,null,null,null,null,null,null,"","","","","",null,null,null,{"$f":"IF(BO124=\" \",1,COUNTIF($AX$73:$AX$137,BO124))","v":1}," ","ｱﾝﾓﾆｱ態窒素","⑤","5,",null,"","",""]
[null,null,null,null,null,null,null,null,null,"",null,null,null,null,null,null,null,null,null,null,null,null,{"$f":"IFERROR(IF(AX187=\"\",IF($AU$73+$BH$72>$AU$76,VLOOKUP(ROW(),BG124:$BJ$223,4,FALSE),\"\"),AX187),\"\")","v":""},null,null,null,null,null,null,null,null,null,"",null,null,null,null,null,null,null,null,null,null,null,null,null,null,"","","",null,null,null,null,null,null,null,"","","","","",null,null,null,1," ","残留塩素","⑥","6,",null,"","",""]
[null,null,null,null,null,null,null,null,null,"",null,null,null,null,null,null,null,null,null,null,null,null,{"$f":"IFERROR(IF(AX188=\"\",IF($AU$73+$BH$72>$AU$76,VLOOKUP(ROW(),BG125:$BJ$223,4,FALSE),\"\"),AX188),\"\")","v":""},null,null,null,null,null,null,null,null,null,"",null,null,null,null,null,null,null,null,null,null,null,null,null,null,"","","",null,null,null,null,null,null,null,"","","","","",null,null,null,1," ",null,"⑦","7,",null,"","",""]
[null,null,null,null,null,null,null,null,null,"",null,null,null,null,null,null,null,null,null,null,null,null,{"$f":"IFERROR(IF(AX189=\"\",IF($AU$73+$BH$72>$AU$76,VLOOKUP(ROW(),BG126:$BJ$223,4,FALSE),\"\"),AX189),\"\")","v":""},null,null,null,null,null,null,null,null,null,"",null,null,null,null,null,null,null,null,null,null,null,null,null,null,"","","",null,null,null,null,null,null,null,"","","","","",null,null,null,1," ",null,"⑧","8,",null,"","",""]
[null,null,null,null,null,null,null,null,null,"",null,null,null,null,null,null,null,null,null,null,null,null,{"$f":"IFERROR(IF(AX190=\"\",IF($AU$73+$BH$72>$AU$76,VLOOKUP(ROW(),BG127:$BJ$223,4,FALSE),\"\"),AX190),\"\")","v":""},null,null,null,null,null,null,null,null,null,"",null,null,null,null,null,null,null,null,null,null,null,null,null,null,"","","",null,null,null,null,null,null,null,"","","","","",null,null,null,1," ",null,"⑨","9,",null,"","",""]
[null,null,null,null,null,null,null,null,null,"",null,null,null,null,null,null,null,null,null,null,null,null,{"$f":"IFERROR(IF(AX191=\"\",IF($AU$73+$BH$72>$AU$76,VLOOKUP(ROW(),BG128:$BJ$223,4,FALSE),\"\"),AX191),\"\")","v":""},null,null,null,null,null,null,null,null,null,"",null,null,null,null,null,null,null,null,null,null,null,null,null,null,"","","",null,null,null,null,null,null,null,"","","","","",null,null,null,1," ",null,"⑨","9,",null,"","",""]
[null,null,null,null,null,null,null,null,null,"",null,null,null,null,null,null,null,null,null,null,null,null,{"$f":"IFERROR(IF(AX192=\"\",IF($AU$73+$BH$72>$AU$76,VLOOKUP(ROW(),BG129:$BJ$223,4,FALSE),\"\"),AX192),\"\")","v":""},null,null,null,null,null,null,null,null,null,"",null,null,null,null,null,null,null,null,null,null,null,null,null,null,"","","",null,null,null,null,null,null,null,"","","","","",null,null,null,1," ",null,"⑩","10,",null,"","",""]
[null,null,null,null,null,null,null,null,null,"",null,null,null,null,null,null,null,null,null,null,null,null,{"$f":"IFERROR(IF(AX193=\"\",IF($AU$73+$BH$72>$AU$76,VLOOKUP(ROW(),BG130:$BJ$223,4,FALSE),\"\"),AX193),\"\")","v":""},null,null,null,null,null,null,null,null,null,"",null,null,null,null,null,null,null,null,null,null,null,null,null,null,"","","",null,null,null,null,null,null,null,"","","","","",null,null,null,1," ",null,"⑪","11,",null,"","",""]
[null,null,null,null,null,null,null,null,null,"",null,null,null,null,null,null,null,null,null,null,null,null,{"$f":"IFERROR(IF(AX194=\"\",IF($AU$73+$BH$72>$AU$76,VLOOKUP(ROW(),BG131:$BJ$223,4,FALSE),\"\"),AX194),\"\")","v":""},null,null,null,null,null,null,null,null,null,"",null,null,null,null,null,null,null,null,null,null,null,null,null,null,"","","",null,null,null,null,null,null,null,"","","","","",null,null,null,1," ",null,"⑫","12,",null,"","",""]
[null,null,null,null,null,null,null,null,null,"",null,null,null,null,null,null,null,null,null,null,null,null,{"$f":"IFERROR(IF(AX195=\"\",IF($AU$73+$BH$72>$AU$76,VLOOKUP(ROW(),BG132:$BJ$223,4,FALSE),\"\"),AX195),\"\")","v":""},null,null,null,null,null,null,null,null,null,"",null,null,null,null,null,null,null,null,null,null,null,null,null,null,"","",{"$f":"ASC(IF(AV136=\"\",AW133,LEFT(AW133,AV136-1)))","v":""},null,null,null,null,null,null,null,"","","","","",null,null,null,1," ",null,"⑬","13,",null,"","",""]
[null,null,null,null,null,null,null,null,null,null,null,null,null,null,null,null,null,null,null,null,null,null,null,null,null,null,null,null,null,null,null,null,null,null,null,null,null,null,null,null,null,null,null,null,null,null,null,"","",null,null,null,null,null,null,null,"END","END","","","","",null,null,null,null,"END",null,"⑭","14,",null,"","",{"$f":"ASC(IF(BT146=\"\",BU134,LEFT(BU134,BT146-1)))","v":""}]
[null,null,null,null,null,null,null,null,null,null,null,null,null,null,null,null,null,null,null,null,null,null,null,null,null,null,null,null,null,null,null,null,null,null,null,null,null,null,null,null,null,null,null,null,null,null,null,"","",null,null,null,null,null,null,null,null,null,"","","","",null,null,null,null,null,null,"⑮","15,",null,"","",""]
[null,null,null,null,null,null,null,null,null,null,null,null,null,null,null,null,null,null,null,null,null,null,null,null,null,null,null,null,null,null,null,null,null,null,null,null,null,null,null,null,null,null,null,null,null,null,null,"","",{"$f":"ASC(IF(AV137=\"\",AW136,LEFT(AW136,AV137-1)))","v":""},null,null,null,null,null,null,null,null,"","","","",null,null,null,null,null,null,"⑯","16,",null,"","",""]
[null,null,null,null,null,null,null,null,null,null,null,null,null,null,null,null,null,null,null,null,null,null,null,null,null,null,null,null,null,null,null,null,null,null,null,null,null,null,null,null,null,null,null,null,null,null,null,"","","",null,null,null,null,null,null,null,null,{"$f":"IF(BI137=\"\",\"\",IF(BG136=$AU$76,74,BG136+1))","v":""},"","",{"$f":"ASC(IF(BH138=\"\",BI137,LEFT(BI137,BH138-1)))","v":""},null,null,null,null,null,null,"⑰","17,",null,"","",""]
[null,null,null,null,null,null,null,null,null,null,null,null,null,null,null,null,null,null,null,null,null,null,null,null,null,null,null,null,null,null,null,null,null,null,null,null,null,null,null,null,null,null,null,null,null,null,null,"",{"$f":"IF(AV138=\"\",\"\",MID(AW137,AV138+1,2000))","v":""},"",null,null,null,null,null,null,null,null,"",{"$f":"IFERROR(FIND($AT$72,BI137),\"\")","v":""},{"$f":"IF(BH138=\"\",\"\",MID(BI137,BH138+1,2000))","v":""},"",null,null,null,null,null,null,"⑱","18,",null,{"$f":"IFERROR(FIND($BV$70,BU137),\"\")","v":""},{"$f":"IF(BT138=\"\",\"\",MID(BU137,BT138+1,500))","v":""},""]
[null,null,null,null,null,null,null,null,null,null,null,null,null,null,null,null,null,null,null,null,null,null,null,null,null,null,null,null,null,null,null,null,null,null,null,null,null,null,null,null,null,null,null,null,null,null,null,{"$f":"IFERROR(FIND($AT$72,AW138),\"\")","v":""},"","",null,null,null,null,null,null,null,null,"","","","",null,null,null,null,null,null,"⑲","19,",null,"","",""]
[null,null,null,null,null,null,null,null,null,null,null,null,null,null,null,null,null,null,null,null,null,null,null,null,null,null,null,null,null,null,null,null,null,null,null,null,null,null,null,null,null,null,null,null,null,null,null,"","","",null,null,null,null,null,null,null,null,"","","","",null,null,null,null,null,null,"⑳","20,",null,"","",""]
[null,null,null,null,null,null,null,null,null,null,null,null,null,null,null,null,null,null,null,null,null,null,null,null,null,null,null,null,null,null,null,null,null,null,null,null,null,null,null,null,null,null,null,null,null,null,null,"","","",null,null,null,null,null,null,null,null,"","","","",null,null,null,null,null,null,null,null,null,"","",""]
[null,null,null,null,null,null,null,null,null,null,null,null,null,null,null,null,null,null,null,null,null,null,null,null,null,null,null,null,null,null,null,null,null,null,null,null,null,null,null,null,null,null,null,null,null,null,null,"","","",null,null,null,null,null,null,null,null,"","","","",null,null,null,null,null,null,null,null,null,"","",""]
[null,null,null,null,null,null,null,null,null,null,null,null,null,null,null,null,null,null,null,null,null,null,null,null,null,null,null,null,null,null,null,null,null,null,null,null,null,null,null,null,null,null,null,null,null,null,null,"","","",null,null,null,null,null,null,null,null,"","","","",null,null,null,null,null,null,null,null,null,"","",""]
[null,null,null,null,null,null,null,null,null,null,null,null,null,null,null,null,null,null,null,null,null,null,null,null,null,null,null,null,null,null,null,null,null,null,null,null,null,null,null,null,null,null,null,null,null,null,null,"","","",null,null,null,null,null,null,null,null,"","","","",null,null,null,null,null,null,null,null,null,"","",""]
[null,null,null,null,null,null,null,null,null,null,null,null,null,null,null,null,null,null,null,null,null,null,null,null,null,null,null,null,null,null,null,null,null,null,null,null,null,null,null,null,null,null,null,null,null,null,null,"","","",null,null,null,null,null,null,null,null,"","","","",null,null,null,null,null,null,null,null,null,"","",""]
[null,null,null,null,null,null,null,null,null,null,null,null,null,null,null,null,null,null,null,null,null,null,null,null,null,null,null,null,null,null,null,null,null,null,null,null,null,null,null,null,null,null,null,null,null,null,null,"","","",null,null,null,null,null,null,null,null,"","","","","END","END","END","END","END","END",null,null,null,null,"END","END","END","END","END","END","END"]
[null,null,null,null,null,null,null,null,null,null,null,null,null,null,null,null,null,null,null,null,null,null,null,null,null,null,null,null,null,null,null,null,null,null,null,null,null,null,null,null,null,null,null,null,null,null,null,"","","",null,null,null,null,null,null,null,null,"","","",""]
[null,null,null,null,null,null,null,null,null,null,null,null,null,null,null,null,null,null,null,null,null,null,null,null,null,null,null,null,null,null,null,null,null,null,null,null,null,null,null,null,null,null,null,null,null,null,null,"","","",null,null,null,null,null,null,null,null,"","","",""]
[null,null,null,null,null,null,null,null,null,null,null,null,null,null,null,null,null,null,null,null,null,null,null,null,null,null,null,null,null,null,null,null,null,null,null,null,null,null,null,null,null,null,null,null,null,null,null,"","","",null,null,null,null,null,null,null,null,"","","",""]
[null,null,null,null,null,null,null,null,null,null,null,null,null,null,null,null,null,null,null,null,null,null,null,null,null,null,null,null,null,null,null,null,null,null,null,null,null,null,null,null,null,null,null,null,null,null,null,"","","",null,null,null,null,null,null,null,null,"","","",""]
[null,null,null,null,null,null,null,null,null,null,null,null,null,null,null,null,null,null,null,null,null,null,null,null,null,null,null,null,null,null,null,null,null,null,null,null,null,null,null,null,null,null,null,null,null,null,null,"","","",null,null,null,null,null,null,null,null,"","","",""]
[null,null,null,null,null,null,null,null,null,null,null,null,null,null,null,null,null,null,null,null,null,null,null,null,null,null,null,null,null,null,null,null,null,null,null,null,null,null,null,null,null,null,null,null,null,null,null,"","","",null,null,null,null,null,null,null,null,"","","",""]
[null,null,null,null,null,null,null,null,null,null,null,null,null,null,null,null,null,null,null,null,null,null,null,null,null,null,null,null,null,null,null,null,null,null,null,null,null,null,null,null,null,null,null,null,null,null,null,"","","",null,null,null,null,null,null,null,null,"","","",""]
[null,null,null,null,null,null,null,null,null,null,null,null,null,null,null,null,null,null,null,null,null,null,null,null,null,null,null,null,null,null,null,null,null,null,null,null,null,null,null,null,null,null,null,null,null,null,null,"","","",null,null,null,null,null,null,null,null,"","","",""]
[null,null,null,null,null,null,null,null,null,null,null,null,null,null,null,null,null,null,null,null,null,null,null,null,null,null,null,null,null,null,null,null,null,null,null,null,null,null,null,null,null,null,null,null,null,null,null,"","","",null,null,null,null,null,null,null,null,"","","",""]
[null,null,null,null,null,null,null,null,null,null,null,null,null,null,null,null,null,null,null,null,null,null,null,null,null,null,null,null,null,null,null,null,null,null,null,null,null,null,null,null,null,null,null,null,null,null,null,"","","",null,null,null,null,null,null,null,null,"","","",""]
[null,null,null,null,null,null,null,null,null,null,null,null,null,null,null,null,null,null,null,null,null,null,null,null,null,null,null,null,null,null,null,null,null,null,null,null,null,null,null,null,null,null,null,null,null,null,null,"","","",null,null,null,null,null,null,null,null,"","","",""]
[null,null,null,null,null,null,null,null,null,null,null,null,null,null,null,null,null,null,null,null,null,null,null,null,null,null,null,null,null,null,null,null,null,null,null,null,null,null,null,null,null,null,null,null,null,null,null,"","","",null,null,null,null,null,null,null,null,"","","",""]
[null,null,null,null,null,null,null,null,null,null,null,null,null,null,null,null,null,null,null,null,null,null,null,null,null,null,null,null,null,null,null,null,null,null,null,null,null,null,null,null,null,null,null,null,null,null,null,"","","",null,null,null,null,null,null,null,null,"","","",""]
[null,null,null,null,null,null,null,null,null,null,null,null,null,null,null,null,null,null,null,null,null,null,null,null,null,null,null,null,null,null,null,null,null,null,null,null,null,null,null,null,null,null,null,null,null,null,null,"","","",null,null,null,null,null,null,null,null,"","","",""]
[null,null,null,null,null,null,null,null,null,null,null,null,null,null,null,null,null,null,null,null,null,null,null,null,null,null,null,null,null,null,null,null,null,null,null,null,null,null,null,null,null,null,null,null,null,null,null,"","","",null,null,null,null,null,null,null,null,"","","",""]
[null,null,null,null,null,null,null,null,null,null,null,null,null,null,null,null,null,null,null,null,null,null,null,null,null,null,null,null,null,null,null,null,null,null,null,null,null,null,null,null,null,null,null,null,null,null,null,"","","",null,null,null,null,null,null,null,null,"","","",""]
[null,null,null,null,null,null,null,null,null,null,null,null,null,null,null,null,null,null,null,null,null,null,null,null,null,null,null,null,null,null,null,null,null,null,null,null,null,null,null,null,null,null,null,null,null,null,null,"","","",null,null,null,null,null,null,null,null,"","","",""]
[null,null,null,null,null,null,null,null,null,null,null,null,null,null,null,null,null,null,null,null,null,null,null,null,null,null,null,null,null,null,null,null,null,null,null,null,null,null,null,null,null,null,null,null,null,null,null,"","","",null,null,null,null,null,null,null,null,"","","",""]
[null,null,null,null,null,null,null,null,null,null,null,null,null,null,null,null,null,null,null,null,null,null,null,null,null,null,null,null,null,null,null,null,null,null,null,null,null,null,null,null,null,null,null,null,null,null,null,"","","",null,null,null,null,null,null,null,null,"","","",""]
[null,null,null,null,null,null,null,null,null,null,null,null,null,null,null,null,null,null,null,null,null,null,null,null,null,null,null,null,null,null,null,null,null,null,null,null,null,null,null,null,null,null,null,null,null,null,null,"","","",null,null,null,null,null,null,null,null,"","","",""]
[null,null,null,null,null,null,null,null,null,null,null,null,null,null,null,null,null,null,null,null,null,null,null,null,null,null,null,null,null,null,null,null,null,null,null,null,null,null,null,null,null,null,null,null,null,null,null,"","","",null,null,null,null,null,null,null,null,"","","",""]
[null,null,null,null,null,null,null,null,null,null,null,null,null,null,null,null,null,null,null,null,null,null,null,null,null,null,null,null,null,null,null,null,null,null,null,null,null,null,null,null,null,null,null,null,null,null,null,"","","",null,null,null,null,null,null,null,null,"","","",""]
[null,null,null,null,null,null,null,null,null,null,null,null,null,null,null,null,null,null,null,null,null,null,null,null,null,null,null,null,null,null,null,null,null,null,null,null,null,null,null,null,null,null,null,null,null,null,null,"","","",null,null,null,null,null,null,null,null,"","","",""]
[null,null,null,null,null,null,null,null,null,null,null,null,null,null,null,null,null,null,null,null,null,null,null,null,null,null,null,null,null,null,null,null,null,null,null,null,null,null,null,null,null,null,null,null,null,null,null,"","","",null,null,null,null,null,null,null,null,"","","",""]
[null,null,null,null,null,null,null,null,null,null,null,null,null,null,null,null,null,null,null,null,null,null,null,null,null,null,null,null,null,null,null,null,null,null,null,null,null,null,null,null,null,null,null,null,null,null,null,"","","",null,null,null,null,null,null,null,null,"","","",""]
[null,null,null,null,null,null,null,null,null,null,null,null,null,null,null,null,null,null,null,null,null,null,null,null,null,null,null,null,null,null,null,null,null,null,null,null,null,null,null,null,null,null,null,null,null,null,null,"","","",null,null,null,null,null,null,null,null,"","","",""]
[null,null,null,null,null,null,null,null,null,null,null,null,null,null,null,null,null,null,null,null,null,null,null,null,null,null,null,null,null,null,null,null,null,null,null,null,null,null,null,null,null,null,null,null,null,null,null,"","","",null,null,null,null,null,null,null,null,"","","",""]
[null,null,null,null,null,null,null,null,null,null,null,null,null,null,null,null,null,null,null,null,null,null,null,null,null,null,null,null,null,null,null,null,null,null,null,null,null,null,null,null,null,null,null,null,null,null,null,"","","",null,null,null,null,null,null,null,null,"","","",""]
[null,null,null,null,null,null,null,null,null,null,null,null,null,null,null,null,null,null,null,null,null,null,null,null,null,null,null,null,null,null,null,null,null,null,null,null,null,null,null,null,null,null,null,null,null,null,null,"","","",null,null,null,null,null,null,null,null,"","","",""]
[null,null,null,null,null,null,null,null,null,null,null,null,null,null,null,null,null,null,null,null,null,null,null,null,null,null,null,null,null,null,null,null,null,null,null,null,null,null,null,null,null,null,null,null,null,null,null,"","","",null,null,null,null,null,null,null,null,"","","",""]
[null,null,null,null,null,null,null,null,null,null,null,null,null,null,null,null,null,null,null,null,null,null,null,null,null,null,null,null,null,null,null,null,null,null,null,null,null,null,null,null,null,null,null,null,null,null,null,"","","",null,null,null,null,null,null,null,null,"","","",""]
[null,null,null,null,null,null,null,null,null,null,null,null,null,null,null,null,null,null,null,null,null,null,null,null,null,null,null,null,null,null,null,null,null,null,null,null,null,null,null,null,null,null,null,null,null,null,null,"","","",null,null,null,null,null,null,null,null,"","","",""]
[null,null,null,null,null,null,null,null,null,null,null,null,null,null,null,null,null,null,null,null,null,null,null,null,null,null,null,null,null,null,null,null,null,null,null,null,null,null,null,null,null,null,null,null,null,null,null,"","","",null,null,null,null,null,null,null,null,"","","",""]
[null,null,null,null,null,null,null,null,null,null,null,null,null,null,null,null,null,null,null,null,null,null,null,null,null,null,null,null,null,null,null,null,null,null,null,null,null,null,null,null,null,null,null,null,null,null,null,"","","",null,null,null,null,null,null,null,null,"","","",""]
[null,null,null,null,null,null,null,null,null,null,null,null,null,null,null,null,null,null,null,null,null,null,null,null,null,null,null,null,null,null,null,null,null,null,null,null,null,null,null,null,null,null,null,null,null,null,null,"","","",null,null,null,null,null,null,null,null,"","","",""]
[null,null,null,null,null,null,null,null,null,null,null,null,null,null,null,null,null,null,null,null,null,null,null,null,null,null,null,null,null,null,null,null,null,null,null,null,null,null,null,null,null,null,null,null,null,null,null,"","","",null,null,null,null,null,null,null,null,"","","",""]
[null,null,null,null,null,null,null,null,null,null,null,null,null,null,null,null,null,null,null,null,null,null,null,null,null,null,null,null,null,null,null,null,null,null,null,null,null,null,null,null,null,null,null,null,null,null,null,"","","",null,null,null,null,null,null,null,null,"","","",""]
[null,null,null,null,null,null,null,null,null,null,null,null,null,null,null,null,null,null,null,null,null,null,null,null,null,null,null,null,null,null,null,null,null,null,null,null,null,null,null,null,null,null,null,null,null,null,null,"","","",null,null,null,null,null,null,null,null,"","","",""]
[null,null,null,null,null,null,null,null,null,null,null,null,null,null,null,null,null,null,null,null,null,null,null,null,null,null,null,null,null,null,null,null,null,null,null,null,null,null,null,null,null,null,null,null,null,null,null,"","","",null,null,null,null,null,null,null,null,"","","",""]
[null,null,null,null,null,null,null,null,null,null,null,null,null,null,null,null,null,null,null,null,null,null,null,null,null,null,null,null,null,null,null,null,null,null,null,null,null,null,null,null,null,null,null,null,null,null,null,"","","",null,null,null,null,null,null,null,null,"","","",""]
[null,null,null,null,null,null,null,null,null,null,null,null,null,null,null,null,null,null,null,null,null,null,null,null,null,null,null,null,null,null,null,null,null,null,null,null,null,null,null,null,null,null,null,null,null,null,null,"","","",null,null,null,null,null,null,null,null,"","","",""]
[null,null,null,null,null,null,null,null,null,null,null,null,null,null,null,null,null,null,null,null,null,null,null,null,null,null,null,null,null,null,null,null,null,null,null,null,null,null,null,null,null,null,null,null,null,null,null,"","","",null,null,null,null,null,null,null,null,"","","",""]
[null,null,null,null,null,null,null,null,null,null,null,null,null,null,null,null,null,null,null,null,null,null,null,null,null,null,null,null,null,null,null,null,null,null,null,null,null,null,null,null,null,null,null,null,null,null,null,"","","",null,null,null,null,null,null,null,null,"","","",""]
[null,null,null,null,null,null,null,null,null,null,null,null,null,null,null,null,null,null,null,null,null,null,null,null,null,null,null,null,null,null,null,null,null,null,null,null,null,null,null,null,null,null,null,null,null,null,null,"","","",null,null,null,null,null,null,null,null,"","","",""]
[null,null,null,null,null,null,null,null,null,null,null,null,null,null,null,null,null,null,null,null,null,null,null,null,null,null,null,null,null,null,null,null,null,null,null,null,null,null,null,null,null,null,null,null,null,null,null,"","","",null,null,null,null,null,null,null,null,"","","",""]
[null,null,null,null,null,null,null,null,null,null,null,null,null,null,null,null,null,null,null,null,null,null,null,null,null,null,null,null,null,null,null,null,null,null,null,null,null,null,null,null,null,null,null,null,null,null,null,"","","",null,null,null,null,null,null,null,null,"","","",""]
[null,null,null,null,null,null,null,null,null,null,null,null,null,null,null,null,null,null,null,null,null,null,null,null,null,null,null,null,null,null,null,null,null,null,null,null,null,null,null,null,null,null,null,null,null,null,null,"","","",null,null,null,null,null,null,null,null,"","","",""]
[null,null,null,null,null,null,null,null,null,null,null,null,null,null,null,null,null,null,null,null,null,null,null,null,null,null,null,null,null,null,null,null,null,null,null,null,null,null,null,null,null,null,null,null,null,null,null,"","","",null,null,null,null,null,null,null,null,"","","",""]
[null,null,null,null,null,null,null,null,null,null,null,null,null,null,null,null,null,null,null,null,null,null,null,null,null,null,null,null,null,null,null,null,null,null,null,null,null,null,null,null,null,null,null,null,null,null,null,"","","",null,null,null,null,null,null,null,null,"","","",""]
[null,null,null,null,null,null,null,null,null,null,null,null,null,null,null,null,null,null,null,null,null,null,null,null,null,null,null,null,null,null,null,null,null,null,null,null,null,null,null,null,null,null,null,null,null,null,null,"","","",null,null,null,null,null,null,null,null,"","","",""]
[null,null,null,null,null,null,null,null,null,null,null,null,null,null,null,null,null,null,null,null,null,null,null,null,null,null,null,null,null,null,null,null,null,null,null,null,null,null,null,null,null,null,null,null,null,null,null,"","","",null,null,null,null,null,null,null,null,"","","",""]
[null,null,null,null,null,null,null,null,null,null,null,null,null,null,null,null,null,null,null,null,null,null,null,null,null,null,null,null,null,null,null,null,null,null,null,null,null,null,null,null,null,null,null,null,null,null,null,"","","",null,null,null,null,null,null,null,null,"","","",""]
[null,null,null,null,null,null,null,null,null,null,null,null,null,null,null,null,null,null,null,null,null,null,null,null,null,null,null,null,null,null,null,null,null,null,null,null,null,null,null,null,null,null,null,null,null,null,null,"","","",null,null,null,null,null,null,null,null,"","","",""]
[null,null,null,null,null,null,null,null,null,null,null,null,null,null,null,null,null,null,null,null,null,null,null,null,null,null,null,null,null,null,null,null,null,null,null,null,null,null,null,null,null,null,null,null,null,null,null,"","",{"$f":"ASC(IF(AV201=\"\",AW200,LEFT(AW200,AV201-1)))","v":""},null,null,null,null,null,null,null,null,"","","",""]
[null,null,null,null,null,null,null,null,null,null,null,null,null,null,null,null,null,null,null,null,null,null,null,null,null,null,null,null,null,null,null,null,null,null,null,null,null,null,null,null,null,null,null,null,null,null,null,"","","",null,null,null,null,null,null,null,null,{"$f":"IF(BI201=\"\",\"\",IF(BG200=$AU$76,74,BG200+1))","v":""},"","",{"$f":"ASC(IF(BH202=\"\",BI201,LEFT(BI201,BH202-1)))","v":""}]
[null,null,null,null,null,null,null,null,null,null,null,null,null,null,null,null,null,null,null,null,null,null,null,null,null,null,null,null,null,null,null,null,null,null,null,null,null,null,null,null,null,null,null,null,null,null,null,"",{"$f":"IF(AV202=\"\",\"\",MID(AW201,AV202+1,2000))","v":""},"",null,null,null,null,null,null,null,null,"",{"$f":"IFERROR(FIND($AT$72,BI201),\"\")","v":""},{"$f":"IF(BH202=\"\",\"\",MID(BI201,BH202+1,2000))","v":""},""]
[null,null,null,null,null,null,null,null,null,null,null,null,null,null,null,null,null,null,null,null,null,null,null,null,null,null,null,null,null,null,null,null,null,null,null,null,null,null,null,null,null,null,null,null,null,null,null,{"$f":"IFERROR(FIND($AT$72,AW202),\"\")","v":""},"","",null,null,null,null,null,null,null,null,"","","",""]
[null,null,null,null,null,null,null,null,null,null,null,null,null,null,null,null,null,null,null,null,null,null,null,null,null,null,null,null,null,null,null,null,null,null,null,null,null,null,null,null,null,null,null,null,null,null,null,"","","",null,null,null,null,null,null,null,null,"","","",""]
[null,null,null,null,null,null,null,null,null,null,null,null,null,null,null,null,null,null,null,null,null,null,null,null,null,null,null,null,null,null,null,null,null,null,null,null,null,null,null,null,null,null,null,null,null,null,null,"","","",null,null,null,null,null,null,null,null,"","","",""]
[null,null,null,null,null,null,null,null,null,null,null,null,null,null,null,null,null,null,null,null,null,null,null,null,null,null,null,null,null,null,null,null,null,null,null,null,null,null,null,null,null,null,null,null,null,null,null,"","","",null,null,null,null,null,null,null,null,"","","",""]
[null,null,null,null,null,null,null,null,null,null,null,null,null,null,null,null,null,null,null,null,null,null,null,null,null,null,null,null,null,null,null,null,null,null,null,null,null,null,null,null,null,null,null,null,null,null,null,"","","",null,null,null,null,null,null,null,null,"","","",""]
[null,null,null,null,null,null,null,null,null,null,null,null,null,null,null,null,null,null,null,null,null,null,null,null,null,null,null,null,null,null,null,null,null,null,null,null,null,null,null,null,null,null,null,null,null,null,null,"","","",null,null,null,null,null,null,null,null,"","","",""]
[null,null,null,null,null,null,null,null,null,null,null,null,null,null,null,null,null,null,null,null,null,null,null,null,null,null,null,null,null,null,null,null,null,null,null,null,null,null,null,null,null,null,null,null,null,null,null,"","","",null,null,null,null,null,null,null,null,"","","",""]
[null,null,null,null,null,null,null,null,null,null,null,null,null,null,null,null,null,null,null,null,null,null,null,null,null,null,null,null,null,null,null,null,null,null,null,null,null,null,null,null,null,null,null,null,null,null,null,"","","",null,null,null,null,null,null,null,null,"","","",""]
[null,null,null,null,null,null,null,null,null,null,null,null,null,null,null,null,null,null,null,null,null,null,null,null,null,null,null,null,null,null,null,null,null,null,null,null,null,null,null,null,null,null,null,null,null,null,null,"","","",null,null,null,null,null,null,null,null,"","","",""]
[null,null,null,null,null,null,null,null,null,null,null,null,null,null,null,null,null,null,null,null,null,null,null,null,null,null,null,null,null,null,null,null,null,null,null,null,null,null,null,null,null,null,null,null,null,null,null,"","","",null,null,null,null,null,null,null,null,"","","",""]
[null,null,null,null,null,null,null,null,null,null,null,null,null,null,null,null,null,null,null,null,null,null,null,null,null,null,null,null,null,null,null,null,null,null,null,null,null,null,null,null,null,null,null,null,null,null,null,"","","",null,null,null,null,null,null,null,null,"","","",""]
[null,null,null,null,null,null,null,null,null,null,null,null,null,null,null,null,null,null,null,null,null,null,null,null,null,null,null,null,null,null,null,null,null,null,null,null,null,null,null,null,null,null,null,null,null,null,null,"","","",null,null,null,null,null,null,null,null,"","","",""]
[null,null,null,null,null,null,null,null,null,null,null,null,null,null,null,null,null,null,null,null,null,null,null,null,null,null,null,null,null,null,null,null,null,null,null,null,null,null,null,null,null,null,null,null,null,null,null,"","","",null,null,null,null,null,null,null,null,"","","",""]
[null,null,null,null,null,null,null,null,null,null,null,null,null,null,null,null,null,null,null,null,null,null,null,null,null,null,null,null,null,null,null,null,null,null,null,null,null,null,null,null,null,null,null,null,null,null,null,"","","",null,null,null,null,null,null,null,null,"","","",""]
[null,null,null,null,null,null,null,null,null,null,null,null,null,null,null,null,null,null,null,null,null,null,null,null,null,null,null,null,null,null,null,null,null,null,null,null,null,null,null,null,null,null,null,null,null,null,null,"","","",null,null,null,null,null,null,null,null,"","","",""]
[null,null,null,null,null,null,null,null,null,null,null,null,null,null,null,null,null,null,null,null,null,null,null,null,null,null,null,null,null,null,null,null,null,null,null,null,null,null,null,null,null,null,null,null,null,null,null,"","","",null,null,null,null,null,null,null,null,"","","",""]
[null,null,null,null,null,null,null,null,null,null,null,null,null,null,null,null,null,null,null,null,null,null,null,null,null,null,null,null,null,null,null,null,null,null,null,null,null,null,null,null,null,null,null,null,null,null,null,"","","",null,null,null,null,null,null,null,null,"","","",""]
[null,null,null,null,null,null,null,null,null,null,null,null,null,null,null,null,null,null,null,null,null,null,null,null,null,null,null,null,null,null,null,null,null,null,null,null,null,null,null,null,null,null,null,null,null,null,null,"","","",null,null,null,null,null,null,null,null,"","","",""]
[null,null,null,null,null,null,null,null,null,null,null,null,null,null,null,null,null,null,null,null,null,null,null,null,null,null,null,null,null,null,null,null,null,null,null,null,null,null,null,null,null,null,null,null,null,null,null,"","","",null,null,null,null,null,null,null,null,"","","",""]
[null,null,null,null,null,null,null,null,null,null,null,null,null,null,null,null,null,null,null,null,null,null,null,null,null,null,null,null,null,null,null,null,null,null,null,null,null,null,null,null,null,null,null,null,null,null,null,"","","",null,null,null,null,null,null,null,null,"","","",""]
[null,null,null,null,null,null,null,null,null,null,null,null,null,null,null,null,null,null,null,null,null,null,null,null,null,null,null,null,null,null,null,null,null,null,null,null,null,null,null,null,null,null,null,null,null,null,null,"","","",null,null,null,null,null,null,null,null,"","","",""]
[null,null,null,null,null,null,null,null,null,null,null,null,null,null,null,null,null,null,null,null,null,null,null,null,null,null,null,null,null,null,null,null,null,null,null,null,null,null,null,null,null,null,null,null,null,null,"END",null,"END","END","END",null,null,null,null,null,null,null,"END",null,"END","END"]
[]
[]
[]
[]
[]
[null,null,null,null,null,null,null,null,null,null,null,null,null,null,null,null,null,null,null,null,null,null,null,null,null,null,null,null,null,null,null,null,null,null,null,null,null,null,null,null,null,null,null,null,null,null,null,"依頼者比較　割愛文字","検体種類＆本数","本数修正"]
[null,null,null,null,null,null,null,null,null,null,null,null,null,null,null,null,null,null,null,null,null,null,null,null,null,null,null,null,null,null,null,null,null,null,null,null,null,null,null,null,null,null,null,null,null,null,null,"茨城県","空気環境測定1"]
[null,null,null,null,null,null,null,null,null,null,null,null,null,null,null,null,null,null,null,null,null,null,null,null,null,null,null,null,null,null,null,null,null,null,null,null,null,null,null,null,null,null,null,null,null,null,null,"福島県","水道水（簡易専用水道）5",4]
[]
[]
[]
[]
[]
[]
[]
[]
[]
[]
[]
[null,null,null,null,null,null,null,null,null,null,null,null,null,null,null,null,null,null,null,null,null,null,null,null,null,null,null,null,null,null,null,null,null,null,null,null,null,null,null,null,null,null,null,null,null,null,null,"エ","容","E","E"]
[null,null,null,null,null,null,null,null,null,null,null,null,null,null,null,null,null,null,null,null,null,null,null,null,null,null,null,null,null,null,null,null,null,null,null,null,null,null,null,null,null,null,null,null,null,null,null,"ラ","器","請","請"]
[null,null,null,null,null,null,null,null,null,null,null,null,null,null,null,null,null,null,null,null,null,null,null,null,null,null,null,null,null,null,null,null,null,null,null,null,null,null,null,null,null,null,null,null,null,null,null,"ー","修","求","求"]
[null,null,null,null,null,null,null,null,null,null,null,null,null,null,null,null,null,null,null,null,null,null,null,null,null,null,null,null,null,null,null,null,null,null,null,null,null,null,null,null,null,null,null,null,null,null,null,"あ","正","宛","送"]
[null,null,null,null,null,null,null,null,null,null,null,null,null,null,null,null,null,null,null,null,null,null,null,null,null,null,null,null,null,null,null,null,null,null,null,null,null,null,null,null,null,null,null,null,null,null,null,"り",null,"名","付"]
[]
[null,null,null,null,null,null,null,null,null,null,null,null,null,null,null,null,null,null,null,null,null,null,null,null,null,null,null,null,null,null,null,null,null,null,null,null,null,null,null,null,null,null,null,null,null,null,null,{"$f":"IF(ISERROR(SUM(A1:DG249)),CONCATENATE(AV244,AV245,AV246,AV247,AV248),\"\")","v":"エラーあり"},{"$f":"IFERROR(IF(OR(IF(BA14=\"\",0,VALUE(BA14))=DH69,COUNTIF(BL25:BL26,AV50)),\"\",CONCATENATE(AW244,AW245,AW246,AW247)),\"\")","v":""},{"$f":"IF(AW44=\"\",\"\",CONCATENATE(AX244,AX245,AX246,AX247,AX248))","v":{"$error":"#REF!"}},{"$f":"IF(AW43=\"\",\"\",CONCATENATE(AY244,AY245,AY246,AY247,AY248))","v":{"$error":"#REF!"}}]
[]
[null,null,null,null,null,null,null,null,null,null,null,null,null,null,null,null,null,null,null,null,null,null,null,null,null,null,null,null,null,null,null,null,null,null,null,null,null,null,null,null,null,null,null,null,null,null,null,{"$f":"AW45&LEFT(AV250,1)&LEFT(AW250,1)","v":{"$error":"#REF!"}}]